Workbook

Sheet Overview

Sheet Index sheet
A1: Sheet Index:
A2: Argentina
A3: Australia
A4: Austria
A5: Bangladesh
A6: Belgium
A7: Brazil
A8: Bulgaria
A9: Cambodia
A10: Canada
A11: Chile
A12: China
A13: Colombia
A14: Costa Rica
A15: Croatia
A16: Cyprus
A17: Czech republic
A18: Denmark
A19: Estonia
A20: EU
A21: Finland
A22: France
A23: Germany
A24: Greece
A25: Hungary
A26: Iceland
A27: India
A28: Indonesia
A29: Ireland
A30: Israel
A31: Italy
A32: Japan
A33: Kazakhstan
A34: Kenya
A35: Laos
A36: Latvia
A37: Lithuania
A38: Luxembourg
A39: Malta
A40: Mexico
A41: Netherlands
A42: New Zealand
A43: Norway
A44: Philippines
A45: Poland
A46: Portugal
A47: Republic of Korea
A48: Romania
A49: Russia
A50: Singapore
A51: Slovakia
A52: Slovenia
A53: South Africa
A54: Spain
A55: Sweden
A56: Switzerland
A57: Template
A58: Thailand
A59: Tunisia
A60: UK
A61: Ukraine
A62: US
A63: VietNam

Sheet Terminology
A1: Data Field | C1: Description
A2: Table 1: Historic and Projected EmissionsTable 1: Historic and Projected Emissions
A3: Country | C3: Name of submitting country
A4: Economy Wide CO2e Emissions Target | B4: National Communication (NC) | C4: Economy-wide CO2e emissions target in National Communication (NC)
B5: Biennial Update Report (BUR) | C5: Economy-wide CO2e emissions target in Biennial Update Reports (BUR) or Biennial Reports
B6: Other National Document | C6: Economy-wide CO2e emissions target in other national documents (e.g. international/national pledge)
B7: INDC Unconditional Reduction | C7: Unconditional economy-wide CO2e emissions target in intended nationally-determined contribution (INDC)
B8: INDC Conditional Reduction | C8: Conditional economy-wide CO2e emissions target in INDC
B9: INDC - Any other target mentioned | C9: Any other target mentioned in INDC (e.g. mode share, renewable energy, investment)
B10: INDC - Long Term Target | C10: Unconditional or conditional economy-wide CO2e emissions target for 2050 in INDC
A11: Total Country CO2e Emissions Under Target (MT) | C11: Quantified CO2 economy wide emission reduction target with specific baseline year (all sectors)
A12: Transport CO2 Emissions Target ( based on share of total emissions @ 2010) (MT) | C12: Quantified CO2 emission reduction target in million tons. In absence of specific target, economy wide emission reduction target is translated to different sectors such as transport based on its 2010 share in total emissions
A13: Total Country CO2e Emissions | B13: 1990 and 2012 | C13: Economy wide CO2 equivalent emissions (metric tons) for 1990 & 2012 (in absence of data, specific baseline year needs to be mentioned)
A14: BAU - Projection of Total Country CO2e Emissions | B14: 2020 and 2030 | C14: Official business-as-usual (BAU) projections for economy-wide CO2 equivalent emissions (metric tons)
A15: Transport Sector | B15: 1990 to 2012 | C15: Transport sector CO2 equivalent emissions (metric tons) for 1990 & 2012 (in absence of data, specific baseline year needs to be mentioned)
A16: Table 3: Comparison of BAU/Low Carbon Scenarios and INDC Target
A17: Transport CO2 (MT) | B17: 1990 to 2050 | C17: Transport sector CO2 equivalent historic emissions (metric tons) for 1990, 2000 and 2010. Simple average projections for BAU scenario (using official and unofficial studies) for 2020, 2030 and 2050
A18: Low Carbon Transport(MT) (avg) | B18: 2020, 2030 and 2050 | C18: Simple average projections for low carbon scenario (using official and unofficial studies) for 2020, 2030 and 2050
A19: Reduction with BAU (%) - Transport (2030) | C19: Comparison of low carbon scenario with BAU scenario. It is important to get maximum,mimimum and simple average variation (%) of low carbon scenario with BAU
A20: Gap Between INDC Target and Average Low Carbon Scenario (%) | C20: Simple average gap between INDC target and low carbon scenario. Positive sign indicates that low carbon scenario value for 2030 is higher than INDC target resulting in an emission gap. Negative value indicates that low carbon scenario is lower than INDC target and hence transport sector could easily reach INDC target with planned policies and mitigation measures
A21: Transport CO2 Target (MT) | C21: Quantified CO2 emission reduction target in million tons. In absence of specific target, economy wide emission reduction target is translated to different sectors such as transport based on its 2010 share in total emissions
A22: Comparison of Low carbon scenario with target (MT) @ 2030 | C22: It gives simple average gap between INDC target and low carbon scenario in million tons. Positive sign indicates that low carbon scenario value for 2030 is higher than INDC target resulting in an emission gap. Negative sign indicates that low carbon scenario is lower than INDC target and hence transport sector could easily reach INDC target with planned policies and mitigation measures
A23: Cumulative Increase in Transport CO2 baseline (2010-2030) MT (avg) | C23: It gives the cumulative increase in transport CO2 emissions in the BAU scenario between 2010 to 2030 in million tons
A24: Cumulative Increase in Transport CO2 in Low Carbon Scenario (2010-2030) MT (avg) | C24: It gives the cumulative increase in transport CO2 emissions in the low carbon scenario between 2010 to 2030 in million tons
A25: Cumulative Reduction in Transport (2010-2030) MT (avg) | C25: It gives the cumulative savings in transport CO2 emissions when low carbon scenario is compared with BAU scenario. The increase is in million tons over the period 2010 to 2030
A26: Cumulative Gap of Low Carbon Scenario with target (2010-2030) MT | C26: It gives the cumulative increase or decrease in transport CO2 emissions when low carbon scenario is compared with INDC target scenario. The increase is in million tons over the period 2010 to 2030. Positive sign indicates that low carbon scenario is lower than INDC target and transport sector is going to contribute much higher savings in emissions when compared with its target.
A27: Table 2: Mitigation Potential Studies
A28: Country/Region | C28: Country or region of which the study applies to
A29: Study Title | C29: Official title of the publication
A30: Quantification by Institute (Govt/Private/Development Agency/Academia) | C30: Name of organization
A31: Methodology/Model Used | C31: Approaches used to assess mitigation potential (bottom-up or top-down)
A32: Base Year | C32: Base year for assessment
A33: Base Year CO2e Emissions (MT) | B33: Road | C33: Amount of CO2e emissions of the road sector of base year (in metric tons)
B34: Railways | C34: Amount of CO2e emissions of the rail sector of base year (in metric tons)
B35: Waterways | C35: Amount of CO2e emissions of water transport of base year (in metric tons)
B36: Aviation | C36: Amount of CO2e emissions of the aviation sector of base year (in metric tons)
B37: Passenger | C37: Amount of CO2e emissions of passenger transport of base year (in metric tons)
B38: Freight | C38: Amount of CO2e emissions of freight transport of base year (in metric tons)
B39: Urban | C39: Amount of CO2e emissions of urban transport of base year (in metric tons)
B40: Total | C40: Total amount of CO2e emissions of the transport sector of base year (in metric tons)
A41: Forecast Year | C41: Year of CO2 emission forecast
A42: Forecast CO2e Emissions (MT) BAU | B42: Road | C42: Projected CO2e emissions of the road sector under the BAU scenario (in metric tons)
B43: Railways | C43: Projected CO2e emissions of the rail sector under the BAU scenario (in metric tons)
B44: Waterways | C44: Projected CO2e emissions of water transport under the BAU scenario (in metric tons)
B45: Aviation | C45: Projected CO2e emissions of the aviation sector under the BAU scenario (in metric tons)
B46: Passenger | C46: Projected CO2e emissions of passenger transport under the BAU scenario (in metric tons)
B47: Freight | C47: Projected CO2e emissions of freight transport under the BAU scenario (in metric tons)
B48: Urban | C48: Projected CO2e emissions of urban transport under the BAU scenario (in metric tons)
B49: Total | C49: Total projected CO2e emissions of the transport sector under the BAU scenario (in metric tons)
A50: Forecast CO2e Emissions with Proposed Interventions (MT) | B50: Road | C50: Projected CO2e emissions of the road sector with mitigation measures (in metric tons)
B51: Railways | C51: Projected CO2e emissions of the rail sector with mitigation measures (in metric tons)
B52: Waterways | C52: Projected CO2e emissions of water transport with mitigation measures (in metric tons)
B53: Aviation | C53: Projected CO2e emissions of the aviation sector with mitigation measures (in metric tons)
B54: Passenger | C54: Projected CO2e emissions of passenger transport with mitigation measures (in metric tons)
B55: Freight | C55: Projected CO2e emissions of freight transport with mitigation measures (in metric tons)
B56: Urban | C56: Projected CO2e emissions of urban transport with mitigation measures (in metric tons)
B57: Total | C57: Total projected CO2e emissions of the transport sector with mitigation measures (in metric tons)
A58: % Projected Increase (BAU) | C58: Percentage of projected CO2e emission increase under the BAU scenario
A59: % Projected Decrease (With Mitigation Measures) | C59: Percentage of projected CO2e emission Decrease with proposed mitigation measures
A60: Mitigation Measures | C60: Brief summary of proposed mitigation measures being assessed in the study

Sheet Argentina
U1: -2.435018982 | V1: -0.7495472463 | W1: -1.66695253
A2: Table 1: Historic and Projected Emissions | U2: -2.206723146 | V2: -0.2894556358
A3: Country | C3: Argentina | F3: Table 3: Comparison of BAU/Low Carbon Scenarios and INDC Target | T3: 2010 | U3: 228.138 | V3: 228.138 | W3: 228.138 | Z3: 0
A4: Economy-Wide CO2e Emissions Target | B4: National Communication | F4: Transport CO2 Summary | H4: MT | T4: 2011 | U4: 224.71229 | V4: 224.71229 | W4: 224.3350478 | Z4: 0
B5: BUR | F5: Transport CO2 (MT)- (avg baseline) | G5: 1990 | H5: 27.72584 | T5: 2012 | U5: 219.2405031 | V5: 223.0279652 | W5: 220.5954891 | Z5: 3.787462134
B6: Other National Document/Pledge | G6: 2000 | H6: 40.23651 | T6: 2013 | U6: 213.9019552 | V6: 221.3562652 | W6: 216.918267 | Z6: 7.454310028
B7: INDC Unconditional Reduction | C7: 15% below 2030 BAU scenario | G7: 2010 | H7: 41.3 | T7: 2014 | U7: 208.693402 | V7: 219.6970955 | W7: 213.3023425 | Z7: 11.00369345
B8: INDC Conditional Reduction | C8: 30% below 2030 BAU scenario | G8: 2011 | H8: 46.9 | P8: CO2e Emissions (MT) | T8: 2015 | U8: 203.6116781 | V8: 218.0503619 | W8: 209.7466937 | Z8: 14.43868387
B9: INDC - Any other target mentioned | E9: ` | G9: 2020 | H9: 54 | O9: 1990 | P9: 27.72584 | T9: 2016 | U9: 198.653695 | V9: 216.4159714 | W9: 206.2503158 | Z9: 17.7622764
B10: INDC - Long Term Target | G10: 2030 | H10: 72.4 | O10: 1994 | P10: 35.8142 | T10: 2017 | U10: 193.8164399 | V10: 214.7938315 | W10: 202.812221 | Z10: 20.97739163
A11: 2030 Economy-Wide CO2e Emissions Target (MT) | C11: 472.5 | G11: 2050 | H11: 114 | O11: 1995 | P11: 40.844 | T11: 2018 | U11: 189.0969728 | V11: 213.1838502 | W11: 199.4314375 | Z11: 24.08687748
A12: Derived 2030 Transport CO2 Emissions Target ( based on share of total emissions @ 2010) | C12: 69.1992227 | F12: Low Carbon Transport(MT) (avg low carbon baseline) | G12: 2020 | H12: 52.13 | O12: 2000 | P12: 40.23651 | T12: 2019 | U12: 184.4924256 | V12: 211.5859366 | W12: 196.1070101 | Z12: 27.09351098
G13: 2030 | H13: 55.29 | O13: 2005 | T13: 2020 | U13: 180 | V13: 210 | W13: 192.8379994 | Z13: 30
G14: 2050 | H14: 44.44 | O14: 2010 | P14: 41.3 | T14: 2021 | U14: 176.0278983 | V14: 209.3921432 | W14: 189.6234815 | Z14: 33.36424483
A15: OFFICIAL and IEA ESTIMATES | B15: Base Year | C15: CO2e Emissions (MT) | D15: Source | F15: Average Reduction of Low Carbon estimate with BAU (%) | G15: 2030 | H15: -24 | O15: 2011 | P15: 46.9 | T15: 2022 | U15: 172.14345 | V15: 208.7860458 | W15: 186.462548 | Z15: 36.64259584
A16: Economy-Wide CO2e Emissions : Historical | B16: 1990 | C16: 231.057 | D16: Second National Communication | O16: 2012 | P16: 48.3 | T16: 2023 | U16: 168.3447206 | V16: 208.1817028 | W16: 183.3543059 | Z16: 39.83698222
B17: 2010 | C17: 282.001 | D17: Second National Communication | N17: Future (BAU) -Official | T17: 2024 | U17: 164.6298187 | V17: 207.5791092 | W17: 180.2978766 | Z17: 42.94929046
A18: Economy-Wide CO2e Emissions : Projections | B18: 2020 | C18: 350 | D18: INDC | F18: Gap Between INDC Target and Average Low Carbon Scenario (%) | G18: Average | H18: -0.2010025858 | O18: 2020 | T18: 2025 | U18: 160.9968944 | V18: 206.9782597 | W18: 177.2923966 | Z18: 45.98136535
B19: 2030 | C19: 675 | D19: INDC | F19: Transport CO2 Target (MT) | G19: INDC | H19: 69.1992227 | O19: 2030 | T19: 2026 | U19: 157.4441386 | V19: 206.3791495 | W19: 174.3370165 | Z19: 48.93501084
A20: Transport Sector : Historic CO2e Emissions | B20: 1990 | C20: =27.338+21*0.00784+310*0.00072 -> 27.72584 | D20: First National Communication | F20: Gap Between INDC Target and Average Low Carbon Scenario in Million Tons @ 2030 | H20: -13.9092227 | O20: 2020 | T20: 2027 | U20: 153.9697824 | V20: 205.7817734 | W20: 171.4309012 | Z20: 51.81199101
B21: 1994 | C21: =34.878+21*0.031+310*0.00092 -> 35.8142 | D21: First National Communication | F21: Cumulative Increase: BAU Scenario (2010-2030) MT (avg) | H21: 1181.814185 | N21: Low Carbon Scenario-Official | O21: 2020 | T21: 2028 | U21: 150.5720956 | V21: 205.1861265 | W21: 168.5732295 | Z21: 54.6140309
B22: 1995 | C22: 40.844 | D22: Second National Communication | F22: Cumulative Increase: Low Carbon Scenario (2010-2030) MT (avg) | H22: 1074.567082 | O22: 2030 | T22: 2029 | U22: 147.2493863 | V22: 204.5922037 | W22: 165.7631938 | Z22: 57.34281737
B23: 2000 | C23: =38.969+21*0.04161+310*0.00127 -> 40.23651 | D23: Second National Communication | F23: Cumulative Reduction: BAU vs. Low Carbon Scenario (2010-2030) MT (avg) | H23: 107.247103 | T23: 2030 | U23: 144 | V23: 204 | W23: 163 | Z23: 60
B24: 2005 | F24: Cumulative Gap: Low Carbon Scenario vs. INDC Target (2010-2030) MT | H24: 61.84139109 | N24: Future (BAU) -Other studies | O24: 2010 | P24: 43.746 | W24: 4070.609773 | X24: 230.8742269
B25: 2010 | C25: 41.3 | D25: CO2 Emissions from Fuel Combustion IEA 2012 | J25: Figure 1: Projected Transport Emissions: BAU, Low Carbon Scenario, and Transport Target | O25: 2020 | P25: 58.918 | U25: 3839.735547 | V25: 4467.818081 | W25: 628.0825348
B26: 2011 | C26: 46.9 | D26: CO2 Emissions from Fuel Combustion IEA 2013 | O26: 2030 | P26: 72.467
B27: 2012 | C27: 48.3 | D27: CO2 Emissions from Fuel Combustion IEA 2014 | O27: 2040 | P27: 90.76 | Q27: -0.1377777778
J28: Figure 1: Projected Transport Emissions: BAU, Low Carbon Scenario, and Indicative Targe | O28: 2050 | P28: 113.817
O29: 2020 | P29: 50
Q30: -1
R33: Year | S33: % Increase
Q34: Total Country CO2e Emissions (BAU) | R34: 1990-2011 | S34: 0.08724827863
R35: 2011-2030 | S35: 0.05585556541
N36: Low Carbon Scenario (studies) | O36: 2010 | P36: 43.746 | Q36: Total Transport CO2e Emissions (BAU) | R36: 1990-2011 | S36: 0.04033467593
O37: 2020 | P37: 48.481 | R37: 2011-2030 | S37: -0.0921724842
O38: 2030 | P38: 46.025 | Q38: Transport Mitigation Potential (below BAU @ 2030) | S38: -0.2941176471 | T38: Decrease
O39: 2040 | P39: 45.18 | Q39: Transport Mitigation Potential (below INDC target) | S39: -0.1165644172
A40: Table 2: Mitigation Potential Studies | O40: 2050 | P40: 44.222
A41: Study Title | C41: Economics of Green House Gas Limitations | D41: CLIMACAP Project | O41: 2020 | P41: 20
A42: Quantification by Institute | C42: Instituto de Economía Energética | D42: EU | O42: 2020 | P42: 55.785
A43: Methodology/Model Used | C43: Bottom-up (LEAP) | D43: Bottom-up (LEAP) | O43: 2030 | P43: 64.555
A44: Base Year | C44: 2005 | D44: 2010
A45: Base Year CO2e Emissions (MT) | B45: Road
B46: Railways
B47: Waterways
B48: Aviation
B49: Passenger
B50: Freight
B51: Urban
B52: Total | D52: 43.746
A53: Forecast Year | C53: 2020 | D53: 2050
A54: Forecast CO2 Emissions (MT) BAU | B54: Road
B55: Railways
B56: Waterways
B57: Aviation
B58: Passenger
B59: Freight
B60: Urban
B61: Total | C61: 50 | D61: 113.817
A62: Forecast Year | C62: 2020 | D62: 2050
A63: Forecast CO2 Emissions with Mitigation Measures (MT) | B63: Road
B64: Railways
B65: Waterways
B66: Aviation
B67: Passenger
B68: Freight
B69: Urban
B70: Total | C70: =C61*0.4 -> 20 | D70: 44.22
A71: % Projected Increase (BAU) | C71: =C61/C45-1 ->  | D71: =(D61/D52-1) -> 1.601769305
A72: % Projected Decrease (With Mitigation Measures) | C72: -0.4 | D72: =D70/D61-1 -> -0.6114815889
A73: Mitigation Measures | C73: Traffic reorganization, mode shift and technological improvements like alternate fuel | D73: Eco-driving in freight transport and public transport (100% of drivers in these areas trained by 2050).Introduction of hybrid cars (share of 5% of the car fleet by 2050). Freight from truck to train transport (25% of rail transport by 2050)
A79: TIER I FACTSHEET SOURCES
A81: Table 1: Historic and Projected Emissions
A82: Historic Emissions | B82: Submitted National Communications | C82: http://unfccc.int/national_reports/non-annex_i_natcom/submitted_natcom/items/653.php
B83: UNFCCC: INDCs as communicated by Parties | C83: http://www4.unfccc.int/submissions/indc/Submission%20Pages/submissions.aspx
B84: Submitted Biennial Update Reports | C84: http://unfccc.int/national_reports/non-annex_i_natcom/reporting_on_climate_change/items/8722.php
B85: The Climate Pledge INDC Tool | C85: http://infographics.pbl.nl/indc/
B86: CAIT Climate Data Explorer | C86: http://cait.wri.org/
B87: Climate Equity Reference Calculator | C87: http://gdrights.org/calculator-about/
B88: World Bank - World Development Indicators | C88: http://data.worldbank.org/data-catalog/world-development-indicators
B89: UNEP Pledge Pipeline Tool | C89: http://www.unep.org/climatechange/pledgepipeline/
B90: Climate Action Tracker | C90: http://climateactiontracker.org/
A91: BAU Emissions Projections | B91: Submitted National Communications | C91: http://unfccc.int/national_reports/non-annex_i_natcom/submitted_natcom/items/653.php
B92: UNFCCC: INDCs as communicated by Parties | C92: http://www4.unfccc.int/submissions/indc/Submission%20Pages/submissions.aspx
B93: Submitted Biennial Update Reports | C93: http://unfccc.int/national_reports/non-annex_i_natcom/reporting_on_climate_change/items/8722.php
B94: The Climate Pledge INDC Tool | C94: http://infographics.pbl.nl/indc/
B95: Climate Equity Reference Calculator | C95: http://gdrights.org/calculator-about/
B96: World Bank - World Development Indicators | C96: http://data.worldbank.org/data-catalog/world-development-indicators
B97: UNEP Pledge Pipeline Tool | C97: http://www.unep.org/climatechange/pledgepipeline/
B98: Climate Action Tracker | C98: http://climateactiontracker.org/
A99: INDC Targets | B99: UNFCCC: INDCs as communicated by Parties | C99: http://www4.unfccc.int/submissions/indc/Submission%20Pages/submissions.aspx
A101: Table 2: Mitigation Potential Studies
A102: Low Carbon Emission Projections | B102: SLoCaT Overview of Mitigation Potential Studies | C102: http://www.slocat.net/docs/1519
B103: Submitted National Communications | C103: http://unfccc.int/national_reports/annex_i_natcom/submitted_natcom/items/7742.php
A104: BAU Emissions Projections | B104: Submitted Biennial Reports | C104: http://unfccc.int/national_reports/biennial_reports_and_iar/submitted_biennial_reports/items/7550.php
B105: UNFCCC: INDCs as communicated by Parties | C105: http://www4.unfccc.int/submissions/indc/Submission%20Pages/submissions.aspx
A107: Table 3: Comparison of BAU/Low Carbon Scenarios and INDC Target
A108: Historic Emissions | B108: Submitted National Communications | C108: http://unfccc.int/national_reports/non-annex_i_natcom/submitted_natcom/items/653.php
B109: UNFCCC: INDCs as communicated by Parties | C109: http://www4.unfccc.int/submissions/indc/Submission%20Pages/submissions.aspx
B110: Submitted Biennial Update Reports | C110: http://unfccc.int/national_reports/non-annex_i_natcom/reporting_on_climate_change/items/8722.php
B111: The Climate Pledge INDC Tool | C111: http://infographics.pbl.nl/indc/
B112: CAIT Climate Data Explorer | C112: http://cait.wri.org/
B113: Climate Equity Reference Calculator | C113: http://gdrights.org/calculator-about/
B114: World Bank - World Development Indicators | C114: http://data.worldbank.org/data-catalog/world-development-indicators
B115: UNEP Pledge Pipeline Tool | C115: http://www.unep.org/climatechange/pledgepipeline/
B116: Climate Action Tracker | C116: http://climateactiontracker.org/
A117: BAU Emissions Projections | B117: Submitted National Communications | C117: http://unfccc.int/national_reports/non-annex_i_natcom/submitted_natcom/items/653.php
B118: UNFCCC: INDCs as communicated by Parties | C118: http://www4.unfccc.int/submissions/indc/Submission%20Pages/submissions.aspx
B119: Submitted Biennial Update Reports | C119: http://unfccc.int/national_reports/non-annex_i_natcom/reporting_on_climate_change/items/8722.php
B120: The Climate Pledge INDC Tool | C120: http://infographics.pbl.nl/indc/
B121: Climate Equity Reference Calculator | C121: http://gdrights.org/calculator-about/
B122: World Bank - World Development Indicators | C122: http://data.worldbank.org/data-catalog/world-development-indicators
B123: UNEP Pledge Pipeline Tool | C123: http://www.unep.org/climatechange/pledgepipeline/
B124: Climate Action Tracker | C124: http://climateactiontracker.org/
A125: Low Carbon Emission Projections | B125: SLoCaT Overview of Mitigation Potential Studies | C125: http://www.slocat.net/docs/1519
A126: INDC Targets | B126: UNFCCC: INDCs as communicated by Parties | C126: http://www4.unfccc.int/submissions/indc/Submission%20Pages/submissions.aspx
A128: Figure 1: Projected Transport Emissions: BAU, Low Carbon Scenario, and Indicative Target
A129: Derived from Table 3: Comparison of BAU/Low Carbon Scenarios and INDC Target

Sheet Australia
U1: -2.435018982 | V1: -0.7495472463 | W1: -1.66695253
A2: Table 1: Historic and Projected Emissions | U2: -2.206723146 | V2: -0.2894556358
A3: Country | C3: Australia | F3: Table 3: Comparison of BAU/Low Carbon Scenarios and INDC Target | T3: 2010 | U3: 228.138 | V3: 228.138 | W3: 228.138 | Z3: 0
A4: Economy-Wide CO2e Emissions Target | B4: National Communication | C4: 5 % on 2000 levels by 2020 and 80 % by 2050 & Optional target of 4 % on 1990 levels by 2020 | F4: Transport CO2 Summary | H4: MT | T4: 2011 | U4: 224.71229 | V4: 224.71229 | W4: 224.3350478 | Z4: 0
B5: BUR | F5: Transport CO2 (MT)- (avg baseline) | G5: 1990 | H5: 60.66258 | T5: 2012 | U5: 219.2405031 | V5: 223.0279652 | W5: 220.5954891 | Z5: 3.787462134
B6: Other National Document/Pledge | G6: 2000 | H6: 72.78933 | T6: 2013 | U6: 213.9019552 | V6: 221.3562652 | W6: 216.918267 | Z6: 7.454310028
B7: INDC Unconditional Reduction | C7: 26% to 28% below 2005 levels by 2030 | G7: 2010 | H7: 83.61163 | T7: 2014 | U7: 208.693402 | V7: 219.6970955 | W7: 213.3023425 | Z7: 11.00369345
B8: INDC Conditional Reduction | G8: 2011 | H8: 85.475 | P8: CO2e Emissions (MT) | T8: 2015 | U8: 203.6116781 | V8: 218.0503619 | W8: 209.7466937 | Z8: 14.43868387
B9: INDC - Any other target mentioned | E9: ` | G9: 2020 | H9: 101 | O9: 1990 | P9: 60.66258 | T9: 2016 | U9: 198.653695 | V9: 216.4159714 | W9: 206.2503158 | Z9: 17.7622764
B10: INDC - Long Term Target | G10: 2030 | H10: 115 | O10: 1994 | T10: 2017 | U10: 193.8164399 | V10: 214.7938315 | W10: 202.812221 | Z10: 20.97739163
A11: 2030 Economy-Wide CO2e Emissions Target (MT) | C11: 379.44 | G11: 2050 | H11: 140 | O11: 1995 | P11: 66.50039 | T11: 2018 | U11: 189.0969728 | V11: 213.1838502 | W11: 199.4314375 | Z11: 24.08687748
A12: Derived 2030 Transport CO2 Emissions Target ( based on share of total emissions @ 2010) | C12: 58.75477174 | F12: Low Carbon Transport(MT) (avg low carbon baseline) | G12: 2020 | H12: 92 | O12: 2000 | P12: 72.78933 | T12: 2019 | U12: 184.4924256 | V12: 211.5859366 | W12: 196.1070101 | Z12: 27.09351098
G13: 2030 | H13: 85 | O13: 2005 | P13: 78.42901 | T13: 2020 | U13: 180 | V13: 210 | W13: 192.8379994 | Z13: 30
G14: 2050 | H14: 34.5 | O14: 2010 | P14: 83.61163 | T14: 2021 | U14: 176.0278983 | V14: 209.3921432 | W14: 189.6234815 | Z14: 33.36424483
A15: OFFICIAL and IEA ESTIMATES | B15: Base Year | C15: CO2e Emissions (MT) | D15: Source | F15: Average Reduction of Low Carbon estimate with BAU (%) | G15: 2030 | H15: -26 | O15: 2011 | P15: 85.475 | T15: 2022 | U15: 172.14345 | V15: 208.7860458 | W15: 186.462548 | Z15: 36.64259584
A16: Economy-Wide CO2e Emissions : Historical | B16: 1990 | C16: 417.742 | D16: BUR | T16: 2023 | U16: 168.3447206 | V16: 208.1817028 | W16: 183.3543059 | Z16: 39.83698222
B17: 2011 | C17: 552 | D17: Australia’s Sixth National Communication on Climate Change | N17: Future (BAU) -Official | O17: 2020 | P17: 97 | T17: 2024 | U17: 164.6298187 | V17: 207.5791092 | W17: 180.2978766 | Z17: 42.94929046
A18: Economy-Wide CO2e Emissions : Projections | B18: 2020 | C18: 693 | D18: Australia’s Sixth National Communication on Climate Change | F18: Gap Between INDC Target and Average Low Carbon Scenario (%) | G18: Average | H18: 0.4466910088 | O18: 2030 | P18: 105 | T18: 2025 | U18: 160.9968944 | V18: 206.9782597 | W18: 177.2923966 | Z18: 45.98136535
B19: 2030 | F19: Transport CO2 Target (MT) | G19: INDC | H19: 58.75477174 | T19: 2026 | U19: 157.4441386 | V19: 206.3791495 | W19: 174.3370165 | Z19: 48.93501084
A20: Transport Sector : Historic CO2e Emissions | B20: 1990 | C20: 60.66258 | D20: Australia’s Sixth National Communication on Climate Change | F20: Gap Between INDC Target and Average Low Carbon Scenario in Million Tons @ 2030 | H20: 26.24522826 | T20: 2027 | U20: 153.9697824 | V20: 205.7817734 | W20: 171.4309012 | Z20: 51.81199101
B21: 1994 | F21: Cumulative Increase: BAU Scenario (2010-2030) MT (avg) | H21: 2099.569322 | N21: Low Carbon Scenario-Official | O21: 2020 | P21: 92.39 | T21: 2028 | U21: 150.5720956 | V21: 205.1861265 | W21: 168.5732295 | Z21: 54.6140309
B22: 1995 | C22: 66.50039 | D22: Australia’s Sixth National Communication on Climate Change | F22: Cumulative Increase: Low Carbon Scenario (2010-2030) MT (avg) | H22: 1851.67413 | O22: 2030 | P22: 88.458 | T22: 2029 | U22: 147.2493863 | V22: 204.5922037 | W22: 165.7631938 | Z22: 57.34281737
B23: 2000 | C23: 72.78933 | D23: Australia’s Sixth National Communication on Climate Change | F23: Cumulative Reduction: BAU vs. Low Carbon Scenario (2010-2030) MT (avg) | H23: 247.8951916 | O23: 2030 | P23: 83 | T23: 2030 | U23: 144 | V23: 204 | W23: 163 | Z23: 60
B24: 2005 | C24: 78.42901 | D24: Australia’s Sixth National Communication on Climate Change | F24: Cumulative Gap: Low Carbon Scenario vs. INDC Target (2010-2030) MT | H24: 371.3763959 | N24: Future (BAU) -Other studies | O24: 2020 | P24: 105 | W24: 4070.609773 | X24: 230.8742269
B25: 2010 | C25: 83.61163 | D25: Australia’s Sixth National Communication on Climate Change | J25: Figure 1: Projected Transport Emissions: BAU, Low Carbon Scenario, and Transport Target | O25: 2050 | P25: 140 | U25: 3839.735547 | V25: 4467.818081 | W25: 628.0825348
B26: 2011 | C26: 85.475 | D26: Australia’s Sixth National Communication on Climate Change | O26: 2030 | P26: 115
Q27: -0.1377777778
J28: Figure 1: Projected Transport Emissions: BAU, Low Carbon Scenario, and Indicative Target
Q30: -1
R33: Year | S33: % Increase
Q34: Total Country CO2e Emissions (BAU) | R34: 1990-2011 | S34: 0.08724827863
R35: 2011-2030 | S35: 0.05585556541
N36: Low Carbon Scenario (studies) | O36: 2050 | P36: 37 | Q36: Total Transport CO2e Emissions (BAU) | R36: 1990-2011 | S36: 0.04033467593
O37: 2050 | P37: 32 | R37: 2011-2030 | S37: -0.0921724842
Q38: Transport Mitigation Potential (below BAU @ 2030) | S38: -0.2941176471 | T38: Decrease
Q39: Transport Mitigation Potential (below INDC target) | S39: -0.1165644172
A40: Table 2: Mitigation Potential Studies
A41: Study Title | C41: Deep decarbonization pathways project | D41: Greenhouse gas emissions from Australian transport: projections to 2020 | E41: Estimating the Emission Reduction Potential of Australian Transport | F41: Australia’s emissions outlook
A42: Quantification by Institute | C42: IDDRI, SDSN | D42: BITRE | E42: Australian Low Carbon Transport Forum | F42: Climate Change Authority
A43: Methodology/Model Used | C43: Bottom-up | D43: Bottom-up
A44: Base Year | C44: 2012 | D44: 2007 | F44: 1990
A45: Base Year CO2e Emissions (MT) | B45: Road
B46: Railways
B47: Waterways
B48: Aviation
B49: Passenger
B50: Freight
B51: Urban
B52: Total | C52: 87 | D52: 85.803 | F52: 61
A53: Forecast Year | D53: 2020 | E53: 2050 | F53: 2030
A54: Forecast CO2 Emissions (MT) BAU | B54: Road
B55: Railways
B56: Waterways
B57: Aviation
B58: Passenger
B59: Freight
B60: Urban
B61: Total | D61: 105.15 | E61: 140 | F61: 105
A62: Forecast Year | C62: 2050 | E62: 2050 | F62: 2030
A63: Forecast CO2 Emissions with Mitigation Measures (MT) | B63: Road
B64: Railways
B65: Waterways
B66: Aviation
B67: Passenger
B68: Freight
B69: Urban
B70: Total | C70: 37 | E70: 32 | F70: 83
A71: % Projected Increase (BAU) | D71: =(D61/D52-1) -> 0.2254816265 | F71: =(F61/F52-1) -> 0.7213114754
A72: % Projected Decrease (With Mitigation Measures) | E72: =E70/E61-1 -> -0.7714285714 | F72: =F70/F61-1 -> -0.2095238095
A73: Mitigation Measures | C73: A substantial shift from internal combustion engine vehicles to electric and hybrid vehicles, Biofuels replace 50% of oil use in aviation, | D73: NA | E73: 47 abatement possibilities selected for ALCTF assessment. | F73: In this modelling, most of the projected transport emissions reductions due to price incentives result from reduced emissions intensity of heavy vehicles through gains in efficiency and increasing consumption of biofuels in place of liquid fossil fuels. Biofuels could play the largest role in reducing aviation emissions, which could offset strong increases in demand.
A79: TIER I FACTSHEET SOURCES
A81: Table 1: Historic and Projected Emissions
A82: Historic Emissions | B82: Submitted National Communications | C82: http://unfccc.int/national_reports/non-annex_i_natcom/submitted_natcom/items/653.php
B83: UNFCCC: INDCs as communicated by Parties | C83: http://www4.unfccc.int/submissions/indc/Submission%20Pages/submissions.aspx
B84: Submitted Biennial Update Reports | C84: http://unfccc.int/national_reports/non-annex_i_natcom/reporting_on_climate_change/items/8722.php
B85: The Climate Pledge INDC Tool | C85: http://infographics.pbl.nl/indc/
B86: CAIT Climate Data Explorer | C86: http://cait.wri.org/
B87: Climate Equity Reference Calculator | C87: http://gdrights.org/calculator-about/
B88: World Bank - World Development Indicators | C88: http://data.worldbank.org/data-catalog/world-development-indicators
B89: UNEP Pledge Pipeline Tool | C89: http://www.unep.org/climatechange/pledgepipeline/
B90: Climate Action Tracker | C90: http://climateactiontracker.org/
A91: BAU Emissions Projections | B91: Submitted National Communications | C91: http://unfccc.int/national_reports/non-annex_i_natcom/submitted_natcom/items/653.php
B92: UNFCCC: INDCs as communicated by Parties | C92: http://www4.unfccc.int/submissions/indc/Submission%20Pages/submissions.aspx
B93: Submitted Biennial Update Reports | C93: http://unfccc.int/national_reports/non-annex_i_natcom/reporting_on_climate_change/items/8722.php
B94: The Climate Pledge INDC Tool | C94: http://infographics.pbl.nl/indc/
B95: Climate Equity Reference Calculator | C95: http://gdrights.org/calculator-about/
B96: World Bank - World Development Indicators | C96: http://data.worldbank.org/data-catalog/world-development-indicators
B97: UNEP Pledge Pipeline Tool | C97: http://www.unep.org/climatechange/pledgepipeline/
B98: Climate Action Tracker | C98: http://climateactiontracker.org/
A99: INDC Targets | B99: UNFCCC: INDCs as communicated by Parties | C99: http://www4.unfccc.int/submissions/indc/Submission%20Pages/submissions.aspx
A101: Table 2: Mitigation Potential Studies
A102: Low Carbon Emission Projections | B102: SLoCaT Overview of Mitigation Potential Studies | C102: http://www.slocat.net/docs/1519
B103: Submitted National Communications | C103: http://unfccc.int/national_reports/annex_i_natcom/submitted_natcom/items/7742.php
A104: BAU Emissions Projections | B104: Submitted Biennial Reports | C104: http://unfccc.int/national_reports/biennial_reports_and_iar/submitted_biennial_reports/items/7550.php
B105: UNFCCC: INDCs as communicated by Parties | C105: http://www4.unfccc.int/submissions/indc/Submission%20Pages/submissions.aspx
A107: Table 3: Comparison of BAU/Low Carbon Scenarios and INDC Target
A108: Historic Emissions | B108: Submitted National Communications | C108: http://unfccc.int/national_reports/non-annex_i_natcom/submitted_natcom/items/653.php
B109: UNFCCC: INDCs as communicated by Parties | C109: http://www4.unfccc.int/submissions/indc/Submission%20Pages/submissions.aspx
B110: Submitted Biennial Update Reports | C110: http://unfccc.int/national_reports/non-annex_i_natcom/reporting_on_climate_change/items/8722.php
B111: The Climate Pledge INDC Tool | C111: http://infographics.pbl.nl/indc/
B112: CAIT Climate Data Explorer | C112: http://cait.wri.org/
B113: Climate Equity Reference Calculator | C113: http://gdrights.org/calculator-about/
B114: World Bank - World Development Indicators | C114: http://data.worldbank.org/data-catalog/world-development-indicators
B115: UNEP Pledge Pipeline Tool | C115: http://www.unep.org/climatechange/pledgepipeline/
B116: Climate Action Tracker | C116: http://climateactiontracker.org/
A117: BAU Emissions Projections | B117: Submitted National Communications | C117: http://unfccc.int/national_reports/non-annex_i_natcom/submitted_natcom/items/653.php
B118: UNFCCC: INDCs as communicated by Parties | C118: http://www4.unfccc.int/submissions/indc/Submission%20Pages/submissions.aspx
B119: Submitted Biennial Update Reports | C119: http://unfccc.int/national_reports/non-annex_i_natcom/reporting_on_climate_change/items/8722.php
B120: The Climate Pledge INDC Tool | C120: http://infographics.pbl.nl/indc/
B121: Climate Equity Reference Calculator | C121: http://gdrights.org/calculator-about/
B122: World Bank - World Development Indicators | C122: http://data.worldbank.org/data-catalog/world-development-indicators
B123: UNEP Pledge Pipeline Tool | C123: http://www.unep.org/climatechange/pledgepipeline/
B124: Climate Action Tracker | C124: http://climateactiontracker.org/
A125: Low Carbon Emission Projections | B125: SLoCaT Overview of Mitigation Potential Studies | C125: http://www.slocat.net/docs/1519
A126: INDC Targets | B126: UNFCCC: INDCs as communicated by Parties | C126: http://www4.unfccc.int/submissions/indc/Submission%20Pages/submissions.aspx
A128: Figure 1: Projected Transport Emissions: BAU, Low Carbon Scenario, and Indicative Target
A129: Derived from Table 3: Comparison of BAU/Low Carbon Scenarios and INDC Target

Sheet Austria
U1: -2.435018982 | V1: -0.7495472463 | W1: -1.66695253
A2: Table 1: Historic and Projected Emissions | U2: -2.206723146 | V2: -0.2894556358
A3: Country | C3: Austria | F3: Table 3: Comparison of BAU/Low Carbon Scenarios and INDC Target | T3: 2010 | U3: 228.138 | V3: 228.138 | W3: 228.138 | Z3: 0
A4: Economy-Wide CO2e Emissions Target | B4: National Communication | C4: 20% reduction of 1990 by 2020 | F4: Transport CO2 Summary | H4: MT | T4: 2011 | U4: 224.71229 | V4: 224.71229 | W4: 224.3350478 | Z4: 0
B5: BUR | C5: 20% reduction from 1990 by 2020 | F5: Transport CO2 (MT)- (avg baseline) | G5: 1990 | H5: 13.7714 | T5: 2012 | U5: 219.2405031 | V5: 223.0279652 | W5: 220.5954891 | Z5: 3.787462134
B6: Other National Document/Pledge | C6: 30% reduction by 2020 compared to 1990 levels | G6: 2000 | H6: 18.62084 | T6: 2013 | U6: 213.9019552 | V6: 221.3562652 | W6: 216.918267 | Z6: 7.454310028
B7: INDC Unconditional Reduction | G7: 2010 | H7: 22.2042 | T7: 2014 | U7: 208.693402 | V7: 219.6970955 | W7: 213.3023425 | Z7: 11.00369345
B8: INDC Conditional Reduction | G8: 2011 | H8: 21.75007 | P8: CO2e Emissions (MT) | T8: 2015 | U8: 203.6116781 | V8: 218.0503619 | W8: 209.7466937 | Z8: 14.43868387
B9: INDC - Any other target mentioned | E9: ` | G9: 2020 | H9: 23 | O9: 1990 | P9: 13.7714 | T9: 2016 | U9: 198.653695 | V9: 216.4159714 | W9: 206.2503158 | Z9: 17.7622764
B10: INDC - Long Term Target | G10: 2030 | H10: 22.78 | O10: 1994 | T10: 2017 | U10: 193.8164399 | V10: 214.7938315 | W10: 202.812221 | Z10: 20.97739163
A11: 2030 Economy-Wide CO2e Emissions Target (MT) | C11: 46.8948 | G11: 2050 | O11: 1995 | P11: 15.67507 | T11: 2018 | U11: 189.0969728 | V11: 213.1838502 | W11: 199.4314375 | Z11: 24.08687748
A12: Derived 2030 Transport CO2 Emissions Target ( based on share of total emissions @ 2010) | C12: 12.31189686 | F12: Low Carbon Transport(MT) (avg low carbon baseline) | G12: 2020 | H12: 18.55 | O12: 2000 | P12: 18.62084 | T12: 2019 | U12: 184.4924256 | V12: 211.5859366 | W12: 196.1070101 | Z12: 27.09351098
G13: 2030 | H13: 19.19 | O13: 2005 | P13: 24.67912 | T13: 2020 | U13: 180 | V13: 210 | W13: 192.8379994 | Z13: 30
G14: 2050 | O14: 2010 | P14: 22.2042 | T14: 2021 | U14: 176.0278983 | V14: 209.3921432 | W14: 189.6234815 | Z14: 33.36424483
A15: OFFICIAL and IEA ESTIMATES | B15: Base Year | C15: CO2e Emissions (MT) | D15: Source | F15: Average Reduction of Low Carbon estimate with BAU (%) | G15: 2030 | H15: -16 | O15: 2011 | P15: 21.75007 | T15: 2022 | U15: 172.14345 | V15: 208.7860458 | W15: 186.462548 | Z15: 36.64259584
A16: Economy-Wide CO2e Emissions : Historical | B16: 1990 | C16: 78.158 | D16: BUR | T16: 2023 | U16: 168.3447206 | V16: 208.1817028 | W16: 183.3543059 | Z16: 39.83698222
B17: 2011 | C17: 82.84387 | D17: National Communication | N17: Future (BAU) -Official | T17: 2024 | U17: 164.6298187 | V17: 207.5791092 | W17: 180.2978766 | Z17: 42.94929046
A18: Economy-Wide CO2e Emissions : Projections | B18: 2020 | C18: 81.635 | D18: BUR | F18: Gap Between INDC Target and Average Low Carbon Scenario (%) | G18: Average | H18: 0.5586550329 | O18: 2020 | P18: 23.8 | T18: 2025 | U18: 160.9968944 | V18: 206.9782597 | W18: 177.2923966 | Z18: 45.98136535
B19: 2030 | C19: 84.034 | D19: BUR | F19: Transport CO2 Target (MT) | G19: INDC | H19: 12.31189686 | O19: 2030 | P19: 23.964 | T19: 2026 | U19: 157.4441386 | V19: 206.3791495 | W19: 174.3370165 | Z19: 48.93501084
A20: Transport Sector : Historic CO2e Emissions | B20: 1990 | C20: 13.7714 | D20: BUR | F20: Gap Between INDC Target and Average Low Carbon Scenario in Million Tons @ 2030 | H20: 6.878103143 | T20: 2027 | U20: 153.9697824 | V20: 205.7817734 | W20: 171.4309012 | Z20: 51.81199101
B21: 1994 | F21: Cumulative Increase: BAU Scenario (2010-2030) MT (avg) | H21: 474.691073 | N21: Low Carbon Scenario-Official | O21: 2020 | P21: 21.1113 | T21: 2028 | U21: 150.5720956 | V21: 205.1861265 | W21: 168.5732295 | Z21: 54.6140309
B22: 1995 | C22: 15.67507 | D22: BUR | F22: Cumulative Increase: Low Carbon Scenario (2010-2030) MT (avg) | H22: 412.3295559 | O22: 2030 | P22: 21.24661 | T22: 2029 | U22: 147.2493863 | V22: 204.5922037 | W22: 165.7631938 | Z22: 57.34281737
B23: 2000 | C23: 18.62084 | D23: BUR | F23: Cumulative Reduction: BAU vs. Low Carbon Scenario (2010-2030) MT (avg) | H23: 62.36151707 | T23: 2030 | U23: 144 | V23: 204 | W23: 163 | Z23: 60
B24: 2005 | C24: 24.67912 | D24: BUR | F24: Cumulative Gap: Low Carbon Scenario vs. INDC Target (2010-2030) MT | H24: -59.55308119 | N24: Future (BAU) -Other studies | O24: 2015 | P24: 25.5 | W24: 4070.609773 | X24: 230.8742269
B25: 2010 | C25: 22.2042 | D25: BUR | J25: Figure 1: Projected Transport Emissions: BAU, Low Carbon Scenario, and Transport Target | O25: 2020 | P25: 25.2 | U25: 3839.735547 | V25: 4467.818081 | W25: 628.0825348
B26: 2011 | C26: 21.75007 | D26: National Communication | O26: 2025 | P26: 24
O27: 2030 | P27: 23.4 | Q27: -0.1377777778
J28: Figure 1: Projected Transport Emissions: BAU, Low Carbon Scenario, and Indicative Targe | O28: 2035 | P28: 23.3
O29: 2040 | P29: 23.3
O30: 2045 | P30: 23.3 | Q30: -1
O31: 2050 | P31: 23.4
O32: 2020 | P32: 20
O33: 2030 | P33: 21 | R33: Year | S33: % Increase
Q34: Total Country CO2e Emissions (BAU) | R34: 1990-2011 | S34: 0.08724827863
R35: 2011-2030 | S35: 0.05585556541
N36: Low Carbon Scenario (studies) | O36: 2030 | P36: 20.34 | Q36: Total Transport CO2e Emissions (BAU) | R36: 1990-2011 | S36: 0.04033467593
O37: 2020 | P37: 16 | R37: 2011-2030 | S37: -0.0921724842
O38: 2030 | P38: 16 | Q38: Transport Mitigation Potential (below BAU @ 2030) | S38: -0.2941176471 | T38: Decrease
Q39: Transport Mitigation Potential (below INDC target) | S39: -0.1165644172
A40: Table 2: Mitigation Potential Studies
A41: Study Title | C41: EU ENERGY, TRANSPORT AND GHG EMISSIONS TRENDS TO 2050 | D41: The ITREN-2030
A42: Quantification by Institute | C42: EUROPEAN COMMISSION Directorate-General for Energy, Directorate-General for Climate Action and Directorate-General for Mobility and Transport | D42: Fraunhofer ISI
A43: Methodology/Model Used | C43: Bottom-up (Sultan Model) | D43: Bottom-up
A44: Base Year | C44: 2000 | D44: 2005
A45: Base Year CO2e Emissions (MT) | B45: Road
B46: Railways
B47: Waterways | O47: 1990 | P47: 13.7714
B48: Aviation
B49: Passenger
B50: Freight
B51: Urban
B52: Total | C52: 20.2 | D52: 18
A53: Forecast Year | C53: 2030 | D53: 2030
A54: Forecast CO2 Emissions (MT) BAU | B54: Road
B55: Railways
B56: Waterways
B57: Aviation
B58: Passenger
B59: Freight
B60: Urban
B61: Total | C61: 23.4 | D61: 21
A62: Forecast Year | C62: 2030 | D62: 2030
A63: Forecast CO2 Emissions with Mitigation Measures (MT) | B63: Road
B64: Railways
B65: Waterways
B66: Aviation
B67: Passenger
B68: Freight
B69: Urban
B70: Total | C70: 20.34 | D70: 16
A71: % Projected Increase (BAU) | C71: 0.1584158416 | D71: 0.1666666667
A72: % Projected Decrease (With Mitigation Measures) | C72: -0.1307692308 | D72: -0.2380952381
A73: Mitigation Measures | C73: Aggressive Fuel Economy Standards for LDV and HDV
A79: TIER I FACTSHEET SOURCES
A81: Table 1: Historic and Projected Emissions
A82: Historic Emissions | B82: Submitted National Communications | C82: http://unfccc.int/national_reports/non-annex_i_natcom/submitted_natcom/items/653.php
B83: UNFCCC: INDCs as communicated by Parties | C83: http://www4.unfccc.int/submissions/indc/Submission%20Pages/submissions.aspx
B84: Submitted Biennial Update Reports | C84: http://unfccc.int/national_reports/non-annex_i_natcom/reporting_on_climate_change/items/8722.php
B85: The Climate Pledge INDC Tool | C85: http://infographics.pbl.nl/indc/
B86: CAIT Climate Data Explorer | C86: http://cait.wri.org/
B87: Climate Equity Reference Calculator | C87: http://gdrights.org/calculator-about/
B88: World Bank - World Development Indicators | C88: http://data.worldbank.org/data-catalog/world-development-indicators
B89: UNEP Pledge Pipeline Tool | C89: http://www.unep.org/climatechange/pledgepipeline/
B90: Climate Action Tracker | C90: http://climateactiontracker.org/
A91: BAU Emissions Projections | B91: Submitted National Communications | C91: http://unfccc.int/national_reports/non-annex_i_natcom/submitted_natcom/items/653.php
B92: UNFCCC: INDCs as communicated by Parties | C92: http://www4.unfccc.int/submissions/indc/Submission%20Pages/submissions.aspx
B93: Submitted Biennial Update Reports | C93: http://unfccc.int/national_reports/non-annex_i_natcom/reporting_on_climate_change/items/8722.php
B94: The Climate Pledge INDC Tool | C94: http://infographics.pbl.nl/indc/
B95: Climate Equity Reference Calculator | C95: http://gdrights.org/calculator-about/
B96: World Bank - World Development Indicators | C96: http://data.worldbank.org/data-catalog/world-development-indicators
B97: UNEP Pledge Pipeline Tool | C97: http://www.unep.org/climatechange/pledgepipeline/
B98: Climate Action Tracker | C98: http://climateactiontracker.org/
A99: INDC Targets | B99: UNFCCC: INDCs as communicated by Parties | C99: http://www4.unfccc.int/submissions/indc/Submission%20Pages/submissions.aspx
A101: Table 2: Mitigation Potential Studies
A102: Low Carbon Emission Projections | B102: SLoCaT Overview of Mitigation Potential Studies | C102: http://www.slocat.net/docs/1519
B103: Submitted National Communications | C103: http://unfccc.int/national_reports/annex_i_natcom/submitted_natcom/items/7742.php
A104: BAU Emissions Projections | B104: Submitted Biennial Reports | C104: http://unfccc.int/national_reports/biennial_reports_and_iar/submitted_biennial_reports/items/7550.php
B105: UNFCCC: INDCs as communicated by Parties | C105: http://www4.unfccc.int/submissions/indc/Submission%20Pages/submissions.aspx
A107: Table 3: Comparison of BAU/Low Carbon Scenarios and INDC Target
A108: Historic Emissions | B108: Submitted National Communications | C108: http://unfccc.int/national_reports/non-annex_i_natcom/submitted_natcom/items/653.php
B109: UNFCCC: INDCs as communicated by Parties | C109: http://www4.unfccc.int/submissions/indc/Submission%20Pages/submissions.aspx
B110: Submitted Biennial Update Reports | C110: http://unfccc.int/national_reports/non-annex_i_natcom/reporting_on_climate_change/items/8722.php
B111: The Climate Pledge INDC Tool | C111: http://infographics.pbl.nl/indc/
B112: CAIT Climate Data Explorer | C112: http://cait.wri.org/
B113: Climate Equity Reference Calculator | C113: http://gdrights.org/calculator-about/
B114: World Bank - World Development Indicators | C114: http://data.worldbank.org/data-catalog/world-development-indicators
B115: UNEP Pledge Pipeline Tool | C115: http://www.unep.org/climatechange/pledgepipeline/
B116: Climate Action Tracker | C116: http://climateactiontracker.org/
A117: BAU Emissions Projections | B117: Submitted National Communications | C117: http://unfccc.int/national_reports/non-annex_i_natcom/submitted_natcom/items/653.php
B118: UNFCCC: INDCs as communicated by Parties | C118: http://www4.unfccc.int/submissions/indc/Submission%20Pages/submissions.aspx
B119: Submitted Biennial Update Reports | C119: http://unfccc.int/national_reports/non-annex_i_natcom/reporting_on_climate_change/items/8722.php
B120: The Climate Pledge INDC Tool | C120: http://infographics.pbl.nl/indc/
B121: Climate Equity Reference Calculator | C121: http://gdrights.org/calculator-about/
B122: World Bank - World Development Indicators | C122: http://data.worldbank.org/data-catalog/world-development-indicators
B123: UNEP Pledge Pipeline Tool | C123: http://www.unep.org/climatechange/pledgepipeline/
B124: Climate Action Tracker | C124: http://climateactiontracker.org/
A125: Low Carbon Emission Projections | B125: SLoCaT Overview of Mitigation Potential Studies | C125: http://www.slocat.net/docs/1519
A126: INDC Targets | B126: UNFCCC: INDCs as communicated by Parties | C126: http://www4.unfccc.int/submissions/indc/Submission%20Pages/submissions.aspx
A128: Figure 1: Projected Transport Emissions: BAU, Low Carbon Scenario, and Indicative Target
A129: Derived from Table 3: Comparison of BAU/Low Carbon Scenarios and INDC Target

Sheet Bangladesh
U1: -2.435018982 | V1: -0.7495472463 | W1: -1.66695253
A2: Table 1: Historic and Projected Emissions | U2: -2.206723146 | V2: -0.2894556358
A3: Country | C3: Bangladesh | F3: Table 3: Comparison of BAU/Low Carbon Scenarios and INDC Target | T3: 2010 | U3: 228.138 | V3: 228.138 | W3: 228.138 | Z3: 0
A4: Economy-Wide CO2e Emissions Target | B4: National Communication | F4: Transport CO2 Summary | H4: MT | T4: 2011 | U4: 224.71229 | V4: 224.71229 | W4: 224.3350478 | Z4: 0
B5: BUR | F5: Transport CO2 (MT)- (avg baseline) | G5: 1990 | H5: 1.65 | T5: 2012 | U5: 219.2405031 | V5: 223.0279652 | W5: 220.5954891 | Z5: 3.787462134
B6: Other National Document/Pledge | G6: 2000 | H6: 3 | T6: 2013 | U6: 213.9019552 | V6: 221.3562652 | W6: 216.918267 | Z6: 7.454310028
B7: INDC Unconditional Reduction | C7: 5% below BAU in 2030 | G7: 2010 | H7: 8.4 | T7: 2014 | U7: 208.693402 | V7: 219.6970955 | W7: 213.3023425 | Z7: 11.00369345
B8: INDC Conditional Reduction | C8: 15% below BAU in 2030 | G8: 2011 | H8: 8.4 | P8: CO2e Emissions (MT) | T8: 2015 | U8: 203.6116781 | V8: 218.0503619 | W8: 209.7466937 | Z8: 14.43868387
B9: INDC - Any other target mentioned | E9: ` | G9: 2020 | H9: 12.12 | O9: 1990 | P9: 1.65 | T9: 2016 | U9: 198.653695 | V9: 216.4159714 | W9: 206.2503158 | Z9: 17.7622764
B10: INDC - Long Term Target | G10: 2030 | H10: 25.79 | O10: 1994 | T10: 2017 | U10: 193.8164399 | V10: 214.7938315 | W10: 202.812221 | Z10: 20.97739163
A11: 2030 Economy-Wide CO2e Emissions Target (MT) | C11: 198.9 | G11: 2050 | H11: 105 | O11: 1995 | T11: 2018 | U11: 189.0969728 | V11: 213.1838502 | W11: 199.4314375 | Z11: 24.08687748
A12: Derived 2030 Transport CO2 Emissions Target ( based on share of total emissions @ 2010) | C12: 26.105625 | F12: Low Carbon Transport(MT) (avg low carbon baseline) | G12: 2020 | H12: 7.5 | O12: 2000 | P12: 3 | T12: 2019 | U12: 184.4924256 | V12: 211.5859366 | W12: 196.1070101 | Z12: 27.09351098
G13: 2030 | H13: 13.91 | O13: 2005 | P13: 5.5 | T13: 2020 | U13: 180 | V13: 210 | W13: 192.8379994 | Z13: 30
G14: 2050 | H14: 21 | O14: 2010 | T14: 2021 | U14: 176.0278983 | V14: 209.3921432 | W14: 189.6234815 | Z14: 33.36424483
A15: OFFICIAL and IEA ESTIMATES | B15: Base Year | C15: CO2e Emissions (MT) | D15: Source | F15: Average Reduction of Low Carbon estimate with BAU (%) | G15: 2030 | H15: -46 | O15: 2011 | P15: 8.4 | T15: 2022 | U15: 172.14345 | V15: 208.7860458 | W15: 186.462548 | Z15: 36.64259584
A16: Economy-Wide CO2e Emissions : Historical | B16: 1990 | C16: 87.12 | D16: CAIT Database | T16: 2023 | U16: 168.3447206 | V16: 208.1817028 | W16: 183.3543059 | Z16: 39.83698222
B17: 2011 | C17: 64 | D17: CAIT Database | N17: Future (BAU) -Official | T17: 2024 | U17: 164.6298187 | V17: 207.5791092 | W17: 180.2978766 | Z17: 42.94929046
A18: Economy-Wide CO2e Emissions : Projections | B18: 2020 | C18: 115 | D18: INDC | F18: Gap Between INDC Target and Average Low Carbon Scenario (%) | G18: Average | H18: -0.4671646436 | O18: 2020 | T18: 2025 | U18: 160.9968944 | V18: 206.9782597 | W18: 177.2923966 | Z18: 45.98136535
B19: 2030 | C19: 234 | D19: INDC | F19: Transport CO2 Target (MT) | G19: INDC | H19: 26.105625 | O19: 2030 | P19: 24.57 | T19: 2026 | U19: 157.4441386 | V19: 206.3791495 | W19: 174.3370165 | Z19: 48.93501084
A20: Transport Sector : Historic CO2e Emissions | B20: 1990 | C20: 1.65 | D20: World Bank Indicators | F20: Gap Between INDC Target and Average Low Carbon Scenario in Million Tons @ 2030 | H20: -12.195625 | O20: 2020 | T20: 2027 | U20: 153.9697824 | V20: 205.7817734 | W20: 171.4309012 | Z20: 51.81199101
B21: 1994 | F21: Cumulative Increase: BAU Scenario (2010-2030) MT (avg) | H21: 297.941512 | N21: Low Carbon Scenario-Official | O21: 2020 | T21: 2028 | U21: 150.5720956 | V21: 205.1861265 | W21: 168.5732295 | Z21: 54.6140309
B22: 1995 | F22: Cumulative Increase: Low Carbon Scenario (2010-2030) MT (avg) | H22: 194.8336777 | O22: 2030 | T22: 2029 | U22: 147.2493863 | V22: 204.5922037 | W22: 165.7631938 | Z22: 57.34281737
B23: 2000 | C23: 3 | D23: World Bank Indicators | F23: Cumulative Reduction: BAU vs. Low Carbon Scenario (2010-2030) MT (avg) | H23: 103.1078343 | T23: 2030 | U23: 144 | V23: 204 | W23: 163 | Z23: 60
B24: 2005 | C24: 5.5 | D24: World Bank Indicators | F24: Cumulative Gap: Low Carbon Scenario vs. INDC Target (2010-2030) MT | H24: 134.7935802 | N24: Future (BAU) -Other studies | O24: 2020 | P24: 15 | W24: 4070.609773 | X24: 230.8742269
B25: 2010 | J25: Figure 1: Projected Transport Emissions: BAU, Low Carbon Scenario, and Transport Target | O25: 2020 | P25: 9.25 | U25: 3839.735547 | V25: 4467.818081 | W25: 628.0825348
B26: 2011 | C26: 8.4 | D26: World Bank Indicators
O27: 2030 | P27: 28 | Q27: -0.1377777778
J28: Figure 1: Projected Transport Emissions: BAU, Low Carbon Scenario, and Indicative Targe | O28: 2030 | P28: 30
O29: 2030 | P29: 20.6
O30: 2035 | P30: 39.5 | Q30: -1
O31: 2040 | P31: 54.8
O32: 2045 | P32: 76
O33: 2050 | P33: 105 | R33: Year | S33: % Increase
Q34: Total Country CO2e Emissions (BAU) | R34: 1990-2011 | S34: 0.08724827863
R35: 2011-2030 | S35: 0.05585556541
N36: Low Carbon Scenario (studies) | O36: 2020 | P36: 9.1 | Q36: Total Transport CO2e Emissions (BAU) | R36: 1990-2011 | S36: 0.04033467593
O37: 2020 | P37: 5.89 | R37: 2011-2030 | S37: -0.0921724842
O38: 2025 | P38: 10.28 | Q38: Transport Mitigation Potential (below BAU @ 2030) | S38: -0.2941176471 | T38: Decrease
O39: 2030 | P39: 12.35 | Q39: Transport Mitigation Potential (below INDC target) | S39: -0.1165644172
A40: Table 2: Mitigation Potential Studies | O40: 2030 | P40: 14.05
A41: Study Title | C41: Bangladesh 2050 Energy, Food and Emissions Pathways | D41: Bangladesh 2012 Low Carbon society | O41: 2030 | P41: 15.33
A42: Quantification by Institute | C42: Bangladesh Ministry of Power, Energy and Mineral Resources (MPEMR) & University of Cardiff | D42: Department of Environment, Kyoto University, Japan Bangladesh, | O42: 2035 | P42: 16.08
A43: Methodology/Model Used | C43: Bottom-up | D43: Bottom-up | O43: 2040 | P43: 20.42
A44: Base Year | C44: 2010 | D44: 2005 | O44: 2045 | P44: 24.2
A45: Base Year CO2e Emissions (MT) | B45: Road | O45: 2050 | P45: 20.99
B46: Railways
B47: Waterways
B48: Aviation
B49: Passenger
B50: Freight
B51: Urban
B52: Total | C52: 7.61 | D52: 1.6
A53: Forecast Year | C53: 2050 | D53: 2025
A54: Forecast CO2 Emissions (MT) BAU | B54: Road
B55: Railways
B56: Waterways
B57: Aviation
B58: Passenger
B59: Freight
B60: Urban
B61: Total | C61: 105.01 | D61: 16.6
A62: Forecast Year | C62: 2050 | D62: 2025
A63: Forecast CO2 Emissions with Mitigation Measures (MT) | B63: Road
B64: Railways
B65: Waterways
B66: Aviation
B67: Passenger
B68: Freight
B69: Urban
B70: Total | C70: 20.99 | D70: 9.1
A71: % Projected Increase (BAU) | C71: 12.79894875 | D71: 9.375
A72: % Projected Decrease (With Mitigation Measures) | C72: -0.8001142748 | D72: -0.4518072289
A73: Mitigation Measures | C73: Domestic transport Policy, Zero emission transport, Fuel cell or batteries, Shift Freight off roads and International aviation | D73: In 2025CM, under low-carbon measures, modal shift to railway was introduced. In addition, pedestrian road for walk and bicycle can be recommended as potential measure to reduce traffic jam and provide people a convenient and safe transport. Thus, 2025CM assumed modal share of walk will also be increased from BaU.
A79: TIER I FACTSHEET SOURCES
A81: Table 1: Historic and Projected Emissions
A82: Historic Emissions | B82: Submitted National Communications | C82: http://unfccc.int/national_reports/non-annex_i_natcom/submitted_natcom/items/653.php
B83: UNFCCC: INDCs as communicated by Parties | C83: http://www4.unfccc.int/submissions/indc/Submission%20Pages/submissions.aspx
B84: Submitted Biennial Update Reports | C84: http://unfccc.int/national_reports/non-annex_i_natcom/reporting_on_climate_change/items/8722.php
B85: The Climate Pledge INDC Tool | C85: http://infographics.pbl.nl/indc/
B86: CAIT Climate Data Explorer | C86: http://cait.wri.org/
B87: Climate Equity Reference Calculator | C87: http://gdrights.org/calculator-about/
B88: World Bank - World Development Indicators | C88: http://data.worldbank.org/data-catalog/world-development-indicators
B89: UNEP Pledge Pipeline Tool | C89: http://www.unep.org/climatechange/pledgepipeline/
B90: Climate Action Tracker | C90: http://climateactiontracker.org/
A91: BAU Emissions Projections | B91: Submitted National Communications | C91: http://unfccc.int/national_reports/non-annex_i_natcom/submitted_natcom/items/653.php
B92: UNFCCC: INDCs as communicated by Parties | C92: http://www4.unfccc.int/submissions/indc/Submission%20Pages/submissions.aspx
B93: Submitted Biennial Update Reports | C93: http://unfccc.int/national_reports/non-annex_i_natcom/reporting_on_climate_change/items/8722.php
B94: The Climate Pledge INDC Tool | C94: http://infographics.pbl.nl/indc/
B95: Climate Equity Reference Calculator | C95: http://gdrights.org/calculator-about/
B96: World Bank - World Development Indicators | C96: http://data.worldbank.org/data-catalog/world-development-indicators
B97: UNEP Pledge Pipeline Tool | C97: http://www.unep.org/climatechange/pledgepipeline/
B98: Climate Action Tracker | C98: http://climateactiontracker.org/
A99: INDC Targets | B99: UNFCCC: INDCs as communicated by Parties | C99: http://www4.unfccc.int/submissions/indc/Submission%20Pages/submissions.aspx
A101: Table 2: Mitigation Potential Studies
A102: Low Carbon Emission Projections | B102: SLoCaT Overview of Mitigation Potential Studies | C102: http://www.slocat.net/docs/1519
B103: Submitted National Communications | C103: http://unfccc.int/national_reports/annex_i_natcom/submitted_natcom/items/7742.php
A104: BAU Emissions Projections | B104: Submitted Biennial Reports | C104: http://unfccc.int/national_reports/biennial_reports_and_iar/submitted_biennial_reports/items/7550.php
B105: UNFCCC: INDCs as communicated by Parties | C105: http://www4.unfccc.int/submissions/indc/Submission%20Pages/submissions.aspx
A107: Table 3: Comparison of BAU/Low Carbon Scenarios and INDC Target
A108: Historic Emissions | B108: Submitted National Communications | C108: http://unfccc.int/national_reports/non-annex_i_natcom/submitted_natcom/items/653.php
B109: UNFCCC: INDCs as communicated by Parties | C109: http://www4.unfccc.int/submissions/indc/Submission%20Pages/submissions.aspx
B110: Submitted Biennial Update Reports | C110: http://unfccc.int/national_reports/non-annex_i_natcom/reporting_on_climate_change/items/8722.php
B111: The Climate Pledge INDC Tool | C111: http://infographics.pbl.nl/indc/
B112: CAIT Climate Data Explorer | C112: http://cait.wri.org/
B113: Climate Equity Reference Calculator | C113: http://gdrights.org/calculator-about/
B114: World Bank - World Development Indicators | C114: http://data.worldbank.org/data-catalog/world-development-indicators
B115: UNEP Pledge Pipeline Tool | C115: http://www.unep.org/climatechange/pledgepipeline/
B116: Climate Action Tracker | C116: http://climateactiontracker.org/
A117: BAU Emissions Projections | B117: Submitted National Communications | C117: http://unfccc.int/national_reports/non-annex_i_natcom/submitted_natcom/items/653.php
B118: UNFCCC: INDCs as communicated by Parties | C118: http://www4.unfccc.int/submissions/indc/Submission%20Pages/submissions.aspx
B119: Submitted Biennial Update Reports | C119: http://unfccc.int/national_reports/non-annex_i_natcom/reporting_on_climate_change/items/8722.php
B120: The Climate Pledge INDC Tool | C120: http://infographics.pbl.nl/indc/
B121: Climate Equity Reference Calculator | C121: http://gdrights.org/calculator-about/
B122: World Bank - World Development Indicators | C122: http://data.worldbank.org/data-catalog/world-development-indicators
B123: UNEP Pledge Pipeline Tool | C123: http://www.unep.org/climatechange/pledgepipeline/
B124: Climate Action Tracker | C124: http://climateactiontracker.org/
A125: Low Carbon Emission Projections | B125: SLoCaT Overview of Mitigation Potential Studies | C125: http://www.slocat.net/docs/1519
A126: INDC Targets | B126: UNFCCC: INDCs as communicated by Parties | C126: http://www4.unfccc.int/submissions/indc/Submission%20Pages/submissions.aspx
A128: Figure 1: Projected Transport Emissions: BAU, Low Carbon Scenario, and Indicative Target
A129: Derived from Table 3: Comparison of BAU/Low Carbon Scenarios and INDC Target

Sheet Belgium
U1: -2.435018982 | V1: -0.7495472463 | W1: -1.66695253
A2: Table 1: Historic and Projected Emissions | U2: -2.206723146 | V2: -0.2894556358
A3: Country | C3: Belgium | F3: Table 3: Comparison of BAU/Low Carbon Scenarios and INDC Target | T3: 2010 | U3: 228.138 | V3: 228.138 | W3: 228.138 | Z3: 0
A4: Economy-Wide CO2e Emissions Target | B4: National Communication | C4: 20% of 1990 by 2020 | F4: Transport CO2 Summary | H4: MT | T4: 2011 | U4: 224.71229 | V4: 224.71229 | W4: 224.3350478 | Z4: 0
B5: BUR | F5: Transport CO2 (MT)- (avg baseline) | G5: 1990 | H5: 20.81525 | T5: 2012 | U5: 219.2405031 | V5: 223.0279652 | W5: 220.5954891 | Z5: 3.787462134
B6: Other National Document/Pledge | G6: 2000 | H6: 24.8685 | T6: 2013 | U6: 213.9019552 | V6: 221.3562652 | W6: 216.918267 | Z6: 7.454310028
B7: INDC Unconditional Reduction | C7: 40% reduction in 2030 compared to 1990 | G7: 2010 | H7: 27.1283 | T7: 2014 | U7: 208.693402 | V7: 219.6970955 | W7: 213.3023425 | Z7: 11.00369345
B8: INDC Conditional Reduction | G8: 2011 | H8: 23.565 | P8: CO2e Emissions (MT) | T8: 2015 | U8: 203.6116781 | V8: 218.0503619 | W8: 209.7466937 | Z8: 14.43868387
B9: INDC - Any other target mentioned | E9: ` | G9: 2020 | H9: 24.22 | O9: 1990 | P9: 20.81525 | T9: 2016 | U9: 198.653695 | V9: 216.4159714 | W9: 206.2503158 | Z9: 17.7622764
B10: INDC - Long Term Target | G10: 2030 | H10: 24.32 | O10: 1994 | T10: 2017 | U10: 193.8164399 | V10: 214.7938315 | W10: 202.812221 | Z10: 20.97739163
A11: 2030 Economy-Wide CO2e Emissions Target (MT) | C11: 85.932294 | G11: 2050 | H11: 27.05 | O11: 1995 | P11: 22.8936 | T11: 2018 | U11: 189.0969728 | V11: 213.1838502 | W11: 199.4314375 | Z11: 24.08687748
A12: Derived 2030 Transport CO2 Emissions Target ( based on share of total emissions @ 2010) | C12: 17.67120385 | F12: Low Carbon Transport(MT) (avg low carbon baseline) | G12: 2020 | H12: 21 | O12: 2000 | P12: 24.8685 | T12: 2019 | U12: 184.4924256 | V12: 211.5859366 | W12: 196.1070101 | Z12: 27.09351098
G13: 2030 | H13: 18.4 | O13: 2005 | P13: 26.3536 | T13: 2020 | U13: 180 | V13: 210 | W13: 192.8379994 | Z13: 30
G14: 2050 | H14: 4 | O14: 2010 | P14: 27.1283 | T14: 2021 | U14: 176.0278983 | V14: 209.3921432 | W14: 189.6234815 | Z14: 33.36424483
A15: OFFICIAL and IEA ESTIMATES | B15: Base Year | C15: CO2e Emissions (MT) | D15: Source | F15: Average Reduction of Low Carbon estimate with BAU (%) | G15: 2030 | H15: -24 | O15: 2011 | P15: 23.565 | T15: 2022 | U15: 172.14345 | V15: 208.7860458 | W15: 186.462548 | Z15: 36.64259584
A16: Economy-Wide CO2e Emissions : Historical | B16: 1990 | C16: 143.22049 | D16: BUR | O16: 2012 | P16: 24.363886 | T16: 2023 | U16: 168.3447206 | V16: 208.1817028 | W16: 183.3543059 | Z16: 39.83698222
B17: 2010 | C17: 131.92067 | D17: BUR | N17: Future (BAU) -Official | T17: 2024 | U17: 164.6298187 | V17: 207.5791092 | W17: 180.2978766 | Z17: 42.94929046
A18: Economy-Wide CO2e Emissions : Projections | B18: 2020 | C18: 120.62489 | D18: BUR | F18: Gap Between INDC Target and Average Low Carbon Scenario (%) | G18: Average | H18: 0.04124202054 | O18: 2020 | P18: 27.01 | T18: 2025 | U18: 160.9968944 | V18: 206.9782597 | W18: 177.2923966 | Z18: 45.98136535
B19: 2030 | F19: Transport CO2 Target (MT) | G19: INDC | H19: 17.67120385 | O19: 2030 | T19: 2026 | U19: 157.4441386 | V19: 206.3791495 | W19: 174.3370165 | Z19: 48.93501084
A20: Transport Sector : Historic CO2e Emissions | B20: 1990 | C20: 20.81525 | D20: BUR | F20: Gap Between INDC Target and Average Low Carbon Scenario in Million Tons @ 2030 | H20: 0.7287961521 | O20: 2020 | T20: 2027 | U20: 153.9697824 | V20: 205.7817734 | W20: 171.4309012 | Z20: 51.81199101
B21: 1994 | F21: Cumulative Increase: BAU Scenario (2010-2030) MT (avg) | H21: 508.7896583 | N21: Low Carbon Scenario-Official | O21: 2020 | T21: 2028 | U21: 150.5720956 | V21: 205.1861265 | W21: 168.5732295 | Z21: 54.6140309
B22: 1995 | C22: 22.8936 | D22: BUR | F22: Cumulative Increase: Low Carbon Scenario (2010-2030) MT (avg) | H22: 445.1509677 | O22: 2030 | T22: 2029 | U22: 147.2493863 | V22: 204.5922037 | W22: 165.7631938 | Z22: 57.34281737
B23: 2000 | C23: 24.8685 | D23: BUR | F23: Cumulative Reduction: BAU vs. Low Carbon Scenario (2010-2030) MT (avg) | H23: 63.63869062 | T23: 2030 | U23: 144 | V23: 204 | W23: 163 | Z23: 60
B24: 2005 | C24: 26.3536 | D24: BUR | F24: Cumulative Gap: Low Carbon Scenario vs. INDC Target (2010-2030) MT | H24: 18.52514572 | N24: Future (BAU) -Other studies | O24: 2020 | P24: 27.1 | W24: 4070.609773 | X24: 230.8742269
B25: 2010 | C25: 27.1283 | D25: BUR | J25: Figure 1: Projected Transport Emissions: BAU, Low Carbon Scenario, and Transport Target | O25: 2020 | P25: 20 | U25: 3839.735547 | V25: 4467.818081 | W25: 628.0825348
B26: 2011 | C26: 23.565 | D26: National Communication | O26: 2020 | P26: 23
O27: 2030 | P27: 27.3 | Q27: -0.1377777778
J28: Figure 1: Projected Transport Emissions: BAU, Low Carbon Scenario, and Indicative Targe | O28: 2030 | P28: 21
O29: 2030 | P29: 23
O30: 2035 | P30: 28 | Q30: -1
O31: 2040 | P31: 28.9
O32: 2040 | P32: 24
O33: 2030 | P33: 26 | R33: Year | S33: % Increase
O34: 2050 | P34: 30.1 | Q34: Total Country CO2e Emissions (BAU) | R34: 1990-2011 | S34: 0.08724827863
O35: 2050 | P35: 24 | R35: 2011-2030 | S35: 0.05585556541
N36: Low Carbon Scenario (studies) | O36: 2030 | P36: 23.2 | Q36: Total Transport CO2e Emissions (BAU) | R36: 1990-2011 | S36: 0.04033467593
O37: 2010 | P37: 23 | R37: 2011-2030 | S37: -0.0921724842
O38: 2020 | P38: 18 | Q38: Transport Mitigation Potential (below BAU @ 2030) | S38: -0.2941176471 | T38: Decrease
O39: 2030 | P39: 12 | Q39: Transport Mitigation Potential (below INDC target) | S39: -0.1165644172
A40: Table 2: Mitigation Potential Studies | O40: 2040 | P40: 8
A41: Study Title | C41: EU ENERGY, TRANSPORT AND GHG EMISSIONS TRENDS TO 2050 | D41: The ITREN-2030 | E41: Scenarios for a Low Carbon Belgium by 2050 | F41: Pathways to World Class Energy efficiency in Belgium | O41: 2050 | P41: 4
A42: Quantification by Institute | C42: EUROPEAN COMMISSION Directorate-General for Energy, Directorate-General for Climate Action and Directorate-General for Mobility and Transport | D42: Fraunhofer ISI | E42: CLIMACT and VITO | F42: Mckinsey | O42: 2020 | P42: 24.196
A43: Methodology/Model Used | C43: Bottom-up (Sultan Model) | D43: Bottom-up | E43: Bottom-up | F43: Bottom-up | O43: 2030 | P43: 20
A44: Base Year | C44: 2000 | D44: 2005 | E44: 2010 | F44: 2005
A45: Base Year CO2e Emissions (MT) | B45: Road
B46: Railways
B47: Waterways
B48: Aviation
B49: Passenger
B50: Freight | O50: 1990 | P50: 20.81525
B51: Urban
B52: Total | C52: 28.9 | D52: 18 | E52: 23 | F52: 25
A53: Forecast Year | C53: 2030 | D53: 2030 | E53: 2050 | F53: 2030
A54: Forecast CO2 Emissions (MT) BAU | B54: Road
B55: Railways
B56: Waterways
B57: Aviation
B58: Passenger
B59: Freight
B60: Urban
B61: Total | C61: 27.3 | D61: 21 | E61: 24 | F61: 26
A62: Forecast Year | C62: 2030 | D62: 2030 | E62: 2050 | F62: 2030
A63: Forecast CO2 Emissions with Mitigation Measures (MT) | B63: Road
B64: Railways
B65: Waterways
B66: Aviation
B67: Passenger
B68: Freight
B69: Urban
B70: Total | C70: 23.2 | E70: 4 | F70: 20
A71: % Projected Increase (BAU) | C71: -0.0553633218 | D71: 0.1666666667 | E71: 0.04347826087 | F71: =F61/F52-1 -> 0.04
A72: % Projected Decrease (With Mitigation Measures) | C72: -0.1501831502 | D72: -1 | E72: -0.8333333333 | F72: =F70/F61-1 -> -0.2307692308
A73: Mitigation Measures | C73: Fuel Economy Standards for LDV and HDV | E73: Eletrification of transport, mode shift, lower mobility, energy efficiency | F73: Fuel Efficiency Standards, Infrastructure Improvements, Behaviour changes, Hybrid and electric vehicles etc.
A79: TIER I FACTSHEET SOURCES
A81: Table 1: Historic and Projected Emissions
A82: Historic Emissions | B82: Submitted National Communications | C82: http://unfccc.int/national_reports/non-annex_i_natcom/submitted_natcom/items/653.php
B83: UNFCCC: INDCs as communicated by Parties | C83: http://www4.unfccc.int/submissions/indc/Submission%20Pages/submissions.aspx
B84: Submitted Biennial Update Reports | C84: http://unfccc.int/national_reports/non-annex_i_natcom/reporting_on_climate_change/items/8722.php
B85: The Climate Pledge INDC Tool | C85: http://infographics.pbl.nl/indc/
B86: CAIT Climate Data Explorer | C86: http://cait.wri.org/
B87: Climate Equity Reference Calculator | C87: http://gdrights.org/calculator-about/
B88: World Bank - World Development Indicators | C88: http://data.worldbank.org/data-catalog/world-development-indicators
B89: UNEP Pledge Pipeline Tool | C89: http://www.unep.org/climatechange/pledgepipeline/
B90: Climate Action Tracker | C90: http://climateactiontracker.org/
A91: BAU Emissions Projections | B91: Submitted National Communications | C91: http://unfccc.int/national_reports/non-annex_i_natcom/submitted_natcom/items/653.php
B92: UNFCCC: INDCs as communicated by Parties | C92: http://www4.unfccc.int/submissions/indc/Submission%20Pages/submissions.aspx
B93: Submitted Biennial Update Reports | C93: http://unfccc.int/national_reports/non-annex_i_natcom/reporting_on_climate_change/items/8722.php
B94: The Climate Pledge INDC Tool | C94: http://infographics.pbl.nl/indc/
B95: Climate Equity Reference Calculator | C95: http://gdrights.org/calculator-about/
B96: World Bank - World Development Indicators | C96: http://data.worldbank.org/data-catalog/world-development-indicators
B97: UNEP Pledge Pipeline Tool | C97: http://www.unep.org/climatechange/pledgepipeline/
B98: Climate Action Tracker | C98: http://climateactiontracker.org/
A99: INDC Targets | B99: UNFCCC: INDCs as communicated by Parties | C99: http://www4.unfccc.int/submissions/indc/Submission%20Pages/submissions.aspx
A101: Table 2: Mitigation Potential Studies
A102: Low Carbon Emission Projections | B102: SLoCaT Overview of Mitigation Potential Studies | C102: http://www.slocat.net/docs/1519
B103: Submitted National Communications | C103: http://unfccc.int/national_reports/annex_i_natcom/submitted_natcom/items/7742.php
A104: BAU Emissions Projections | B104: Submitted Biennial Reports | C104: http://unfccc.int/national_reports/biennial_reports_and_iar/submitted_biennial_reports/items/7550.php
B105: UNFCCC: INDCs as communicated by Parties | C105: http://www4.unfccc.int/submissions/indc/Submission%20Pages/submissions.aspx
A107: Table 3: Comparison of BAU/Low Carbon Scenarios and INDC Target
A108: Historic Emissions | B108: Submitted National Communications | C108: http://unfccc.int/national_reports/non-annex_i_natcom/submitted_natcom/items/653.php
B109: UNFCCC: INDCs as communicated by Parties | C109: http://www4.unfccc.int/submissions/indc/Submission%20Pages/submissions.aspx
B110: Submitted Biennial Update Reports | C110: http://unfccc.int/national_reports/non-annex_i_natcom/reporting_on_climate_change/items/8722.php
B111: The Climate Pledge INDC Tool | C111: http://infographics.pbl.nl/indc/
B112: CAIT Climate Data Explorer | C112: http://cait.wri.org/
B113: Climate Equity Reference Calculator | C113: http://gdrights.org/calculator-about/
B114: World Bank - World Development Indicators | C114: http://data.worldbank.org/data-catalog/world-development-indicators
B115: UNEP Pledge Pipeline Tool | C115: http://www.unep.org/climatechange/pledgepipeline/
B116: Climate Action Tracker | C116: http://climateactiontracker.org/
A117: BAU Emissions Projections | B117: Submitted National Communications | C117: http://unfccc.int/national_reports/non-annex_i_natcom/submitted_natcom/items/653.php
B118: UNFCCC: INDCs as communicated by Parties | C118: http://www4.unfccc.int/submissions/indc/Submission%20Pages/submissions.aspx
B119: Submitted Biennial Update Reports | C119: http://unfccc.int/national_reports/non-annex_i_natcom/reporting_on_climate_change/items/8722.php
B120: The Climate Pledge INDC Tool | C120: http://infographics.pbl.nl/indc/
B121: Climate Equity Reference Calculator | C121: http://gdrights.org/calculator-about/
B122: World Bank - World Development Indicators | C122: http://data.worldbank.org/data-catalog/world-development-indicators
B123: UNEP Pledge Pipeline Tool | C123: http://www.unep.org/climatechange/pledgepipeline/
B124: Climate Action Tracker | C124: http://climateactiontracker.org/
A125: Low Carbon Emission Projections | B125: SLoCaT Overview of Mitigation Potential Studies | C125: http://www.slocat.net/docs/1519
A126: INDC Targets | B126: UNFCCC: INDCs as communicated by Parties | C126: http://www4.unfccc.int/submissions/indc/Submission%20Pages/submissions.aspx
A128: Figure 1: Projected Transport Emissions: BAU, Low Carbon Scenario, and Indicative Target
A129: Derived from Table 3: Comparison of BAU/Low Carbon Scenarios and INDC Target

Sheet Brazil
U1: -2.435018982 | V1: -0.7495472463 | W1: -1.66695253
A2: Table 1: Historic and Projected Emissions | U2: -2.206723146 | V2: -0.2894556358
A3: Country | C3: Brazil | F3: Table 3: Comparison of BAU/Low Carbon Scenarios and INDC Target | T3: 2010 | U3: 228.138 | V3: 228.138 | W3: 228.138 | Z3: 0
A4: Economy-Wide CO2e Emissions Target | B4: National Communication | C4: Emissions reduction of between 36.1 % & 38.9 % below its projected emissions in 2020 | F4: Transport CO2 Summary | H4: MT | T4: 2011 | U4: 224.71229 | V4: 224.71229 | W4: 224.3350478 | Z4: 0
B5: BUR | F5: Transport CO2 (MT)- (avg baseline) | G5: 1990 | H5: 80.6512 | T5: 2012 | U5: 219.2405031 | V5: 223.0279652 | W5: 220.5954891 | Z5: 3.787462134
B6: Other National Document/Pledge | G6: 2000 | H6: 121.1248 | T6: 2013 | U6: 213.9019552 | V6: 221.3562652 | W6: 216.918267 | Z6: 7.454310028
B7: INDC Unconditional Reduction | G7: 2010 | H7: 166 | T7: 2014 | U7: 208.693402 | V7: 219.6970955 | W7: 213.3023425 | Z7: 11.00369345
B8: INDC Conditional Reduction | C8: 43% below 2005 levels in 2030 | G8: 2011 | H8: 181.9 | P8: CO2e Emissions (MT) | T8: 2015 | U8: 203.6116781 | V8: 218.0503619 | W8: 209.7466937 | Z8: 14.43868387
B9: INDC - Any other target mentioned | E9: ` | G9: 2020 | H9: 203.5 | O9: 1990 | P9: 80.6512 | T9: 2016 | U9: 198.653695 | V9: 216.4159714 | W9: 206.2503158 | Z9: 17.7622764
B10: INDC - Long Term Target | G10: 2030 | H10: 265 | O10: 1994 | P10: 92.6692 | T10: 2017 | U10: 193.8164399 | V10: 214.7938315 | W10: 202.812221 | Z10: 20.97739163
A11: 2030 Economy-Wide CO2e Emissions Target (MT) | C11: 1250.01 | G11: 2050 | H11: 544 | O11: 1995 | P11: 101.896 | T11: 2018 | U11: 189.0969728 | V11: 213.1838502 | W11: 199.4314375 | Z11: 24.08687748
A12: Derived 2030 Transport CO2 Emissions Target ( based on share of total emissions @ 2010) | C12: 186.9384324 | F12: Low Carbon Transport(MT) (avg low carbon baseline) | G12: 2020 | H12: 190 | O12: 2000 | P12: 121.1248 | T12: 2019 | U12: 184.4924256 | V12: 211.5859366 | W12: 196.1070101 | Z12: 27.09351098
G13: 2030 | H13: 175 | O13: 2005 | P13: 134.5432 | T13: 2020 | U13: 180 | V13: 210 | W13: 192.8379994 | Z13: 30
G14: 2050 | H14: 292 | O14: 2010 | P14: 166 | T14: 2021 | U14: 176.0278983 | V14: 209.3921432 | W14: 189.6234815 | Z14: 33.36424483
A15: OFFICIAL and IEA ESTIMATES | B15: Base Year | C15: CO2e Emissions (MT) | D15: Source | F15: Average Reduction of Low Carbon estimate with BAU (%) | G15: 2030 | H15: -34 | O15: 2011 | P15: 181.9 | T15: 2022 | U15: 172.14345 | V15: 208.7860458 | W15: 186.462548 | Z15: 36.64259584
A16: Economy-Wide CO2e Emissions : Historical | B16: 1990 | C16: 1385.262 | D16: Brazil's Second National Communication | O16: 2012 | P16: 198.9 | T16: 2023 | U16: 168.3447206 | V16: 208.1817028 | W16: 183.3543059 | Z16: 39.83698222
B17: 2010 | C17: 1110 | D17: UNEP Pledge Pipeline | N17: Future (BAU) -Official | T17: 2024 | U17: 164.6298187 | V17: 207.5791092 | W17: 180.2978766 | Z17: 42.94929046
A18: Economy-Wide CO2e Emissions : Projections | B18: 2020 | C18: 3250 | D18: Brazil's Second National Communication | F18: Gap Between INDC Target and Average Low Carbon Scenario (%) | G18: Average | H18: -0.06 | O18: 2020 | T18: 2025 | U18: 160.9968944 | V18: 206.9782597 | W18: 177.2923966 | Z18: 45.98136535
B19: 2030 | C19: 1495 | D19: Climate Equity | F19: Transport CO2 Target (MT) | G19: INDC | H19: 187 | O19: 2030 | T19: 2026 | U19: 157.4441386 | V19: 206.3791495 | W19: 174.3370165 | Z19: 48.93501084
A20: Transport Sector : Historic CO2e Emissions | B20: 1990 | C20: 80.6512 | D20: Brazil's Second National Communication | F20: Gap Between INDC Target and Average Low Carbon Scenario in Million Tons @ 2030 | H20: -11.93843243 | O20: 2020 | T20: 2027 | U20: 153.9697824 | V20: 205.7817734 | W20: 171.4309012 | Z20: 51.81199101
B21: 1994 | C21: 92.6692 | D21: Brazil's Second National Communication | F21: Cumulative Increase: BAU Scenario (2010-2030) MT (avg) | H21: 4451.072801 | N21: Low Carbon Scenario-Official | O21: 2020 | T21: 2028 | U21: 150.5720956 | V21: 205.1861265 | W21: 168.5732295 | Z21: 54.6140309
B22: 1995 | C22: 101.896 | D22: Brazil's Second National Communication | F22: Cumulative Increase: Low Carbon Scenario (2010-2030) MT (avg) | H22: 3841.721026 | O22: 2030 | T22: 2029 | U22: 147.2493863 | V22: 204.5922037 | W22: 165.7631938 | Z22: 57.34281737
B23: 2000 | C23: 121.1248 | D23: Brazil's Second National Communication | F23: Cumulative Reduction: BAU vs. Low Carbon Scenario (2010-2030) MT (avg) | H23: 609.3517748 | T23: 2030 | U23: 144 | V23: 204 | W23: 163 | Z23: 60
B24: 2005 | C24: 134.5432 | D24: Brazil's Second National Communication | F24: Cumulative Gap: Low Carbon Scenario vs. INDC Target (2010-2030) MT | H24: -140.0016611 | N24: Future (BAU) -Other studies | O24: 2030 | P24: 248 | W24: 4070.609773 | X24: 230.8742269
B25: 2010 | C25: 166 | D25: CO2 Emissions from Fuel Combustion IEA 2012 | J25: Figure 1: Projected Transport Emissions: BAU, Low Carbon Scenario, and Transport Target | O25: 2030 | P25: 356.5 | U25: 3839.735547 | V25: 4467.818081 | W25: 628.0825348
B26: 2011 | C26: 181.9 | D26: CO2 Emissions from Fuel Combustion IEA 2013 | O26: 2030 | P26: 280
B27: 2012 | C27: 198.9 | D27: CO2 Emissions from Fuel Combustion IEA 2014 | O27: 2020 | P27: 200 | Q27: -0.1377777778
J28: Figure 1: Projected Transport Emissions: BAU, Low Carbon Scenario, and Indicative Targe | O28: 2025 | P28: 206
O29: 2030 | P29: 214
O30: 2035 | P30: 228 | Q30: -1
O31: 2020 | P31: 207
O32: 2030 | P32: 229
O33: 2035 | P33: 238 | R33: Year | S33: % Increase
O34: 2050 | P34: 792 | Q34: Total Country CO2e Emissions (BAU) | R34: 1990-2011 | S34: 0.08724827863
O35: 2050 | P35: 297 | R35: 2011-2030 | S35: 0.05585556541
N36: Low Carbon Scenario (studies) | O36: 2030 | P36: 174 | Q36: Total Transport CO2e Emissions (BAU) | R36: 1990-2011 | S36: 0.04033467593
O37: 2030 | P37: 210 | R37: 2011-2030 | S37: -0.0921724842
O38: 2030 | P38: 210 | Q38: Transport Mitigation Potential (below BAU @ 2030) | S38: -0.2941176471 | T38: Decrease
O39: 2020 | P39: 190 | Q39: Transport Mitigation Potential (below INDC target) | S39: -0.1165644172
A40: Table 2: Mitigation Potential Studies | O40: 2030 | P40: 142
A41: Study Title | C41: Brazil Low Carbon Country Case Study | D41: Global Transportation Roadmap | E41: Pathways for a Low CarbonEconomy for Brazil | F41: IEA - WEO 2012 | O41: 2035 | P41: 113
A42: Quantification by Institute | C42: World Bank | D42: ICCT | E42: Mckinsey | F42: IEA | O42: 2050 | P42: 451
A43: Methodology/Model Used | C43: Four step transport Model with COPERT | D43: Bottom-up | E43: NA | O43: 2050 | P43: 134
A44: Base Year | C44: 2007 | D44: 2010 | E44: 2005 | F44: 2010 | O44: 2050
A45: Base Year CO2e Emissions (MT) | B45: Road | C45: 133.78 | D45: 269.7 | E45: 140 | O45: 2050
B46: Railways | C46: 4.443 | D46: 6.2 | O46: 2020
B47: Waterways | C47: 0.2 | O47: 2020
B48: Aviation | C48: 8.4 | O48: 2025
B49: Passenger | C49: 87.4 | D49: 161 | O49: 2030
B50: Freight | C50: 59.48 | D50: 114.7
B51: Urban | C51: 77.58
B52: Total | C52: 144 | D52: 275.9 | F52: 161
A53: Forecast Year | C53: 2030 | D53: 2030 | E53: 2030 | F53: 2030
A54: Forecast CO2 Emissions (MT) BAU | B54: Road | C54: 218.46 | D54: 350.4 | E54: 280
B55: Railways | C55: 6.468 | D55: 6.1
B56: Waterways | C56: 0.5
B57: Aviation | C57: 23.7
B58: Passenger | C58: 157.3 | D58: 216
B59: Freight | C59: 90.18 | D59: 139.9
B60: Urban | C60: 128.3
B61: Total | C61: 247.5 | D61: 356.5 | F61: 214
A62: Forecast Year | C62: 2030 | D62: 2030 | E62: 2030 | F62: 2030
A63: Forecast CO2 Emissions with Mitigation Measures (MT) | B63: Road | C63: 137.03
B64: Railways | C64: 8.3
B65: Waterways | C65: 0.9
B66: Aviation | C66: 28
B67: Passenger | C67: 91.84
B68: Freight | C68: 82.5
B69: Urban | C69: 62.18
B70: Total | C70: 174.28 | D70: 210 | E70: 210 | F70: 142
A71: % Projected Increase (BAU) | C71: 0.71875 | D71: 0.29 | E71: =(E54/E45-1) -> 1 | F71: =(F61/F52-1) -> 0.3291925466
A72: % Projected Decrease (With Mitigation Measures) | C72: 40% below BAU @ 2030 | D72: 41.5% below BAU | E72: 25% below BAU @ 2030
A73: Mitigation Measures | C73: Urban - Encouraging a shift to Bus Rapid Transit (BRT) and Metro, and implanting traffic management measures can reduce emissions by about 26 percent in 2030; Regional. Modal shifts for passenger and freight transport—such as expansion of high-speed passenger trains between São Paulo and Rio de Janeiro to replace the use of planes, cars, and buses, or increased use of water and rail transit for freight—could reduce emissions by about 9 percent in 2030. Fuel. Increasing the switch from gasoline to bio-ethanol fuels from 60 percent in the reference scenario to 80 percent in 2030 could deliver more than one-third of total emissions reduction targeted for the transport sector over the period (nearly 176 Mt CO2). | D73: Well to wheel and Bottom-up. Investments considered in transit, fuel efficiency and modal shift. By 2030, 170 MT of CO2e reductions possible from baseline | E73: These reductions are possible considering ONLY the technological improvements especially biofules, electric and hybrid vehicles. | F73: Alternative fuels, fuel economy standards, fuel subsidy removal,
A79: TIER I FACTSHEET SOURCES
A81: Table 1: Historic and Projected Emissions
A82: Historic Emissions | B82: Submitted National Communications | C82: http://unfccc.int/national_reports/non-annex_i_natcom/submitted_natcom/items/653.php
B83: UNFCCC: INDCs as communicated by Parties | C83: http://www4.unfccc.int/submissions/indc/Submission%20Pages/submissions.aspx
B84: Submitted Biennial Update Reports | C84: http://unfccc.int/national_reports/non-annex_i_natcom/reporting_on_climate_change/items/8722.php
B85: The Climate Pledge INDC Tool | C85: http://infographics.pbl.nl/indc/
B86: CAIT Climate Data Explorer | C86: http://cait.wri.org/
B87: Climate Equity Reference Calculator | C87: http://gdrights.org/calculator-about/
B88: World Bank - World Development Indicators | C88: http://data.worldbank.org/data-catalog/world-development-indicators
B89: UNEP Pledge Pipeline Tool | C89: http://www.unep.org/climatechange/pledgepipeline/
B90: Climate Action Tracker | C90: http://climateactiontracker.org/
A91: BAU Emissions Projections | B91: Submitted National Communications | C91: http://unfccc.int/national_reports/non-annex_i_natcom/submitted_natcom/items/653.php
B92: UNFCCC: INDCs as communicated by Parties | C92: http://www4.unfccc.int/submissions/indc/Submission%20Pages/submissions.aspx
B93: Submitted Biennial Update Reports | C93: http://unfccc.int/national_reports/non-annex_i_natcom/reporting_on_climate_change/items/8722.php
B94: The Climate Pledge INDC Tool | C94: http://infographics.pbl.nl/indc/
B95: Climate Equity Reference Calculator | C95: http://gdrights.org/calculator-about/
B96: World Bank - World Development Indicators | C96: http://data.worldbank.org/data-catalog/world-development-indicators
B97: UNEP Pledge Pipeline Tool | C97: http://www.unep.org/climatechange/pledgepipeline/
B98: Climate Action Tracker | C98: http://climateactiontracker.org/
A99: INDC Targets | B99: UNFCCC: INDCs as communicated by Parties | C99: http://www4.unfccc.int/submissions/indc/Submission%20Pages/submissions.aspx
A101: Table 2: Mitigation Potential Studies
A102: Low Carbon Emission Projections | B102: SLoCaT Overview of Mitigation Potential Studies | C102: http://www.slocat.net/docs/1519
B103: Submitted National Communications | C103: http://unfccc.int/national_reports/annex_i_natcom/submitted_natcom/items/7742.php
A104: BAU Emissions Projections | B104: Submitted Biennial Reports | C104: http://unfccc.int/national_reports/biennial_reports_and_iar/submitted_biennial_reports/items/7550.php
B105: UNFCCC: INDCs as communicated by Parties | C105: http://www4.unfccc.int/submissions/indc/Submission%20Pages/submissions.aspx
A107: Table 3: Comparison of BAU/Low Carbon Scenarios and INDC Target
A108: Historic Emissions | B108: Submitted National Communications | C108: http://unfccc.int/national_reports/non-annex_i_natcom/submitted_natcom/items/653.php
B109: UNFCCC: INDCs as communicated by Parties | C109: http://www4.unfccc.int/submissions/indc/Submission%20Pages/submissions.aspx
B110: Submitted Biennial Update Reports | C110: http://unfccc.int/national_reports/non-annex_i_natcom/reporting_on_climate_change/items/8722.php
B111: The Climate Pledge INDC Tool | C111: http://infographics.pbl.nl/indc/
B112: CAIT Climate Data Explorer | C112: http://cait.wri.org/
B113: Climate Equity Reference Calculator | C113: http://gdrights.org/calculator-about/
B114: World Bank - World Development Indicators | C114: http://data.worldbank.org/data-catalog/world-development-indicators
B115: UNEP Pledge Pipeline Tool | C115: http://www.unep.org/climatechange/pledgepipeline/
B116: Climate Action Tracker | C116: http://climateactiontracker.org/
A117: BAU Emissions Projections | B117: Submitted National Communications | C117: http://unfccc.int/national_reports/non-annex_i_natcom/submitted_natcom/items/653.php
B118: UNFCCC: INDCs as communicated by Parties | C118: http://www4.unfccc.int/submissions/indc/Submission%20Pages/submissions.aspx
B119: Submitted Biennial Update Reports | C119: http://unfccc.int/national_reports/non-annex_i_natcom/reporting_on_climate_change/items/8722.php
B120: The Climate Pledge INDC Tool | C120: http://infographics.pbl.nl/indc/
B121: Climate Equity Reference Calculator | C121: http://gdrights.org/calculator-about/
B122: World Bank - World Development Indicators | C122: http://data.worldbank.org/data-catalog/world-development-indicators
B123: UNEP Pledge Pipeline Tool | C123: http://www.unep.org/climatechange/pledgepipeline/
B124: Climate Action Tracker | C124: http://climateactiontracker.org/
A125: Low Carbon Emission Projections | B125: SLoCaT Overview of Mitigation Potential Studies | C125: http://www.slocat.net/docs/1519
A126: INDC Targets | B126: UNFCCC: INDCs as communicated by Parties | C126: http://www4.unfccc.int/submissions/indc/Submission%20Pages/submissions.aspx
A128: Figure 1: Projected Transport Emissions: BAU, Low Carbon Scenario, and Indicative Target
A129: Derived from Table 3: Comparison of BAU/Low Carbon Scenarios and INDC Target

Sheet Bulgaria
U1: -2.435018982 | V1: -0.7495472463 | W1: -1.66695253
A2: Table 1: Historic and Projected Emissions | U2: -2.206723146 | V2: -0.2894556358
A3: Country | C3: Bulgaria | F3: Table 3: Comparison of BAU/Low Carbon Scenarios and INDC Target | T3: 2010 | U3: 228.138 | V3: 228.138 | W3: 228.138 | Z3: 0
A4: Economy-Wide CO2e Emissions Target | B4: National Communication | C4: 20% reduction from 1990 level by 2020 | F4: Transport CO2 Summary | H4: MT | T4: 2011 | U4: 224.71229 | V4: 224.71229 | W4: 224.3350478 | Z4: 0
B5: BUR | F5: Transport CO2 (MT)- (avg baseline) | G5: 1990 | H5: 6.79393 | T5: 2012 | U5: 219.2405031 | V5: 223.0279652 | W5: 220.5954891 | Z5: 3.787462134
B6: Other National Document/Pledge | G6: 2000 | H6: 5.73941 | T6: 2013 | U6: 213.9019552 | V6: 221.3562652 | W6: 216.918267 | Z6: 7.454310028
B7: INDC Unconditional Reduction | C7: 40% reduction in 2030 compared to 1990 | G7: 2010 | H7: 7.95429 | T7: 2014 | U7: 208.693402 | V7: 219.6970955 | W7: 213.3023425 | Z7: 11.00369345
B8: INDC Conditional Reduction | G8: 2011 | H8: 7.89 | P8: CO2e Emissions (MT) | T8: 2015 | U8: 203.6116781 | V8: 218.0503619 | W8: 209.7466937 | Z8: 14.43868387
B9: INDC - Any other target mentioned | E9: ` | G9: 2020 | H9: 11.89 | O9: 1990 | P9: 6.79393 | T9: 2016 | U9: 198.653695 | V9: 216.4159714 | W9: 206.2503158 | Z9: 17.7622764
B10: INDC - Long Term Target | G10: 2030 | H10: 13.56 | O10: 1994 | T10: 2017 | U10: 193.8164399 | V10: 214.7938315 | W10: 202.812221 | Z10: 20.97739163
A11: 2030 Economy-Wide CO2e Emissions Target (MT) | C11: 65.724528 | G11: 2050 | H11: 8.2 | O11: 1995 | P11: 4.71069 | T11: 2018 | U11: 189.0969728 | V11: 213.1838502 | W11: 199.4314375 | Z11: 24.08687748
A12: Derived 2030 Transport CO2 Emissions Target ( based on share of total emissions @ 2010) | C12: 8.662321121 | F12: Low Carbon Transport(MT) (avg low carbon baseline) | G12: 2020 | H12: 11.65 | O12: 2000 | P12: 5.73941 | T12: 2019 | U12: 184.4924256 | V12: 211.5859366 | W12: 196.1070101 | Z12: 27.09351098
G13: 2030 | H13: 12.612 | O13: 2005 | P13: 7.6971 | T13: 2020 | U13: 180 | V13: 210 | W13: 192.8379994 | Z13: 30
G14: 2050 | O14: 2010 | P14: 7.95429 | T14: 2021 | U14: 176.0278983 | V14: 209.3921432 | W14: 189.6234815 | Z14: 33.36424483
A15: OFFICIAL and IEA ESTIMATES | B15: Base Year | C15: CO2e Emissions (MT) | D15: Source | F15: Average Reduction of Low Carbon estimate with BAU (%) | G15: 2030 | H15: -7 | O15: 2011 | P15: 7.89 | T15: 2022 | U15: 172.14345 | V15: 208.7860458 | W15: 186.462548 | Z15: 36.64259584
A16: Economy-Wide CO2e Emissions : Historical | B16: 1990 | C16: 109.54088 | D16: BUR | O16: 2012 | P16: 8.165147 | T16: 2023 | U16: 168.3447206 | V16: 208.1817028 | W16: 183.3543059 | Z16: 39.83698222
B17: 2010 | C17: 60.35241 | D17: BUR | N17: Future (BAU) -Official | T17: 2024 | U17: 164.6298187 | V17: 207.5791092 | W17: 180.2978766 | Z17: 42.94929046
A18: Economy-Wide CO2e Emissions : Projections | B18: 2020 | C18: 60.98 | D18: BUR | F18: Gap Between INDC Target and Average Low Carbon Scenario (%) | G18: Average | H18: 0.4559608013 | O18: 2020 | P18: 12.685 | T18: 2025 | U18: 160.9968944 | V18: 206.9782597 | W18: 177.2923966 | Z18: 45.98136535
B19: 2030 | C19: 60.11036 | D19: BUR | F19: Transport CO2 Target (MT) | G19: INDC | H19: 8.662321121 | O19: 2030 | P19: 19.876 | T19: 2026 | U19: 157.4441386 | V19: 206.3791495 | W19: 174.3370165 | Z19: 48.93501084
A20: Transport Sector : Historic CO2e Emissions | B20: 1990 | C20: 6.79393 | D20: BUR | F20: Gap Between INDC Target and Average Low Carbon Scenario in Million Tons @ 2030 | H20: 3.949678879 | T20: 2027 | U20: 153.9697824 | V20: 205.7817734 | W20: 171.4309012 | Z20: 51.81199101
B21: 1994 | F21: Cumulative Increase: BAU Scenario (2010-2030) MT (avg) | H21: 233.5465882 | N21: Low Carbon Scenario-Official | O21: 2020 | P21: 11.319 | T21: 2028 | U21: 150.5720956 | V21: 205.1861265 | W21: 168.5732295 | Z21: 54.6140309
B22: 1995 | C22: 4.71069 | D22: BUR | F22: Cumulative Increase: Low Carbon Scenario (2010-2030) MT (avg) | H22: 226.2996831 | O22: 2030 | P22: 17.606 | T22: 2029 | U22: 147.2493863 | V22: 204.5922037 | W22: 165.7631938 | Z22: 57.34281737
B23: 2000 | C23: 5.73941 | D23: BUR | F23: Cumulative Reduction: BAU vs. Low Carbon Scenario (2010-2030) MT (avg) | H23: 7.246905084 | T23: 2030 | U23: 144 | V23: 204 | W23: 163 | Z23: 60
B24: 2005 | C24: 7.6971 | D24: BUR | F24: Cumulative Gap: Low Carbon Scenario vs. INDC Target (2010-2030) MT | H24: -51.92562718 | N24: Future (BAU) -Other studies | O24: 2015 | P24: 8.4 | W24: 4070.609773 | X24: 230.8742269
B25: 2010 | C25: 7.95429 | D25: BUR | J25: Figure 1: Projected Transport Emissions: BAU, Low Carbon Scenario, and Transport Target | U25: 3839.735547 | V25: 4467.818081 | W25: 628.0825348
B26: 2011 | C26: 7.89 | D26: World Bank | O26: 2020 | P26: 14
Q27: -0.1377777778
J28: Figure 1: Projected Transport Emissions: BAU, Low Carbon Scenario, and Indicative Targe | O28: 2030 | P28: 7.7
O29: 2030 | P29: 16
O30: 2035 | P30: 7.9 | Q30: -1
O31: 2040 | P31: 8.1
O32: 2045 | P32: 8.1
O33: 2050 | P33: 8.2 | R33: Year | S33: % Increase
O34: 2020 | P34: 9 | Q34: Total Country CO2e Emissions (BAU) | R34: 1990-2011 | S34: 0.08724827863
O35: 2030 | P35: 10.7 | R35: 2011-2030 | S35: 0.05585556541
N36: Low Carbon Scenario (studies) | O36: 2020 | P36: 12 | Q36: Total Transport CO2e Emissions (BAU) | R36: 1990-2011 | S36: 0.04033467593
O37: 2030 | P37: 7.23 | R37: 2011-2030 | S37: -0.0921724842
O38: 2030 | P38: 13 | Q38: Transport Mitigation Potential (below BAU @ 2030) | S38: -0.2941176471 | T38: Decrease
Q39: Transport Mitigation Potential (below INDC target) | S39: -0.1165644172
A40: Table 2: Mitigation Potential Studies
A41: Study Title | C41: EU ENERGY, TRANSPORT AND GHG EMISSIONS TRENDS TO 2050 | D41: The ITREN-2030
A42: Quantification by Institute | C42: EUROPEAN COMMISSION Directorate-General for Energy, Directorate-General for Climate Action and Directorate-General for Mobility and Transport | D42: Fraunhofer ISI
A43: Methodology/Model Used | C43: Bottom-up (Sultan Model) | D43: Bottom-up
A44: Base Year | C44: 2000 | D44: 2005
A45: Base Year CO2e Emissions (MT) | B45: Road
B46: Railways
B47: Waterways
B48: Aviation
B49: Passenger
B50: Freight
B51: Urban
B52: Total | C52: 5.7 | D52: 12
A53: Forecast Year | C53: 2030 | D53: 2030
A54: Forecast CO2 Emissions (MT) BAU | B54: Road
B55: Railways
B56: Waterways
B57: Aviation
B58: Passenger
B59: Freight
B60: Urban
B61: Total | C61: 7.7 | D61: 16
A62: Forecast Year | C62: 2030 | D62: 2030
A63: Forecast CO2 Emissions with Mitigation Measures (MT) | B63: Road
B64: Railways
B65: Waterways
B66: Aviation
B67: Passenger
B68: Freight
B69: Urban
B70: Total | C70: 7.23 | D70: 13
A71: % Projected Increase (BAU) | C71: 0.350877193 | D71: 0.3333333333
A72: % Projected Decrease (With Mitigation Measures) | C72: -0.06103896104 | D72: -0.1875
A73: Mitigation Measures
A79: TIER I FACTSHEET SOURCES
A81: Table 1: Historic and Projected Emissions
A82: Historic Emissions | B82: Submitted National Communications | C82: http://unfccc.int/national_reports/non-annex_i_natcom/submitted_natcom/items/653.php
B83: UNFCCC: INDCs as communicated by Parties | C83: http://www4.unfccc.int/submissions/indc/Submission%20Pages/submissions.aspx
B84: Submitted Biennial Update Reports | C84: http://unfccc.int/national_reports/non-annex_i_natcom/reporting_on_climate_change/items/8722.php
B85: The Climate Pledge INDC Tool | C85: http://infographics.pbl.nl/indc/
B86: CAIT Climate Data Explorer | C86: http://cait.wri.org/
B87: Climate Equity Reference Calculator | C87: http://gdrights.org/calculator-about/
B88: World Bank - World Development Indicators | C88: http://data.worldbank.org/data-catalog/world-development-indicators
B89: UNEP Pledge Pipeline Tool | C89: http://www.unep.org/climatechange/pledgepipeline/
B90: Climate Action Tracker | C90: http://climateactiontracker.org/
A91: BAU Emissions Projections | B91: Submitted National Communications | C91: http://unfccc.int/national_reports/non-annex_i_natcom/submitted_natcom/items/653.php
B92: UNFCCC: INDCs as communicated by Parties | C92: http://www4.unfccc.int/submissions/indc/Submission%20Pages/submissions.aspx
B93: Submitted Biennial Update Reports | C93: http://unfccc.int/national_reports/non-annex_i_natcom/reporting_on_climate_change/items/8722.php
B94: The Climate Pledge INDC Tool | C94: http://infographics.pbl.nl/indc/
B95: Climate Equity Reference Calculator | C95: http://gdrights.org/calculator-about/
B96: World Bank - World Development Indicators | C96: http://data.worldbank.org/data-catalog/world-development-indicators
B97: UNEP Pledge Pipeline Tool | C97: http://www.unep.org/climatechange/pledgepipeline/
B98: Climate Action Tracker | C98: http://climateactiontracker.org/
A99: INDC Targets | B99: UNFCCC: INDCs as communicated by Parties | C99: http://www4.unfccc.int/submissions/indc/Submission%20Pages/submissions.aspx
A101: Table 2: Mitigation Potential Studies
A102: Low Carbon Emission Projections | B102: SLoCaT Overview of Mitigation Potential Studies | C102: http://www.slocat.net/docs/1519
B103: Submitted National Communications | C103: http://unfccc.int/national_reports/annex_i_natcom/submitted_natcom/items/7742.php
A104: BAU Emissions Projections | B104: Submitted Biennial Reports | C104: http://unfccc.int/national_reports/biennial_reports_and_iar/submitted_biennial_reports/items/7550.php
B105: UNFCCC: INDCs as communicated by Parties | C105: http://www4.unfccc.int/submissions/indc/Submission%20Pages/submissions.aspx
A107: Table 3: Comparison of BAU/Low Carbon Scenarios and INDC Target
A108: Historic Emissions | B108: Submitted National Communications | C108: http://unfccc.int/national_reports/non-annex_i_natcom/submitted_natcom/items/653.php
B109: UNFCCC: INDCs as communicated by Parties | C109: http://www4.unfccc.int/submissions/indc/Submission%20Pages/submissions.aspx
B110: Submitted Biennial Update Reports | C110: http://unfccc.int/national_reports/non-annex_i_natcom/reporting_on_climate_change/items/8722.php
B111: The Climate Pledge INDC Tool | C111: http://infographics.pbl.nl/indc/
B112: CAIT Climate Data Explorer | C112: http://cait.wri.org/
B113: Climate Equity Reference Calculator | C113: http://gdrights.org/calculator-about/
B114: World Bank - World Development Indicators | C114: http://data.worldbank.org/data-catalog/world-development-indicators
B115: UNEP Pledge Pipeline Tool | C115: http://www.unep.org/climatechange/pledgepipeline/
B116: Climate Action Tracker | C116: http://climateactiontracker.org/
A117: BAU Emissions Projections | B117: Submitted National Communications | C117: http://unfccc.int/national_reports/non-annex_i_natcom/submitted_natcom/items/653.php
B118: UNFCCC: INDCs as communicated by Parties | C118: http://www4.unfccc.int/submissions/indc/Submission%20Pages/submissions.aspx
B119: Submitted Biennial Update Reports | C119: http://unfccc.int/national_reports/non-annex_i_natcom/reporting_on_climate_change/items/8722.php
B120: The Climate Pledge INDC Tool | C120: http://infographics.pbl.nl/indc/
B121: Climate Equity Reference Calculator | C121: http://gdrights.org/calculator-about/
B122: World Bank - World Development Indicators | C122: http://data.worldbank.org/data-catalog/world-development-indicators
B123: UNEP Pledge Pipeline Tool | C123: http://www.unep.org/climatechange/pledgepipeline/
B124: Climate Action Tracker | C124: http://climateactiontracker.org/
A125: Low Carbon Emission Projections | B125: SLoCaT Overview of Mitigation Potential Studies | C125: http://www.slocat.net/docs/1519
A126: INDC Targets | B126: UNFCCC: INDCs as communicated by Parties | C126: http://www4.unfccc.int/submissions/indc/Submission%20Pages/submissions.aspx
A128: Figure 1: Projected Transport Emissions: BAU, Low Carbon Scenario, and Indicative Target
A129: Derived from Table 3: Comparison of BAU/Low Carbon Scenarios and INDC Target

Sheet Cambodia
U1: -2.435018982 | V1: -0.7495472463 | W1: -1.66695253
A2: Table 1: Historic and Projected Emissions | U2: -2.206723146 | V2: -0.2894556358
A3: Country | F3: Table 3: Comparison of BAU/Low Carbon Scenarios and INDC Target | T3: 2010 | U3: 228.138 | V3: 228.138 | W3: 228.138 | Z3: 0
A4: Economy-Wide CO2e Emissions Target | B4: National Communication | F4: Transport CO2 Summary | H4: MT | T4: 2011 | U4: 224.71229 | V4: 224.71229 | W4: 224.3350478 | Z4: 0
B5: BUR | F5: Transport CO2 (MT)- (avg baseline) | G5: 1990 | H5: 0.831 | T5: 2012 | U5: 219.2405031 | V5: 223.0279652 | W5: 220.5954891 | Z5: 3.787462134
B6: Other National Document/Pledge | G6: 2000 | H6: 1.32 | T6: 2013 | U6: 213.9019552 | V6: 221.3562652 | W6: 216.918267 | Z6: 7.454310028
B7: INDC Unconditional Reduction | G7: 2010 | H7: 1.93 | T7: 2014 | U7: 208.693402 | V7: 219.6970955 | W7: 213.3023425 | Z7: 11.00369345
B8: INDC Conditional Reduction | C8: 27% below 2030 BAU scenario | G8: 2011 | H8: 2.01 | P8: CO2e Emissions (MT) | T8: 2015 | U8: 203.6116781 | V8: 218.0503619 | W8: 209.7466937 | Z8: 14.43868387
B9: INDC - Any other target mentioned | C9: 3% below BAU from Transport Sector | E9: ` | G9: 2020 | H9: 5.5 | O9: 1990 | T9: 2016 | U9: 198.653695 | V9: 216.4159714 | W9: 206.2503158 | Z9: 17.7622764
B10: INDC - Long Term Target | G10: 2030 | H10: 9.2 | O10: 1994 | P10: 0.831 | T10: 2017 | U10: 193.8164399 | V10: 214.7938315 | W10: 202.812221 | Z10: 20.97739163
A11: 2030 Economy-Wide CO2e Emissions Target (MT) | C11: 21.96716 | G11: 2050 | H11: 20.2 | O11: 1995 | T11: 2018 | U11: 189.0969728 | V11: 213.1838502 | W11: 199.4314375 | Z11: 24.08687748
A12: Derived 2030 Transport CO2 Emissions Target ( based on share of total emissions @ 2010) | C12: 10.1171 | F12: Low Carbon Transport(MT) (avg low carbon baseline) | G12: 2020 | H12: 4.9 | O12: 2000 | P12: 1.32 | T12: 2019 | U12: 184.4924256 | V12: 211.5859366 | W12: 196.1070101 | Z12: 27.09351098
G13: 2030 | H13: 4.8 | O13: 2005 | T13: 2020 | U13: 180 | V13: 210 | W13: 192.8379994 | Z13: 30
G14: 2050 | H14: 9.6 | O14: 2010 | P14: 1.93 | T14: 2021 | U14: 176.0278983 | V14: 209.3921432 | W14: 189.6234815 | Z14: 33.36424483
A15: OFFICIAL and IEA ESTIMATES | B15: Base Year | C15: CO2e Emissions (MT) | D15: Source | F15: Average Reduction of Low Carbon estimate with BAU (%) | G15: 2030 | H15: -48 | O15: 2011 | P15: 2.01 | T15: 2022 | U15: 172.14345 | V15: 208.7860458 | W15: 186.462548 | Z15: 36.64259584
A16: Economy-Wide CO2e Emissions : Historical | B16: 1990 | C16: 14.5144 | D16: CAIT Database | T16: 2023 | U16: 168.3447206 | V16: 208.1817028 | W16: 183.3543059 | Z16: 39.83698222
B17: 2011 | C17: 26.7868 | D17: CAIT Database | N17: Future (BAU) -Official | T17: 2024 | U17: 164.6298187 | V17: 207.5791092 | W17: 180.2978766 | Z17: 42.94929046
A18: Economy-Wide CO2e Emissions : Projections | B18: 2020 | C18: 36.105 | D18: National Communication | F18: Gap Between INDC Target and Average Low Carbon Scenario (%) | G18: Average | H18: -0.5255557423 | O18: 2020 | P18: 5.44 | T18: 2025 | U18: 160.9968944 | V18: 206.9782597 | W18: 177.2923966 | Z18: 45.98136535
B19: 2030 | C19: =11.6+18.492 -> 30.092 | D19: INDC | F19: Transport CO2 Target (MT) | G19: INDC | H19: 10.1171 | O19: 2030 | P19: 10.43 | T19: 2026 | U19: 157.4441386 | V19: 206.3791495 | W19: 174.3370165 | Z19: 48.93501084
A20: Transport Sector : Historic CO2e Emissions | B20: 1990 | C20: 0.8 | F20: Gap Between INDC Target and Average Low Carbon Scenario in Million Tons @ 2030 | H20: -5.3171 | O20: 2020 | T20: 2027 | U20: 153.9697824 | V20: 205.7817734 | W20: 171.4309012 | Z20: 51.81199101
B21: 1994 | C21: 0.831 | D21: National Communication | F21: Cumulative Increase: BAU Scenario (2010-2030) MT (avg) | H21: 110.707738 | N21: Low Carbon Scenario-Official | O21: 2020 | T21: 2028 | U21: 150.5720956 | V21: 205.1861265 | W21: 168.5732295 | Z21: 54.6140309
B22: 1995 | F22: Cumulative Increase: Low Carbon Scenario (2010-2030) MT (avg) | H22: 83.04576764 | O22: 2030 | T22: 2029 | U22: 147.2493863 | V22: 204.5922037 | W22: 165.7631938 | Z22: 57.34281737
B23: 2000 | C23: 1.32 | D23: World Bank Development Indicators | F23: Cumulative Reduction: BAU vs. Low Carbon Scenario (2010-2030) MT (avg) | H23: 27.66197031 | T23: 2030 | U23: 144 | V23: 204 | W23: 163 | Z23: 60
B24: 2005 | F24: Cumulative Gap: Low Carbon Scenario vs. INDC Target (2010-2030) MT | H24: 21.87011062 | N24: Future (BAU) -Other studies | O24: 2015 | P24: 5.831956426 | W24: 4070.609773 | X24: 230.8742269
B25: 2010 | C25: 1.93 | D25: World Bank Development Indicators | J25: Figure 1: Projected Transport Emissions: BAU, Low Carbon Scenario, and Transport Target | O25: 2020 | P25: 8.085212989 | U25: 3839.735547 | V25: 4467.818081 | W25: 628.0825348
B26: 2011 | C26: 2.01 | D26: World Bank Development Indicators
O27: 2025 | P27: 9.94869833 | Q27: -0.1377777778
J28: Figure 1: Projected Transport Emissions: BAU, Low Carbon Scenario, and Indicative Targe | O28: 2030 | P28: 12.08922859
O29: 2030 | P29: 5.105980492
O30: 2035 | P30: 14.62121633 | Q30: -1
O31: 2040 | P31: 16.73821562
O32: 2045 | P32: 18.52511888
O33: 2050 | P33: 20.21856037 | R33: Year | S33: % Increase
O34: 2040 | Q34: Total Country CO2e Emissions (BAU) | R34: 1990-2011 | S34: 0.08724827863
O35: 2045 | R35: 2011-2030 | S35: 0.05585556541
N36: Low Carbon Scenario (studies) | O36: 2015 | P36: 5.780782807 | Q36: Total Transport CO2e Emissions (BAU) | R36: 1990-2011 | S36: 0.04033467593
O37: 2020 | P37: 7.227648954 | R37: 2011-2030 | S37: -0.0921724842
O38: 2020 | P38: 2.58 | Q38: Transport Mitigation Potential (below BAU @ 2030) | S38: -0.2941176471 | T38: Decrease
O39: 2025 | P39: 5.431176632 | Q39: Transport Mitigation Potential (below INDC target) | S39: -0.1165644172
A40: Table 2: Mitigation Potential Studies | O40: 2030 | P40: 6.018815415
A41: Study Title | C41: Energy Outlook for Asia and the Pacific | D41: The Study for Long-Term Transport Action Plan for ASEAN (LPA Project) | O41: 2030 | P41: 3.59
A42: Quantification by Institute | C42: ADB | D42: ITPS | O42: 2035 | P42: 7.158033125
A43: Methodology/Model Used | C43: Bottom-up | D43: Bottom-up | O43: 2040 | P43: 7.940183041
A44: Base Year | C44: 2010 | D44: 2005 | O44: 2045 | P44: 8.702487414
A45: Base Year CO2e Emissions (MT) | B45: Road | O45: 2050 | P45: 9.616828931
B46: Railways
B47: Waterways
B48: Aviation
B49: Passenger
B50: Freight
B51: Urban
B52: Total | C52: 1.63 | D52: 2.6
A53: Forecast Year | C53: 2030 | D53: 2050
A54: Forecast CO2 Emissions (MT) BAU | B54: Road
B55: Railways
B56: Waterways
B57: Aviation
B58: Passenger
B59: Freight
B60: Urban
B61: Total | C61: 5.11 | D61: 20.2
A62: Forecast Year | C62: 2030 | D62: 2050
A63: Forecast CO2 Emissions with Mitigation Measures (MT) | B63: Road
B64: Railways
B65: Waterways
B66: Aviation
B67: Passenger
B68: Freight
B69: Urban
B70: Total | C70: 3.59 | D70: 9.6
A71: % Projected Increase (BAU) | C71: =C61/C52-1 -> 2.134969325 | D71: 6.769230769
A72: % Projected Decrease (With Mitigation Measures) | C72: =C70/C61-1 -> -0.2974559687 | D72: -0.5247524752
A73: Mitigation Measures | C73: Energy Efficiency Improvement | D73: Bus service improvement, CNG and Hybrid vehicle promotion, Rail development and rehabilitation, Mekong River transport optimization, LRT implementation in Phnom Penh, Close monitoring of car use and car acquisition disincentives, NMT promotion as an alternative to motorcycles
A79: TIER I FACTSHEET SOURCES
A81: Table 1: Historic and Projected Emissions
A82: Historic Emissions | B82: Submitted National Communications | C82: http://unfccc.int/national_reports/non-annex_i_natcom/submitted_natcom/items/653.php
B83: UNFCCC: INDCs as communicated by Parties | C83: http://www4.unfccc.int/submissions/indc/Submission%20Pages/submissions.aspx
B84: Submitted Biennial Update Reports | C84: http://unfccc.int/national_reports/non-annex_i_natcom/reporting_on_climate_change/items/8722.php
B85: The Climate Pledge INDC Tool | C85: http://infographics.pbl.nl/indc/
B86: CAIT Climate Data Explorer | C86: http://cait.wri.org/
B87: Climate Equity Reference Calculator | C87: http://gdrights.org/calculator-about/
B88: World Bank - World Development Indicators | C88: http://data.worldbank.org/data-catalog/world-development-indicators
B89: UNEP Pledge Pipeline Tool | C89: http://www.unep.org/climatechange/pledgepipeline/
B90: Climate Action Tracker | C90: http://climateactiontracker.org/
A91: BAU Emissions Projections | B91: Submitted National Communications | C91: http://unfccc.int/national_reports/non-annex_i_natcom/submitted_natcom/items/653.php
B92: UNFCCC: INDCs as communicated by Parties | C92: http://www4.unfccc.int/submissions/indc/Submission%20Pages/submissions.aspx
B93: Submitted Biennial Update Reports | C93: http://unfccc.int/national_reports/non-annex_i_natcom/reporting_on_climate_change/items/8722.php
B94: The Climate Pledge INDC Tool | C94: http://infographics.pbl.nl/indc/
B95: Climate Equity Reference Calculator | C95: http://gdrights.org/calculator-about/
B96: World Bank - World Development Indicators | C96: http://data.worldbank.org/data-catalog/world-development-indicators
B97: UNEP Pledge Pipeline Tool | C97: http://www.unep.org/climatechange/pledgepipeline/
B98: Climate Action Tracker | C98: http://climateactiontracker.org/
A99: INDC Targets | B99: UNFCCC: INDCs as communicated by Parties | C99: http://www4.unfccc.int/submissions/indc/Submission%20Pages/submissions.aspx
A101: Table 2: Mitigation Potential Studies
A102: Low Carbon Emission Projections | B102: SLoCaT Overview of Mitigation Potential Studies | C102: http://www.slocat.net/docs/1519
B103: Submitted National Communications | C103: http://unfccc.int/national_reports/annex_i_natcom/submitted_natcom/items/7742.php
A104: BAU Emissions Projections | B104: Submitted Biennial Reports | C104: http://unfccc.int/national_reports/biennial_reports_and_iar/submitted_biennial_reports/items/7550.php
B105: UNFCCC: INDCs as communicated by Parties | C105: http://www4.unfccc.int/submissions/indc/Submission%20Pages/submissions.aspx
A107: Table 3: Comparison of BAU/Low Carbon Scenarios and INDC Target
A108: Historic Emissions | B108: Submitted National Communications | C108: http://unfccc.int/national_reports/non-annex_i_natcom/submitted_natcom/items/653.php
B109: UNFCCC: INDCs as communicated by Parties | C109: http://www4.unfccc.int/submissions/indc/Submission%20Pages/submissions.aspx
B110: Submitted Biennial Update Reports | C110: http://unfccc.int/national_reports/non-annex_i_natcom/reporting_on_climate_change/items/8722.php
B111: The Climate Pledge INDC Tool | C111: http://infographics.pbl.nl/indc/
B112: CAIT Climate Data Explorer | C112: http://cait.wri.org/
B113: Climate Equity Reference Calculator | C113: http://gdrights.org/calculator-about/
B114: World Bank - World Development Indicators | C114: http://data.worldbank.org/data-catalog/world-development-indicators
B115: UNEP Pledge Pipeline Tool | C115: http://www.unep.org/climatechange/pledgepipeline/
B116: Climate Action Tracker | C116: http://climateactiontracker.org/
A117: BAU Emissions Projections | B117: Submitted National Communications | C117: http://unfccc.int/national_reports/non-annex_i_natcom/submitted_natcom/items/653.php
B118: UNFCCC: INDCs as communicated by Parties | C118: http://www4.unfccc.int/submissions/indc/Submission%20Pages/submissions.aspx
B119: Submitted Biennial Update Reports | C119: http://unfccc.int/national_reports/non-annex_i_natcom/reporting_on_climate_change/items/8722.php
B120: The Climate Pledge INDC Tool | C120: http://infographics.pbl.nl/indc/
B121: Climate Equity Reference Calculator | C121: http://gdrights.org/calculator-about/
B122: World Bank - World Development Indicators | C122: http://data.worldbank.org/data-catalog/world-development-indicators
B123: UNEP Pledge Pipeline Tool | C123: http://www.unep.org/climatechange/pledgepipeline/
B124: Climate Action Tracker | C124: http://climateactiontracker.org/
A125: Low Carbon Emission Projections | B125: SLoCaT Overview of Mitigation Potential Studies | C125: http://www.slocat.net/docs/1519
A126: INDC Targets | B126: UNFCCC: INDCs as communicated by Parties | C126: http://www4.unfccc.int/submissions/indc/Submission%20Pages/submissions.aspx
A128: Figure 1: Projected Transport Emissions: BAU, Low Carbon Scenario, and Indicative Target
A129: Derived from Table 3: Comparison of BAU/Low Carbon Scenarios and INDC Target

Sheet Canada
U1: -2.435018982 | V1: -0.7495472463 | W1: -1.66695253
A2: Table 1: Historic and Projected Emissions | U2: -2.206723146 | V2: -0.2894556358
A3: Country | C3: Canada | F3: Table 3: Comparison of BAU/Low Carbon Scenarios and INDC Target | T3: 2010 | U3: 228.138 | V3: 228.138 | W3: 228.138 | Z3: 0
A4: Economy-Wide CO2e Emissions Target | B4: National Communication | C4: In the context of the Copenhagen Accord of 2009, and the subsequent Cancun Agreements of 2010, Canada committed to reduce its national greenhouse gas (GHG) emissions by 17% from 2005 levels by 2020. | F4: Transport CO2 Summary | H4: MT | T4: 2011 | U4: 224.71229 | V4: 224.71229 | W4: 224.3350478 | Z4: 0
B5: BUR | C5: 17% below 2005 emissions by 2020 & optional target of 3.6% below 1990 by 2020 | F5: Transport CO2 (MT)- (avg baseline) | G5: 1990 | H5: 139.058 | T5: 2012 | U5: 219.2405031 | V5: 223.0279652 | W5: 220.5954891 | Z5: 3.787462134
B6: Other National Document/Pledge | G6: 2000 | H6: 169.732 | T6: 2013 | U6: 213.9019552 | V6: 221.3562652 | W6: 216.918267 | Z6: 7.454310028
B7: INDC Unconditional Reduction | C7: Canada intends to achieve an economy-wide target to reduce our greenhouse gas emissions by 30% below 2005 levels by 2030 | G7: 2010 | H7: 187.022 | T7: 2014 | U7: 208.693402 | V7: 219.6970955 | W7: 213.3023425 | Z7: 11.00369345
B8: INDC Conditional Reduction | G8: 2011 | H8: 198.57865 | P8: CO2e Emissions (MT) | T8: 2015 | U8: 203.6116781 | V8: 218.0503619 | W8: 209.7466937 | Z8: 14.43868387
B9: INDC - Any other target mentioned | E9: ` | G9: 2020 | H9: 223 | O9: 1990 | P9: 139.058 | T9: 2016 | U9: 198.653695 | V9: 216.4159714 | W9: 206.2503158 | Z9: 17.7622764
B10: INDC - Long Term Target | G10: 2030 | H10: 252 | O10: 1994 | P10: 147.733 | T10: 2017 | U10: 193.8164399 | V10: 214.7938315 | W10: 202.812221 | Z10: 20.97739163
A11: 2030 Economy-Wide CO2e Emissions Target (MT) | C11: 515.9 | G11: 2050 | H11: 347.1939795 | T11: 2018 | U11: 189.0969728 | V11: 213.1838502 | W11: 199.4314375 | Z11: 24.08687748
A12: Derived 2030 Transport CO2 Emissions Target ( based on share of total emissions @ 2010) | C12: 145.9789674 | F12: Low Carbon Transport(MT) (avg low carbon baseline) | G12: 2020 | H12: 180 | O12: 1995 | P12: 151.482 | T12: 2019 | U12: 184.4924256 | V12: 211.5859366 | W12: 196.1070101 | Z12: 27.09351098
G13: 2030 | H13: 143 | O13: 2000 | P13: 169.732 | T13: 2020 | U13: 180 | V13: 210 | W13: 192.8379994 | Z13: 30
G14: 2050 | H14: 75.7 | O14: 2005 | P14: 182.49 | T14: 2021 | U14: 176.0278983 | V14: 209.3921432 | W14: 189.6234815 | Z14: 33.36424483
A15: OFFICIAL and IEA ESTIMATES | B15: Base Year | C15: CO2e Emissions (MT) | D15: Source | F15: Average Reduction of Low Carbon estimate with BAU (%) | G15: 2030 | H15: -76 | O15: 2010 | P15: 187.022 | T15: 2022 | U15: 172.14345 | V15: 208.7860458 | W15: 186.462548 | Z15: 36.64259584
A16: Economy-Wide CO2e Emissions : Historical | B16: 1990 | C16: 591 | D16: First BUR | O16: 2011 | P16: 198.57865 | T16: 2023 | U16: 168.3447206 | V16: 208.1817028 | W16: 183.3543059 | Z16: 39.83698222
B17: 2011 | C17: 701.791 | D17: First BUR | N17: Future (BAU) -Official | T17: 2024 | U17: 164.6298187 | V17: 207.5791092 | W17: 180.2978766 | Z17: 42.94929046
A18: Economy-Wide CO2e Emissions : Projections | B18: 2020 | C18: 735.3 | D18: First BUR | F18: Gap Between INDC Target and Average Low Carbon Scenario (%) | G18: Average | H18: -0.02 | T18: 2025 | U18: 160.9968944 | V18: 206.9782597 | W18: 177.2923966 | Z18: 45.98136535
B19: 2030 | C19: 814.4 | D19: First BUR | F19: Transport CO2 Target (MT) | G19: INDC | H19: 146 | T19: 2026 | U19: 157.4441386 | V19: 206.3791495 | W19: 174.3370165 | Z19: 48.93501084
A20: Transport Sector : Historic CO2e Emissions | B20: 1990 | C20: 139.058 | D20: First BUR | F20: Gap Between INDC Target and Average Low Carbon Scenario in Million Tons @ 2030 | H20: -2.978967435 | T20: 2027 | U20: 153.9697824 | V20: 205.7817734 | W20: 171.4309012 | Z20: 51.81199101
B21: 1994 | C21: 147.733 | D21: First BUR | F21: Cumulative Increase: BAU Scenario (2010-2030) MT (avg) | H21: 4682 | N21: Low Carbon Scenario-Official | O21: 2020 | P21: 176 | T21: 2028 | U21: 150.5720956 | V21: 205.1861265 | W21: 168.5732295 | Z21: 54.6140309
B22: 1995 | C22: 151.482 | D22: First BUR | F22: Cumulative Increase: Low Carbon Scenario (2010-2030) MT (avg) | H22: 3753 | O22: 2030 | P22: 179 | T22: 2029 | U22: 147.2493863 | V22: 204.5922037 | W22: 165.7631938 | Z22: 57.34281737
B23: 2000 | C23: 169.732 | D23: First BUR | F23: Cumulative Reduction: BAU vs. Low Carbon Scenario (2010-2030) MT (avg) | H23: 929 | T23: 2030 | U23: 144 | V23: 204 | W23: 163 | Z23: 60
B24: 2005 | C24: 182.49 | D24: First BUR | F24: Cumulative Gap: Low Carbon Scenario vs. INDC Target (2010-2030) MT | H24: -273.8013695 | N24: Future (BAU) -Other studies | O24: 2020 | P24: 223.1124902 | W24: 4070.609773 | X24: 230.8742269
B25: 2010 | C25: 187.022 | D25: First BUR | J25: Figure 1: Projected Transport Emissions: BAU, Low Carbon Scenario, and Transport Target | O25: 2025 | P25: 235.2387243 | U25: 3839.735547 | V25: 4467.818081 | W25: 628.0825348
B26: 2011 | C26: =190.083+(21*29.75/1000)+(310*25.39/1000) -> 198.57865 | D26: First BUR | O26: 2030 | P26: 252.9081058
O27: 2035 | P27: 273.3325108 | Q27: -0.1377777778
J28: Figure 1: Projected Transport Emissions: BAU, Low Carbon Scenario, and Indicative Targe | O28: 2040 | P28: 297.1948254
O29: 2045 | P29: 322.1744692
O30: 2050 | P30: 347.1939795 | Q30: -1
R33: Year | S33: % Increase
Q34: Total Country CO2e Emissions (BAU) | R34: 1990-2011 | S34: 0.08724827863
R35: 2011-2030 | S35: 0.05585556541
N36: Low Carbon Scenario (studies) | O36: 2030 | P36: 150 | Q36: Total Transport CO2e Emissions (BAU) | R36: 1990-2011 | S36: 0.04033467593
O37: 2050 | P37: 5 | R37: 2011-2030 | S37: -0.0921724842
O38: 2020 | P38: 156.1787432 | Q38: Transport Mitigation Potential (below BAU @ 2030) | S38: -0.2941176471 | T38: Decrease
O39: 2020 | P39: 207.4946159 | Q39: Transport Mitigation Potential (below INDC target) | S39: -0.1165644172
A40: Table 2: Mitigation Potential Studies | O40: 2030 | P40: 101.1632423
A41: Study Title | C41: Global Transportation Roadmap | D41: Pathways to Deep Decarbonization | O41: 2050 | P41: 86.79849488
A42: Quantification by Institute | C42: ICCT | D42: Institute for Sustainable Development and International Relations (IDDRI), | O42: 2050 | P42: 135.405652
A43: Methodology/Model Used | C43: Bottom-up | D43: Bottom-up
A44: Base Year | C44: 2010 | D44: 2010
A45: Base Year CO2e Emissions (MT) | B45: Road | C45: 173.4075314
B46: Railways | C46: 8.4
B47: Waterways
B48: Aviation | C48: 21.8
B49: Passenger
B50: Freight
B51: Urban | O51: 2012 | P51: 87
B52: Total | C52: 203.6 | D52: 198
A53: Forecast Year | C53: 2030
A54: Forecast CO2 Emissions (MT) BAU | B54: Road
B55: Railways
B56: Waterways
B57: Aviation
B58: Passenger
B59: Freight
B60: Urban
B61: Total | C61: 252.9081058
A62: Forecast Year | C62: 2030 | D62: 2050
A63: Forecast CO2 Emissions with Mitigation Measures (MT) | B63: Road
B64: Railways
B65: Waterways
B66: Aviation
B67: Passenger
B68: Freight
B69: Urban
B70: Total | C70: 150 | D70: 5
A71: % Projected Increase (BAU) | C71: =(C61/C52-1) -> 0.2421812662 | D71: =(D61/D52-1) -> -1
A72: % Projected Decrease (With Mitigation Measures) | C72: =C70/C61-1 -> -0.4068991995
A73: Mitigation Measures | C73: Canada has issued harmonized LDV standards to 2016, proposed harmonized HDV standards, and announced plans to harmonize LDV standards out to 2025. Additional vehicle efficiency potential improvements, alongside activity reduction and mode shift policies, can change the trajectory of Canada’s transportation emissions, trimming them by 26 percent from 2000 levels | D73: decarbonization is initially driven by vehicle efficiency improvements and then by substantial fuel switching to biofuels (predominantly cellulosic ethanol for personal transport and biodiesel for freight transport), electricity, and hydrogen . Mode shift to mass transit and freight rails . Freight demand with economy reduces by 35%
A79: TIER I FACTSHEET SOURCES
A81: Table 1: Historic and Projected Emissions
A82: Historic Emissions | B82: Submitted National Communications | C82: http://unfccc.int/national_reports/non-annex_i_natcom/submitted_natcom/items/653.php
B83: UNFCCC: INDCs as communicated by Parties | C83: http://www4.unfccc.int/submissions/indc/Submission%20Pages/submissions.aspx
B84: Submitted Biennial Update Reports | C84: http://unfccc.int/national_reports/non-annex_i_natcom/reporting_on_climate_change/items/8722.php
B85: The Climate Pledge INDC Tool | C85: http://infographics.pbl.nl/indc/
B86: CAIT Climate Data Explorer | C86: http://cait.wri.org/
B87: Climate Equity Reference Calculator | C87: http://gdrights.org/calculator-about/
B88: World Bank - World Development Indicators | C88: http://data.worldbank.org/data-catalog/world-development-indicators
B89: UNEP Pledge Pipeline Tool | C89: http://www.unep.org/climatechange/pledgepipeline/
B90: Climate Action Tracker | C90: http://climateactiontracker.org/
A91: BAU Emissions Projections | B91: Submitted National Communications | C91: http://unfccc.int/national_reports/non-annex_i_natcom/submitted_natcom/items/653.php
B92: UNFCCC: INDCs as communicated by Parties | C92: http://www4.unfccc.int/submissions/indc/Submission%20Pages/submissions.aspx
B93: Submitted Biennial Update Reports | C93: http://unfccc.int/national_reports/non-annex_i_natcom/reporting_on_climate_change/items/8722.php
B94: The Climate Pledge INDC Tool | C94: http://infographics.pbl.nl/indc/
B95: Climate Equity Reference Calculator | C95: http://gdrights.org/calculator-about/
B96: World Bank - World Development Indicators | C96: http://data.worldbank.org/data-catalog/world-development-indicators
B97: UNEP Pledge Pipeline Tool | C97: http://www.unep.org/climatechange/pledgepipeline/
B98: Climate Action Tracker | C98: http://climateactiontracker.org/
A99: INDC Targets | B99: UNFCCC: INDCs as communicated by Parties | C99: http://www4.unfccc.int/submissions/indc/Submission%20Pages/submissions.aspx
A101: Table 2: Mitigation Potential Studies
A102: Low Carbon Emission Projections | B102: SLoCaT Overview of Mitigation Potential Studies | C102: http://www.slocat.net/docs/1519
B103: Submitted National Communications | C103: http://unfccc.int/national_reports/annex_i_natcom/submitted_natcom/items/7742.php
A104: BAU Emissions Projections | B104: Submitted Biennial Reports | C104: http://unfccc.int/national_reports/biennial_reports_and_iar/submitted_biennial_reports/items/7550.php
B105: UNFCCC: INDCs as communicated by Parties | C105: http://www4.unfccc.int/submissions/indc/Submission%20Pages/submissions.aspx
A107: Table 3: Comparison of BAU/Low Carbon Scenarios and INDC Target
A108: Historic Emissions | B108: Submitted National Communications | C108: http://unfccc.int/national_reports/non-annex_i_natcom/submitted_natcom/items/653.php
B109: UNFCCC: INDCs as communicated by Parties | C109: http://www4.unfccc.int/submissions/indc/Submission%20Pages/submissions.aspx
B110: Submitted Biennial Update Reports | C110: http://unfccc.int/national_reports/non-annex_i_natcom/reporting_on_climate_change/items/8722.php
B111: The Climate Pledge INDC Tool | C111: http://infographics.pbl.nl/indc/
B112: CAIT Climate Data Explorer | C112: http://cait.wri.org/
B113: Climate Equity Reference Calculator | C113: http://gdrights.org/calculator-about/
B114: World Bank - World Development Indicators | C114: http://data.worldbank.org/data-catalog/world-development-indicators
B115: UNEP Pledge Pipeline Tool | C115: http://www.unep.org/climatechange/pledgepipeline/
B116: Climate Action Tracker | C116: http://climateactiontracker.org/
A117: BAU Emissions Projections | B117: Submitted National Communications | C117: http://unfccc.int/national_reports/non-annex_i_natcom/submitted_natcom/items/653.php
B118: UNFCCC: INDCs as communicated by Parties | C118: http://www4.unfccc.int/submissions/indc/Submission%20Pages/submissions.aspx
B119: Submitted Biennial Update Reports | C119: http://unfccc.int/national_reports/non-annex_i_natcom/reporting_on_climate_change/items/8722.php
B120: The Climate Pledge INDC Tool | C120: http://infographics.pbl.nl/indc/
B121: Climate Equity Reference Calculator | C121: http://gdrights.org/calculator-about/
B122: World Bank - World Development Indicators | C122: http://data.worldbank.org/data-catalog/world-development-indicators
B123: UNEP Pledge Pipeline Tool | C123: http://www.unep.org/climatechange/pledgepipeline/
B124: Climate Action Tracker | C124: http://climateactiontracker.org/
A125: Low Carbon Emission Projections | B125: SLoCaT Overview of Mitigation Potential Studies | C125: http://www.slocat.net/docs/1519
A126: INDC Targets | B126: UNFCCC: INDCs as communicated by Parties | C126: http://www4.unfccc.int/submissions/indc/Submission%20Pages/submissions.aspx
A128: Figure 1: Projected Transport Emissions: BAU, Low Carbon Scenario, and Indicative Target
A129: Derived from Table 3: Comparison of BAU/Low Carbon Scenarios and INDC Target

Sheet Chile
U1: -2.435018982 | V1: -0.7495472463 | W1: -1.66695253
A2: Table 1: Historic and Projected Emissions | U2: -2.206723146 | V2: -0.2894556358
A3: Country | C3: Chile | F3: Table 3: Comparison of BAU/Low Carbon Scenarios and INDC Target | T3: 2010 | U3: 228.138 | V3: 228.138 | W3: 228.138 | Z3: 0
A4: Economy-Wide CO2e Emissions Target | B4: National Communication | C4: 20% deviation below the “Business as Usual” emissions growth trajectory by 2020, as projected from year 2007. | F4: Transport CO2 Summary | H4: MT | T4: 2011 | U4: 224.71229 | V4: 224.71229 | W4: 224.3350478 | Z4: 0
B5: BUR | F5: Transport CO2 (MT)- (avg baseline) | G5: 1990 | H5: 9.251 | T5: 2012 | U5: 219.2405031 | V5: 223.0279652 | W5: 220.5954891 | Z5: 3.787462134
B6: Other National Document/Pledge | G6: 2000 | H6: 17.298 | T6: 2013 | U6: 213.9019552 | V6: 221.3562652 | W6: 216.918267 | Z6: 7.454310028
B7: INDC Unconditional Reduction | C7: Reduction of CO2 per unit of GDP by 30% over 2007 level | G7: 2010 | H7: 20.84 | T7: 2014 | U7: 208.693402 | V7: 219.6970955 | W7: 213.3023425 | Z7: 11.00369345
B8: INDC Conditional Reduction | C8: Reduction of CO2 per unit of GDP by 35% to 45% over 2007 level | G8: 2011 | H8: 22 | P8: CO2e Emissions (MT) | T8: 2015 | U8: 203.6116781 | V8: 218.0503619 | W8: 209.7466937 | Z8: 14.43868387
B9: INDC - Any other target mentioned | E9: ` | G9: 2020 | H9: 35 | O9: 1990 | P9: 9.251 | T9: 2016 | U9: 198.653695 | V9: 216.4159714 | W9: 206.2503158 | Z9: 17.7622764
B10: INDC - Long Term Target | G10: 2030 | H10: 60 | O10: 1994 | T10: 2017 | U10: 193.8164399 | V10: 214.7938315 | W10: 202.812221 | Z10: 20.97739163
A11: 2030 Economy-Wide CO2e Emissions Target (MT) | C11: 156 | G11: 2050 | O11: 1995 | P11: 13.886 | T11: 2018 | U11: 189.0969728 | V11: 213.1838502 | W11: 199.4314375 | Z11: 24.08687748
A12: Derived 2030 Transport CO2 Emissions Target ( based on share of total emissions @ 2010) | C12: 37.47747748 | F12: Low Carbon Transport(MT) (avg low carbon baseline) | G12: 2020 | H12: 33 | O12: 2000 | P12: 17.298 | T12: 2019 | U12: 184.4924256 | V12: 211.5859366 | W12: 196.1070101 | Z12: 27.09351098
G13: 2030 | H13: 42.6 | O13: 2005 | P13: 19.021 | T13: 2020 | U13: 180 | V13: 210 | W13: 192.8379994 | Z13: 30
G14: 2050 | O14: 2010 | P14: 20.84 | T14: 2021 | U14: 176.0278983 | V14: 209.3921432 | W14: 189.6234815 | Z14: 33.36424483
A15: OFFICIAL and IEA ESTIMATES | B15: Base Year | C15: CO2e Emissions (MT) | D15: Source | F15: Average Reduction of Low Carbon estimate with BAU (%) | G15: 2030 | H15: -29 | O15: 2011 | P15: 22 | T15: 2022 | U15: 172.14345 | V15: 208.7860458 | W15: 186.462548 | Z15: 36.64259584
A16: Economy-Wide CO2e Emissions : Historical | B16: 1990 | C16: 49.896 | D16: Chile Second National Communication | T16: 2023 | U16: 168.3447206 | V16: 208.1817028 | W16: 183.3543059 | Z16: 39.83698222
B17: 2011 | C17: 91.575 | D17: Chile Second National Communication | N17: Future (BAU) -Official | T17: 2024 | U17: 164.6298187 | V17: 207.5791092 | W17: 180.2978766 | Z17: 42.94929046
A18: Economy-Wide CO2e Emissions : Projections | B18: 2020 | C18: 110 | F18: Gap Between INDC Target and Average Low Carbon Scenario (%) | G18: Average | H18: 0.14 | T18: 2025 | U18: 160.9968944 | V18: 206.9782597 | W18: 177.2923966 | Z18: 45.98136535
B19: 2030 | C19: 130 | D19: Chile Second National Communication | F19: Transport CO2 Target (MT) | G19: INDC | H19: 37 | T19: 2026 | U19: 157.4441386 | V19: 206.3791495 | W19: 174.3370165 | Z19: 48.93501084
A20: Transport Sector : Historic CO2e Emissions | B20: 1990 | C20: 9.251 | D20: Chile - BUR | F20: Gap Between INDC Target and Average Low Carbon Scenario in Million Tons @ 2030 | H20: 5.122522523 | T20: 2027 | U20: 153.9697824 | V20: 205.7817734 | W20: 171.4309012 | Z20: 51.81199101
B21: 1994 | F21: Cumulative Increase: BAU Scenario (2010-2030) MT (avg) | H21: 777.822278 | N21: Low Carbon Scenario-Official | O21: 2015 | P21: 21 | T21: 2028 | U21: 150.5720956 | V21: 205.1861265 | W21: 168.5732295 | Z21: 54.6140309
B22: 1995 | C22: 13.886 | D22: Chile - BUR | F22: Cumulative Increase: Low Carbon Scenario (2010-2030) MT (avg) | H22: 673.3252092 | O22: 2020 | P22: 25 | T22: 2029 | U22: 147.2493863 | V22: 204.5922037 | W22: 165.7631938 | Z22: 57.34281737
B23: 2000 | C23: 17.298 | D23: Chile - BUR | F23: Cumulative Reduction: BAU vs. Low Carbon Scenario (2010-2030) MT (avg) | H23: 104.4970688 | O23: 2030 | P23: 30 | T23: 2030 | U23: 144 | V23: 204 | W23: 163 | Z23: 60
B24: 2005 | C24: 19.021 | D24: Chile - BUR | F24: Cumulative Gap: Low Carbon Scenario vs. INDC Target (2010-2030) MT | H24: -77.13164201 | N24: Future (BAU) -Other studies | O24: 2010 | P24: 19.8 | W24: 4070.609773 | X24: 230.8742269
B25: 2010 | C25: 20.84 | D25: Chile - BUR | J25: Figure 1: Projected Transport Emissions: BAU, Low Carbon Scenario, and Transport Target | O25: 2015 | P25: 24.28 | U25: 3839.735547 | V25: 4467.818081 | W25: 628.0825348
B26: 2011 | C26: 22 | D26: CO2 Emissions from Fuel Combustion IEA 2014 | O26: 2020 | P26: 28.957
O27: 2025 | P27: 34.563 | Q27: -0.1377777778
J28: Figure 1: Projected Transport Emissions: BAU, Low Carbon Scenario, and Indicative Targe | O28: 2020 | P28: 33.58
O29: 2025 | P29: 55
O30: 2020 | P30: 45 | Q30: -1
O31: 2030 | P31: 69.36361325
O32: 2030 | P32: 50.68372171
R33: Year | S33: % Increase
Q34: Total Country CO2e Emissions (BAU) | R34: 1990-2011 | S34: 0.08724827863
R35: 2011-2030 | S35: 0.05585556541
N36: Low Carbon Scenario (studies) | O36: 2020 | P36: 42 | Q36: Total Transport CO2e Emissions (BAU) | R36: 1990-2011 | S36: 0.04033467593
O37: 2030 | P37: 44 | R37: 2011-2030 | S37: -0.0921724842
O38: 2030 | P38: 53.899 | Q38: Transport Mitigation Potential (below BAU @ 2030) | S38: -0.2941176471 | T38: Decrease
Q39: Transport Mitigation Potential (below INDC target) | S39: -0.1165644172
A40: Table 2: Mitigation Potential Studies
A41: Study Title | C41: Greenhouse Gas Emissions in the Transport Sector 2000-2020: Case Study for Chile | D41: PMR Market Readiness Proposal In Chile: Activity 4: Study On The Chilean National Situation | E41: Programas de transporte: integrando los impactos del Cambio Climático
A42: Quantification by Institute | C42: University of California, Davis | D42: World bank
A43: Methodology/Model Used | C43: Bottom-up | D43: Bottom-up
A44: Base Year | C44: 1997 | D44: 2007 | E44: 2005
A45: Base Year CO2e Emissions (MT) | B45: Road
B46: Railways
B47: Waterways
B48: Aviation
B49: Passenger
B50: Freight
B51: Urban
B52: Total | C52: 20 | D52: 25
A53: Forecast Year | C53: 2020 | D53: 2025 | E53: 2020
A54: Forecast CO2 Emissions (MT) BAU | B54: Road
B55: Railways
B56: Waterways
B57: Aviation
B58: Passenger
B59: Freight
B60: Urban
B61: Total | C61: 45 | D61: 55
A62: Forecast Year | C62: 2020 | D62: 2025 | E62: 2020
A63: Forecast CO2 Emissions with Mitigation Measures (MT) | B63: Road
B64: Railways
B65: Waterways
B66: Aviation
B67: Passenger
B68: Freight
B69: Urban
B70: Total | C70: =C61-45*0.06 -> 42.3 | D70: =D61-(0.2*D61) -> 44
A71: % Projected Increase (BAU) | D71: =(D61/D52-1) -> 1.2 | E71: 1.17
A72: % Projected Decrease (With Mitigation Measures) | C72: 0.06 | D72: 0.2 | E72: 0.75
A73: Mitigation Measures | C73: Constant Urban Public Transport Share, Improved Passenger Train Transport, Intensive Use of Natural Gas, | D73: efficient driving, use of hybrid vehicles, aerodynamic improvements and renovation of the fleet. Other measures are oriented towards reducing the use of cars by promoting public transportation, expansion of subway systems, and increasing the fee on parking and tolls.
A79: TIER I FACTSHEET SOURCES
A81: Table 1: Historic and Projected Emissions
A82: Historic Emissions | B82: Submitted National Communications | C82: http://unfccc.int/national_reports/non-annex_i_natcom/submitted_natcom/items/653.php
B83: UNFCCC: INDCs as communicated by Parties | C83: http://www4.unfccc.int/submissions/indc/Submission%20Pages/submissions.aspx
B84: Submitted Biennial Update Reports | C84: http://unfccc.int/national_reports/non-annex_i_natcom/reporting_on_climate_change/items/8722.php
B85: The Climate Pledge INDC Tool | C85: http://infographics.pbl.nl/indc/
B86: CAIT Climate Data Explorer | C86: http://cait.wri.org/
B87: Climate Equity Reference Calculator | C87: http://gdrights.org/calculator-about/
B88: World Bank - World Development Indicators | C88: http://data.worldbank.org/data-catalog/world-development-indicators
B89: UNEP Pledge Pipeline Tool | C89: http://www.unep.org/climatechange/pledgepipeline/
B90: Climate Action Tracker | C90: http://climateactiontracker.org/
A91: BAU Emissions Projections | B91: Submitted National Communications | C91: http://unfccc.int/national_reports/non-annex_i_natcom/submitted_natcom/items/653.php
B92: UNFCCC: INDCs as communicated by Parties | C92: http://www4.unfccc.int/submissions/indc/Submission%20Pages/submissions.aspx
B93: Submitted Biennial Update Reports | C93: http://unfccc.int/national_reports/non-annex_i_natcom/reporting_on_climate_change/items/8722.php
B94: The Climate Pledge INDC Tool | C94: http://infographics.pbl.nl/indc/
B95: Climate Equity Reference Calculator | C95: http://gdrights.org/calculator-about/
B96: World Bank - World Development Indicators | C96: http://data.worldbank.org/data-catalog/world-development-indicators
B97: UNEP Pledge Pipeline Tool | C97: http://www.unep.org/climatechange/pledgepipeline/
B98: Climate Action Tracker | C98: http://climateactiontracker.org/
A99: INDC Targets | B99: UNFCCC: INDCs as communicated by Parties | C99: http://www4.unfccc.int/submissions/indc/Submission%20Pages/submissions.aspx
A101: Table 2: Mitigation Potential Studies
A102: Low Carbon Emission Projections | B102: SLoCaT Overview of Mitigation Potential Studies | C102: http://www.slocat.net/docs/1519
B103: Submitted National Communications | C103: http://unfccc.int/national_reports/annex_i_natcom/submitted_natcom/items/7742.php
A104: BAU Emissions Projections | B104: Submitted Biennial Reports | C104: http://unfccc.int/national_reports/biennial_reports_and_iar/submitted_biennial_reports/items/7550.php
B105: UNFCCC: INDCs as communicated by Parties | C105: http://www4.unfccc.int/submissions/indc/Submission%20Pages/submissions.aspx
A107: Table 3: Comparison of BAU/Low Carbon Scenarios and INDC Target
A108: Historic Emissions | B108: Submitted National Communications | C108: http://unfccc.int/national_reports/non-annex_i_natcom/submitted_natcom/items/653.php
B109: UNFCCC: INDCs as communicated by Parties | C109: http://www4.unfccc.int/submissions/indc/Submission%20Pages/submissions.aspx
B110: Submitted Biennial Update Reports | C110: http://unfccc.int/national_reports/non-annex_i_natcom/reporting_on_climate_change/items/8722.php
B111: The Climate Pledge INDC Tool | C111: http://infographics.pbl.nl/indc/
B112: CAIT Climate Data Explorer | C112: http://cait.wri.org/
B113: Climate Equity Reference Calculator | C113: http://gdrights.org/calculator-about/
B114: World Bank - World Development Indicators | C114: http://data.worldbank.org/data-catalog/world-development-indicators
B115: UNEP Pledge Pipeline Tool | C115: http://www.unep.org/climatechange/pledgepipeline/
B116: Climate Action Tracker | C116: http://climateactiontracker.org/
A117: BAU Emissions Projections | B117: Submitted National Communications | C117: http://unfccc.int/national_reports/non-annex_i_natcom/submitted_natcom/items/653.php
B118: UNFCCC: INDCs as communicated by Parties | C118: http://www4.unfccc.int/submissions/indc/Submission%20Pages/submissions.aspx
B119: Submitted Biennial Update Reports | C119: http://unfccc.int/national_reports/non-annex_i_natcom/reporting_on_climate_change/items/8722.php
B120: The Climate Pledge INDC Tool | C120: http://infographics.pbl.nl/indc/
B121: Climate Equity Reference Calculator | C121: http://gdrights.org/calculator-about/
B122: World Bank - World Development Indicators | C122: http://data.worldbank.org/data-catalog/world-development-indicators
B123: UNEP Pledge Pipeline Tool | C123: http://www.unep.org/climatechange/pledgepipeline/
B124: Climate Action Tracker | C124: http://climateactiontracker.org/
A125: Low Carbon Emission Projections | B125: SLoCaT Overview of Mitigation Potential Studies | C125: http://www.slocat.net/docs/1519
A126: INDC Targets | B126: UNFCCC: INDCs as communicated by Parties | C126: http://www4.unfccc.int/submissions/indc/Submission%20Pages/submissions.aspx
A128: Figure 1: Projected Transport Emissions: BAU, Low Carbon Scenario, and Indicative Target
A129: Derived from Table 3: Comparison of BAU/Low Carbon Scenarios and INDC Target

Sheet China
U1: -2.435018982 | V1: -0.7495472463 | W1: -1.66695253
A2: Table 1: Historic and Projected Emissions | U2: -2.206723146 | V2: -0.2894556358
A3: Country | C3: China | F3: Table 3: Comparison of BAU/Low Carbon Scenarios and INDC Target | T3: 2010 | U3: 228.138 | V3: 228.138 | W3: 228.138 | Z3: 0
A4: Economy-Wide CO2e Emissions Target | B4: National Communication | F4: Transport CO2 Summary | H4: MT | T4: 2011 | U4: 224.71229 | V4: 224.71229 | W4: 224.3350478 | Z4: 0
B5: BUR | F5: Transport CO2 (MT)- (avg baseline) | G5: 1990 | H5: 136.29 | T5: 2012 | U5: 219.2405031 | V5: 223.0279652 | W5: 220.5954891 | Z5: 3.787462134
B6: Other National Document/Pledge | C6: emissions per unit of GDP by 40-45% by 2020 compared to the 2005 level | G6: 2000 | H6: 262.6 | T6: 2013 | U6: 213.9019552 | V6: 221.3562652 | W6: 216.918267 | Z6: 7.454310028
B7: INDC Unconditional Reduction | C7: To achieve the peaking of carbon dioxide emissions around 2030 and making best efforts to peak early; To lower carbon dioxide emissions per unit of GDP by 60% to 65% from the 2005 level | G7: 2010 | H7: 513.6 | T7: 2014 | U7: 208.693402 | V7: 219.6970955 | W7: 213.3023425 | Z7: 11.00369345
B8: INDC Conditional Reduction | G8: 2011 | H8: 628.8 | P8: CO2e Emissions (MT) | T8: 2015 | U8: 203.6116781 | V8: 218.0503619 | W8: 209.7466937 | Z8: 14.43868387
B9: INDC - Any other target mentioned | E9: ` | G9: 2020 | H9: 967 | O9: 1990 | P9: 136.29 | T9: 2016 | U9: 198.653695 | V9: 216.4159714 | W9: 206.2503158 | Z9: 17.7622764
B10: INDC - Long Term Target | G10: 2030 | H10: 1501 | O10: 1995 | P10: 182.62 | T10: 2017 | U10: 193.8164399 | V10: 214.7938315 | W10: 202.812221 | Z10: 20.97739163
A11: 2030 Economy-Wide CO2e Emissions Target (MT) | C11: 15102 | G11: 2050 | O11: 2000 | P11: 262.6 | T11: 2018 | U11: 189.0969728 | V11: 213.1838502 | W11: 199.4314375 | Z11: 24.08687748
A12: Derived 2030 Transport CO2 Emissions Target ( based on share of total emissions @ 2010) | C12: 859 | F12: Low Carbon Transport(MT) (avg low carbon baseline) | G12: 2020 | H12: 925 | O12: 2005 | P12: 430.9 | T12: 2019 | U12: 184.4924256 | V12: 211.5859366 | W12: 196.1070101 | Z12: 27.09351098
G13: 2030 | H13: 1067 | O13: 2010 | P13: 513.6 | T13: 2020 | U13: 180 | V13: 210 | W13: 192.8379994 | Z13: 30
G14: 2050 | O14: 2011 | P14: 628.8 | T14: 2021 | U14: 176.0278983 | V14: 209.3921432 | W14: 189.6234815 | Z14: 33.36424483
A15: OFFICIAL and IEA ESTIMATES | B15: Base Year | C15: CO2e Emissions (MT) | D15: Source | F15: Average Reduction of Low Carbon estimate with BAU (%) | G15: 2030 | H15: -29 | O15: 2012 | P15: 709.163953 | T15: 2022 | U15: 172.14345 | V15: 208.7860458 | W15: 186.462548 | Z15: 36.64259584
A16: Economy-Wide CO2e Emissions : Historical | B16: 1990 | C16: 3567.456738 | D16: http://infographics.pbl.nl/indc/ | T16: 2023 | U16: 168.3447206 | V16: 208.1817028 | W16: 183.3543059 | Z16: 39.83698222
B17: 2010 | C17: 10427.20104 | D17: http://infographics.pbl.nl/indc/ | N17: Future (BAU) -Official | T17: 2024 | U17: 164.6298187 | V17: 207.5791092 | W17: 180.2978766 | Z17: 42.94929046
A18: Economy-Wide CO2e Emissions : Projections | B18: 2020 | C18: 14280 | D18: http://www.unep.org/climatechange/pledgepipeline/ | F18: Gap Between INDC Target and Average Low Carbon Scenario (%) | G18: Average | H18: 0.2421420256 | O18: 2020 | T18: 2025 | U18: 160.9968944 | V18: 206.9782597 | W18: 177.2923966 | Z18: 45.98136535
B19: 2030 | F19: Transport CO2 Target (MT) | G19: INDC | H19: 859 | O19: 2030 | T19: 2026 | U19: 157.4441386 | V19: 206.3791495 | W19: 174.3370165 | Z19: 48.93501084
A20: Transport Sector : Historic CO2e Emissions | B20: 1990 | C20: 136.29 | D20: CO2 Emissions from Fuel Combustion IEA | F20: Gap Between INDC Target and Average Low Carbon Scenario in Million Tons @ 2030 | H20: 208 | O20: 2020 | T20: 2027 | U20: 153.9697824 | V20: 205.7817734 | W20: 171.4309012 | Z20: 51.81199101
B21: 1994 | F21: Cumulative Increase: BAU Scenario (2010-2030) MT (avg) | H21: 20799.03881 | N21: Low Carbon Scenario-Official | O21: 2020 | T21: 2028 | U21: 150.5720956 | V21: 205.1861265 | W21: 168.5732295 | Z21: 54.6140309
B22: 1995 | C22: 182.62 | D22: CO2 Emissions from Fuel Combustion IEA | F22: Cumulative Increase: Low Carbon Scenario (2010-2030) MT (avg) | H22: 18212.4004 | O22: 2030 | T22: 2029 | U22: 147.2493863 | V22: 204.5922037 | W22: 165.7631938 | Z22: 57.34281737
B23: 2000 | C23: 262.6 | D23: CO2 Emissions from Fuel Combustion IEA | F23: Cumulative Reduction: BAU vs. Low Carbon Scenario (2010-2030) MT (avg) | H23: 2586.638407 | T23: 2030 | U23: 144 | V23: 204 | W23: 163 | Z23: 60
B24: 2005 | C24: 430.9 | D24: Second national communication | F24: Cumulative Gap: Low Carbon Scenario vs. INDC Target (2010-2030) MT | H24: -4094.142295 | N24: Future (BAU) -Other studies | O24: 2020 | P24: 972 | W24: 4070.609773 | X24: 230.8742269
B25: 2010 | C25: 513.6 | D25: CO2 Emissions from Fuel Combustion IEA | J25: Figure 1: Projected Transport Emissions: BAU, Low Carbon Scenario, and Transport Target | O25: 2025 | P25: 1144 | U25: 3839.735547 | V25: 4467.818081 | W25: 628.0825348
B26: 2011 | C26: 628.8 | D26: CO2 Emissions from Fuel Combustion IEA | O26: 2030 | P26: 1146
B27: 2012 | C27: 709.163953 | D27: CO2 Emissions from Fuel Combustion IEA | O27: 2030 | P27: 1561 | Q27: -0.1377777778
J28: Figure 1: Projected Transport Emissions: BAU, Low Carbon Scenario, and Indicative Targe | O28: 2030 | P28: 2600
O29: 2030 | P29: 1200
O30: 2030 | P30: 1360 | Q30: -1
O31: 2030 | P31: 1285
O32: 2030 | P32: 1360
O33: 2035 | P33: 1371 | R33: Year | S33: % Increase
O34: 2035 | P34: 1505 | Q34: Total Country CO2e Emissions (BAU) | R34: 1990-2011 | S34: 0.08724827863
O35: 2020 | P35: 963 | R35: 2011-2030 | S35: 0.05585556541
N36: Low Carbon Scenario (studies) | O36: 2020 | P36: 927 | Q36: Total Transport CO2e Emissions (BAU) | R36: 1990-2011 | S36: 0.04033467593
O37: 2020 | P37: 923 | R37: 2011-2030 | S37: -0.0921724842
O38: 2030 | P38: 972 | Q38: Transport Mitigation Potential (below BAU @ 2030) | S38: -0.2941176471 | T38: Decrease
O39: 2030 | P39: 1112 | Q39: Transport Mitigation Potential (below INDC target) | S39: -0.1165644172
A40: Table 2: Mitigation Potential Studies | O40: 2030 | P40: 1400
A41: Study Title | C41: Oil consumption and CO2 emissions in China's road transport: current status, future trends, and policy implications | D41: Projection of Chinese Motor Vehicle Growth, Oil Demand, and CO 2 Emissions through 2050 | E41: ICCT-Roadmap | F41: ITPS - Low Carbon Transport Study | G41: Energy and Climate Change - World Energy Outlook Special Report | H41: World Energy Outlook-2012 | O41: 2030 | P41: 950
A42: Quantification by Institute | C42: Tsingua University | D42: Argonne National Laboratory | E42: ICCT | F42: ITPS-Tsingua | G42: IEA | H42: IEA | O42: 2030 | P42: 1085
A43: Methodology/Model Used | C43: Bottom-up | D43: Bottom-up | E43: Bottom-up | F43: Bottom-up | G43: Bottom-up | H43: Bottom-up | O43: 2030 | P43: 978
A44: Base Year | C44: 2002 | D44: 2000 | E44: 2000 | F44: 2000 | G44: 2013 | H44: 2010 | O44: 2030 | P44: 978
A45: Base Year CO2e Emissions (MT) | B45: Road | C45: 229 | D45: 215.2 | O45: 2035 | P45: 912
B46: Railways
B47: Waterways
B48: Aviation
B49: Passenger
B50: Freight
B51: Urban
B52: Total | E52: 200 | F52: 250 | G52: 689 | H52: 505
A53: Forecast Year | C53: 2030 | D53: 2030 | E53: 2030 | F53: 2030 | G53: 2030 | H53: 2030
A54: Forecast CO2 Emissions (MT) BAU | B54: Road | C54: 1146 | D54: 1561
B55: Railways
B56: Waterways
B57: Aviation
B58: Passenger
B59: Freight
B60: Urban
B61: Total | E61: 2600 | F61: 1200 | G61: 1360 | H61: 1360
A62: Forecast Year | C62: 2030 | D62: 2030 | E62: 2030 | F62: 2030 | G62: 2030 | H62: 2030
A63: Forecast CO2 Emissions with Mitigation Measures (MT) | B63: Road | C63: 972 | D63: 1112
B64: Railways
B65: Waterways
B66: Aviation
B67: Passenger
B68: Freight
B69: Urban
B70: Total | E70: 1400 | F70: 950 | G70: 1085 | H70: 978
A71: % Projected Increase (BAU) | C71: 4.004366812 | D71: 6.253717472 | E71: 12 | F71: 3.8 | G71: 0.9738751814 | H71: 1.693069307
A72: % Projected Decrease (With Mitigation Measures) | C72: -0.1518324607 | D72: -0.2876361307 | E72: -0.4615384615 | F72: -0.2083333333 | G72: -0.2022058824 | H72: -0.2808823529
A73: Mitigation Measures | C73: Fuel Economy Standards | D73: Fuel Economy Standards, Controlling vehicle ownership growth | E73: Considers improvement of the efficiency of both light- and heavy-duty vehicles, with subsequent and more stringent policies in the pipeline. It also considers Transit investments and Modal shifts to public transport. | F73: TDM, Pricing, Fuel efficiency standards for LDV and HDV, parking, Alternative fuels | G73: Bridge Scenario - Existing policies, alternate fuel, fuel economy standards for LDV and HDV | H73: High investment required for 2DS scenario especially in energy efficiency policies
A79: TIER I FACTSHEET SOURCES
A81: Table 1: Historic and Projected Emissions
A82: Historic Emissions | B82: Submitted National Communications | C82: http://unfccc.int/national_reports/non-annex_i_natcom/submitted_natcom/items/653.php
B83: UNFCCC: INDCs as communicated by Parties | C83: http://www4.unfccc.int/submissions/indc/Submission%20Pages/submissions.aspx
B84: Submitted Biennial Update Reports | C84: http://unfccc.int/national_reports/non-annex_i_natcom/reporting_on_climate_change/items/8722.php
B85: The Climate Pledge INDC Tool | C85: http://infographics.pbl.nl/indc/
B86: CAIT Climate Data Explorer | C86: http://cait.wri.org/
B87: Climate Equity Reference Calculator | C87: http://gdrights.org/calculator-about/
B88: World Bank - World Development Indicators | C88: http://data.worldbank.org/data-catalog/world-development-indicators
B89: UNEP Pledge Pipeline Tool | C89: http://www.unep.org/climatechange/pledgepipeline/
B90: Climate Action Tracker | C90: http://climateactiontracker.org/
A91: BAU Emissions Projections | B91: Submitted National Communications | C91: http://unfccc.int/national_reports/non-annex_i_natcom/submitted_natcom/items/653.php
B92: UNFCCC: INDCs as communicated by Parties | C92: http://www4.unfccc.int/submissions/indc/Submission%20Pages/submissions.aspx
B93: Submitted Biennial Update Reports | C93: http://unfccc.int/national_reports/non-annex_i_natcom/reporting_on_climate_change/items/8722.php
B94: The Climate Pledge INDC Tool | C94: http://infographics.pbl.nl/indc/
B95: Climate Equity Reference Calculator | C95: http://gdrights.org/calculator-about/
B96: World Bank - World Development Indicators | C96: http://data.worldbank.org/data-catalog/world-development-indicators
B97: UNEP Pledge Pipeline Tool | C97: http://www.unep.org/climatechange/pledgepipeline/
B98: Climate Action Tracker | C98: http://climateactiontracker.org/
A99: INDC Targets | B99: UNFCCC: INDCs as communicated by Parties | C99: http://www4.unfccc.int/submissions/indc/Submission%20Pages/submissions.aspx
A101: Table 2: Mitigation Potential Studies
A102: Low Carbon Emission Projections | B102: SLoCaT Overview of Mitigation Potential Studies | C102: http://www.slocat.net/docs/1519
B103: Submitted National Communications | C103: http://unfccc.int/national_reports/annex_i_natcom/submitted_natcom/items/7742.php
A104: BAU Emissions Projections | B104: Submitted Biennial Reports | C104: http://unfccc.int/national_reports/biennial_reports_and_iar/submitted_biennial_reports/items/7550.php
B105: UNFCCC: INDCs as communicated by Parties | C105: http://www4.unfccc.int/submissions/indc/Submission%20Pages/submissions.aspx
A107: Table 3: Comparison of BAU/Low Carbon Scenarios and INDC Target
A108: Historic Emissions | B108: Submitted National Communications | C108: http://unfccc.int/national_reports/non-annex_i_natcom/submitted_natcom/items/653.php
B109: UNFCCC: INDCs as communicated by Parties | C109: http://www4.unfccc.int/submissions/indc/Submission%20Pages/submissions.aspx
B110: Submitted Biennial Update Reports | C110: http://unfccc.int/national_reports/non-annex_i_natcom/reporting_on_climate_change/items/8722.php
B111: The Climate Pledge INDC Tool | C111: http://infographics.pbl.nl/indc/
B112: CAIT Climate Data Explorer | C112: http://cait.wri.org/
B113: Climate Equity Reference Calculator | C113: http://gdrights.org/calculator-about/
B114: World Bank - World Development Indicators | C114: http://data.worldbank.org/data-catalog/world-development-indicators
B115: UNEP Pledge Pipeline Tool | C115: http://www.unep.org/climatechange/pledgepipeline/
B116: Climate Action Tracker | C116: http://climateactiontracker.org/
A117: BAU Emissions Projections | B117: Submitted National Communications | C117: http://unfccc.int/national_reports/non-annex_i_natcom/submitted_natcom/items/653.php
B118: UNFCCC: INDCs as communicated by Parties | C118: http://www4.unfccc.int/submissions/indc/Submission%20Pages/submissions.aspx
B119: Submitted Biennial Update Reports | C119: http://unfccc.int/national_reports/non-annex_i_natcom/reporting_on_climate_change/items/8722.php
B120: The Climate Pledge INDC Tool | C120: http://infographics.pbl.nl/indc/
B121: Climate Equity Reference Calculator | C121: http://gdrights.org/calculator-about/
B122: World Bank - World Development Indicators | C122: http://data.worldbank.org/data-catalog/world-development-indicators
B123: UNEP Pledge Pipeline Tool | C123: http://www.unep.org/climatechange/pledgepipeline/
B124: Climate Action Tracker | C124: http://climateactiontracker.org/
A125: Low Carbon Emission Projections | B125: SLoCaT Overview of Mitigation Potential Studies | C125: http://www.slocat.net/docs/1519
A126: INDC Targets | B126: UNFCCC: INDCs as communicated by Parties | C126: http://www4.unfccc.int/submissions/indc/Submission%20Pages/submissions.aspx
A128: Figure 1: Projected Transport Emissions: BAU, Low Carbon Scenario, and Indicative Target
A129: Derived from Table 3: Comparison of BAU/Low Carbon Scenarios and INDC Target

Sheet Colombia
U1: -2.435018982 | V1: -0.7495472463 | W1: -1.66695253
A2: Table 1: Historic and Projected Emissions | U2: -2.206723146 | V2: -0.2894556358
A3: Country | C3: Colombia | F3: Table 3: Comparison of BAU/Low Carbon Scenarios and INDC Target | T3: 2010 | U3: 228.138 | V3: 228.138 | W3: 228.138 | Z3: 0
A4: Economy-Wide CO2e Emissions Target | B4: National Communication | F4: Transport CO2 Summary | H4: MT | T4: 2011 | U4: 224.71229 | V4: 224.71229 | W4: 224.3350478 | Z4: 0
B5: BUR | F5: Transport CO2 (MT)- (avg baseline) | G5: 1990 | H5: 14.42 | T5: 2012 | U5: 219.2405031 | V5: 223.0279652 | W5: 220.5954891 | Z5: 3.787462134
B6: Other National Document/Pledge | G6: 2000 | H6: 19.838 | T6: 2013 | U6: 213.9019552 | V6: 221.3562652 | W6: 216.918267 | Z6: 7.454310028
B7: INDC Unconditional Reduction | C7: 20% below BAU by 2030 | G7: 2010 | H7: 21.6 | T7: 2014 | U7: 208.693402 | V7: 219.6970955 | W7: 213.3023425 | Z7: 11.00369345
B8: INDC Conditional Reduction | C8: 30% below BAU by 2030 | G8: 2011 | H8: 23.8 | P8: CO2e Emissions (MT) | T8: 2015 | U8: 203.6116781 | V8: 218.0503619 | W8: 209.7466937 | Z8: 14.43868387
B9: INDC - Any other target mentioned | E9: ` | G9: 2020 | H9: 34.4 | O9: 1990 | P9: 14.42 | T9: 2016 | U9: 198.653695 | V9: 216.4159714 | W9: 206.2503158 | Z9: 17.7622764
B10: INDC - Long Term Target | G10: 2030 | H10: 46.2 | O10: 1994 | P10: 18.9808 | T10: 2017 | U10: 193.8164399 | V10: 214.7938315 | W10: 202.812221 | Z10: 20.97739163
A11: 2030 Economy-Wide CO2e Emissions Target (MT) | C11: 234.5 | G11: 2050 | T11: 2018 | U11: 189.0969728 | V11: 213.1838502 | W11: 199.4314375 | Z11: 24.08687748
A12: Derived 2030 Transport CO2 Emissions Target ( based on share of total emissions @ 2010) | C12: 22.6125 | F12: Low Carbon Transport(MT) (avg low carbon baseline) | G12: 2020 | H12: 32 | O12: 2000 | P12: 19.838 | T12: 2019 | U12: 184.4924256 | V12: 211.5859366 | W12: 196.1070101 | Z12: 27.09351098
G13: 2030 | H13: 39.7 | O13: 2004 | P13: 21.614 | T13: 2020 | U13: 180 | V13: 210 | W13: 192.8379994 | Z13: 30
G14: 2050 | O14: 2010 | P14: 21.6 | T14: 2021 | U14: 176.0278983 | V14: 209.3921432 | W14: 189.6234815 | Z14: 33.36424483
A15: OFFICIAL and IEA ESTIMATES | B15: Base Year | C15: CO2e Emissions (MT) | D15: Source | F15: Average Reduction of Low Carbon estimate with BAU (%) | G15: 2030 | H15: -14 | O15: 2011 | P15: 23.8 | T15: 2022 | U15: 172.14345 | V15: 208.7860458 | W15: 186.462548 | Z15: 36.64259584
A16: Economy-Wide CO2e Emissions : Historical | B16: 1990 | C16: 129.368 | D16: Second National Communication | O16: 2012 | P16: 27.6 | T16: 2023 | U16: 168.3447206 | V16: 208.1817028 | W16: 183.3543059 | Z16: 39.83698222
B17: 2010 | C17: 224 | D17: INDC | N17: Future (BAU) -Official | O17: 2020 | P17: 40 | T17: 2024 | U17: 164.6298187 | V17: 207.5791092 | W17: 180.2978766 | Z17: 42.94929046
A18: Economy-Wide CO2e Emissions : Projections | B18: 2020 | C18: 280 | D18: INDC | F18: Gap Between INDC Target and Average Low Carbon Scenario (%) | G18: Average | H18: 0.7556661139 | O18: 2030 | P18: 55 | T18: 2025 | U18: 160.9968944 | V18: 206.9782597 | W18: 177.2923966 | Z18: 45.98136535
B19: 2030 | C19: 335 | D19: INDC | F19: Transport CO2 Target (MT) | G19: INDC | H19: 22.6125 | O19: 2040 | P19: 72 | T19: 2026 | U19: 157.4441386 | V19: 206.3791495 | W19: 174.3370165 | Z19: 48.93501084
A20: Transport Sector : Historic CO2e Emissions | B20: 1990 | C20: 14.42 | D20: First National Communication | F20: Gap Between INDC Target and Average Low Carbon Scenario in Million Tons @ 2030 | H20: 17.0875 | O20: 2025 | P20: 47.5 | T20: 2027 | U20: 153.9697824 | V20: 205.7817734 | W20: 171.4309012 | Z20: 51.81199101
B21: 1994 | C21: =16.974+1.293+0.0428+0.671 -> 18.9808 | D21: First National Communication | F21: Cumulative Increase: BAU Scenario (2010-2030) MT (avg) | H21: 715.7473239 | N21: Low Carbon Scenario-Official | O21: 2020 | P21: 36 | T21: 2028 | U21: 150.5720956 | V21: 205.1861265 | W21: 168.5732295 | Z21: 54.6140309
B22: 1995 | F22: Cumulative Increase: Low Carbon Scenario (2010-2030) MT (avg) | H22: 659.7857967 | O22: 2030 | P22: 49 | T22: 2029 | U22: 147.2493863 | V22: 204.5922037 | W22: 165.7631938 | Z22: 57.34281737
B23: 2000 | C23: 19.838 | D23: Second National Communication | F23: Cumulative Reduction: BAU vs. Low Carbon Scenario (2010-2030) MT (avg) | H23: 55.96152717 | T23: 2030 | U23: 144 | V23: 204 | W23: 163 | Z23: 60
B24: 2004 | C24: 21.614 | D24: Second National Communication | F24: Cumulative Gap: Low Carbon Scenario vs. INDC Target (2010-2030) MT | H24: -195.6316543 | N24: Future (BAU) -Other studies | O24: 2030 | P24: 39 | W24: 4070.609773 | X24: 230.8742269
B25: 2010 | C25: 21.6 | D25: CO2 Emissions from Fuel Combustion IEA 2014 | J25: Figure 1: Projected Transport Emissions: BAU, Low Carbon Scenario, and Transport Target | O25: 2020 | P25: 31.29198382 | U25: 3839.735547 | V25: 4467.818081 | W25: 628.0825348
B26: 2011 | C26: 23.8 | O26: 2025 | P26: 34.93404312
B27: 2012 | C27: 27.6 | D27: CO2 Emissions from Fuel Combustion IEA 2014 | O27: 2020 | P27: 32 | Q27: -0.1377777778
J28: Figure 1: Projected Transport Emissions: BAU, Low Carbon Scenario, and Indicative Targe | O28: 2030 | P28: 44
O29: 2040 | P29: 64
Q30: -1
R33: Year | S33: % Increase
Q34: Total Country CO2e Emissions (BAU) | R34: 1990-2011 | S34: 0.08724827863
R35: 2011-2030 | S35: 0.05585556541
N36: Low Carbon Scenario (studies) | O36: 2030 | P36: 33 | Q36: Total Transport CO2e Emissions (BAU) | R36: 1990-2011 | S36: 0.04033467593
O37: 2020 | P37: 28.23491811 | R37: 2011-2030 | S37: -0.0921724842
O38: 2025 | P38: 30.5246179 | Q38: Transport Mitigation Potential (below BAU @ 2030) | S38: -0.2941176471 | T38: Decrease
O39: 2030 | P39: 37.2 | Q39: Transport Mitigation Potential (below INDC target) | S39: -0.1165644172
A40: Table 2: Mitigation Potential Studies
A41: Study Title | C41: CTF Colombia | D41: SECTORIAL MITIGATION ACTION PLAN (SMAP) TRANSPORT SECTOR IN COLOMBIA
A42: Quantification by Institute | D42: Ministry of Transport
A43: Methodology/Model Used
A44: Base Year | C44: 2004 | D44: 2010
A45: Base Year CO2e Emissions (MT) | B45: Road
B46: Railways
B47: Waterways
B48: Aviation
B49: Passenger
B50: Freight
B51: Urban
B52: Total | C52: 21.8 | D52: 24
A53: Forecast Year | C53: 2030 | D53: 2030
A54: Forecast CO2 Emissions (MT) BAU | B54: Road
B55: Railways
B56: Waterways
B57: Aviation
B58: Passenger
B59: Freight
B60: Urban
B61: Total | C61: 39.2 | D61: 43
A62: Forecast Year | C62: 2030 | D62: 2030
A63: Forecast CO2 Emissions with Mitigation Measures (MT) | B63: Road
B64: Railways
B65: Waterways
B66: Aviation
B67: Passenger
B68: Freight
B69: Urban
B70: Total | C70: =C61-6 -> 33.2 | D70: =D61-5.8 -> 37.2
A71: % Projected Increase (BAU) | C71: =(C61/C52-1) -> 0.7981651376 | D71: =D61/D52-1 -> 0.7916666667
A72: % Projected Decrease (With Mitigation Measures) | C72: =(C70/C61-1) -> -0.1530612245 | D72: =D70/D61-1 -> -0.1348837209
A73: Mitigation Measures | D73: Public transport improvement, freight mode shift, freight vehicle replacement, TOD, NMT improvement, electric vehicles
A79: TIER I FACTSHEET SOURCES
A81: Table 1: Historic and Projected Emissions
A82: Historic Emissions | B82: Submitted National Communications | C82: http://unfccc.int/national_reports/non-annex_i_natcom/submitted_natcom/items/653.php
B83: UNFCCC: INDCs as communicated by Parties | C83: http://www4.unfccc.int/submissions/indc/Submission%20Pages/submissions.aspx
B84: Submitted Biennial Update Reports | C84: http://unfccc.int/national_reports/non-annex_i_natcom/reporting_on_climate_change/items/8722.php
B85: The Climate Pledge INDC Tool | C85: http://infographics.pbl.nl/indc/
B86: CAIT Climate Data Explorer | C86: http://cait.wri.org/
B87: Climate Equity Reference Calculator | C87: http://gdrights.org/calculator-about/
B88: World Bank - World Development Indicators | C88: http://data.worldbank.org/data-catalog/world-development-indicators
B89: UNEP Pledge Pipeline Tool | C89: http://www.unep.org/climatechange/pledgepipeline/
B90: Climate Action Tracker | C90: http://climateactiontracker.org/
A91: BAU Emissions Projections | B91: Submitted National Communications | C91: http://unfccc.int/national_reports/non-annex_i_natcom/submitted_natcom/items/653.php
B92: UNFCCC: INDCs as communicated by Parties | C92: http://www4.unfccc.int/submissions/indc/Submission%20Pages/submissions.aspx
B93: Submitted Biennial Update Reports | C93: http://unfccc.int/national_reports/non-annex_i_natcom/reporting_on_climate_change/items/8722.php
B94: The Climate Pledge INDC Tool | C94: http://infographics.pbl.nl/indc/
B95: Climate Equity Reference Calculator | C95: http://gdrights.org/calculator-about/
B96: World Bank - World Development Indicators | C96: http://data.worldbank.org/data-catalog/world-development-indicators
B97: UNEP Pledge Pipeline Tool | C97: http://www.unep.org/climatechange/pledgepipeline/
B98: Climate Action Tracker | C98: http://climateactiontracker.org/
A99: INDC Targets | B99: UNFCCC: INDCs as communicated by Parties | C99: http://www4.unfccc.int/submissions/indc/Submission%20Pages/submissions.aspx
A101: Table 2: Mitigation Potential Studies
A102: Low Carbon Emission Projections | B102: SLoCaT Overview of Mitigation Potential Studies | C102: http://www.slocat.net/docs/1519
B103: Submitted National Communications | C103: http://unfccc.int/national_reports/annex_i_natcom/submitted_natcom/items/7742.php
A104: BAU Emissions Projections | B104: Submitted Biennial Reports | C104: http://unfccc.int/national_reports/biennial_reports_and_iar/submitted_biennial_reports/items/7550.php
B105: UNFCCC: INDCs as communicated by Parties | C105: http://www4.unfccc.int/submissions/indc/Submission%20Pages/submissions.aspx
A107: Table 3: Comparison of BAU/Low Carbon Scenarios and INDC Target
A108: Historic Emissions | B108: Submitted National Communications | C108: http://unfccc.int/national_reports/non-annex_i_natcom/submitted_natcom/items/653.php
B109: UNFCCC: INDCs as communicated by Parties | C109: http://www4.unfccc.int/submissions/indc/Submission%20Pages/submissions.aspx
B110: Submitted Biennial Update Reports | C110: http://unfccc.int/national_reports/non-annex_i_natcom/reporting_on_climate_change/items/8722.php
B111: The Climate Pledge INDC Tool | C111: http://infographics.pbl.nl/indc/
B112: CAIT Climate Data Explorer | C112: http://cait.wri.org/
B113: Climate Equity Reference Calculator | C113: http://gdrights.org/calculator-about/
B114: World Bank - World Development Indicators | C114: http://data.worldbank.org/data-catalog/world-development-indicators
B115: UNEP Pledge Pipeline Tool | C115: http://www.unep.org/climatechange/pledgepipeline/
B116: Climate Action Tracker | C116: http://climateactiontracker.org/
A117: BAU Emissions Projections | B117: Submitted National Communications | C117: http://unfccc.int/national_reports/non-annex_i_natcom/submitted_natcom/items/653.php
B118: UNFCCC: INDCs as communicated by Parties | C118: http://www4.unfccc.int/submissions/indc/Submission%20Pages/submissions.aspx
B119: Submitted Biennial Update Reports | C119: http://unfccc.int/national_reports/non-annex_i_natcom/reporting_on_climate_change/items/8722.php
B120: The Climate Pledge INDC Tool | C120: http://infographics.pbl.nl/indc/
B121: Climate Equity Reference Calculator | C121: http://gdrights.org/calculator-about/
B122: World Bank - World Development Indicators | C122: http://data.worldbank.org/data-catalog/world-development-indicators
B123: UNEP Pledge Pipeline Tool | C123: http://www.unep.org/climatechange/pledgepipeline/
B124: Climate Action Tracker | C124: http://climateactiontracker.org/
A125: Low Carbon Emission Projections | B125: SLoCaT Overview of Mitigation Potential Studies | C125: http://www.slocat.net/docs/1519
A126: INDC Targets | B126: UNFCCC: INDCs as communicated by Parties | C126: http://www4.unfccc.int/submissions/indc/Submission%20Pages/submissions.aspx
A128: Figure 1: Projected Transport Emissions: BAU, Low Carbon Scenario, and Indicative Target
A129: Derived from Table 3: Comparison of BAU/Low Carbon Scenarios and INDC Target

Sheet Costa Rica
U1: -2.435018982 | V1: -0.7495472463 | W1: -1.66695253
A2: Table 1: Historic and Projected Emissions | U2: -2.206723146 | V2: -0.2894556358
A3: Country | C3: Costa Rica | F3: Table 3: Comparison of BAU/Low Carbon Scenarios and INDC Target | T3: 2010 | U3: 228.138 | V3: 228.138 | W3: 228.138 | Z3: 0
A4: Economy-Wide CO2e Emissions Target | B4: National Communication | F4: Transport CO2 Summary | H4: MT | T4: 2011 | U4: 224.71229 | V4: 224.71229 | W4: 224.3350478 | Z4: 0
B5: BUR | F5: Transport CO2 (MT)- (avg baseline) | G5: 1990 | H5: 2.756 | T5: 2012 | U5: 219.2405031 | V5: 223.0279652 | W5: 220.5954891 | Z5: 3.787462134
B6: Other National Document/Pledge | C6: Carbon neutral by 2021 | G6: 2000 | H6: 3.153 | T6: 2013 | U6: 213.9019552 | V6: 221.3562652 | W6: 216.918267 | Z6: 7.454310028
B7: INDC Unconditional Reduction | C7: committed to a maximum of 9,374,000 T CO2eq net emissions by 2030 | G7: 2010 | H7: 4.5 | T7: 2014 | U7: 208.693402 | V7: 219.6970955 | W7: 213.3023425 | Z7: 11.00369345
B8: INDC Conditional Reduction | G8: 2011 | H8: 4.6 | P8: CO2e Emissions (MT) | T8: 2015 | U8: 203.6116781 | V8: 218.0503619 | W8: 209.7466937 | Z8: 14.43868387
B9: INDC - Any other target mentioned | E9: ` | G9: 2020 | H9: 5.002840518 | O9: 1990 | P9: 2.756 | T9: 2016 | U9: 198.653695 | V9: 216.4159714 | W9: 206.2503158 | Z9: 17.7622764
B10: INDC - Long Term Target | G10: 2030 | H10: 5.946040959 | O10: 2000 | P10: 3.153 | T10: 2017 | U10: 193.8164399 | V10: 214.7938315 | W10: 202.812221 | Z10: 20.97739163
A11: 2030 Economy-Wide CO2e Emissions Target (MT) | C11: 9.374 | G11: 2050 | O11: 2005 | P11: 3.8908 | T11: 2018 | U11: 189.0969728 | V11: 213.1838502 | W11: 199.4314375 | Z11: 24.08687748
A12: Derived 2030 Transport CO2 Emissions Target ( based on share of total emissions @ 2010) | C12: 4.800068275 | F12: Low Carbon Transport(MT) (avg low carbon baseline) | G12: 2020 | H12: 4.149982727 | O12: 2010 | P12: 4.5 | T12: 2019 | U12: 184.4924256 | V12: 211.5859366 | W12: 196.1070101 | Z12: 27.09351098
G13: 2030 | H13: 4.354556677 | O13: 2011 | P13: 4.6 | T13: 2020 | U13: 180 | V13: 210 | W13: 192.8379994 | Z13: 30
G14: 2050 | O14: 2012 | P14: 4.7 | T14: 2021 | U14: 176.0278983 | V14: 209.3921432 | W14: 189.6234815 | Z14: 33.36424483
A15: OFFICIAL and IEA ESTIMATES | B15: Base Year | C15: CO2e Emissions (MT) | D15: Source | F15: Average Reduction of Low Carbon estimate with BAU (%) | G15: 2030 | H15: -27 | T15: 2022 | U15: 172.14345 | V15: 208.7860458 | W15: 186.462548 | Z15: 36.64259584
A16: Economy-Wide CO2e Emissions : Historical | B16: 1990 | C16: 4.404 | D16: Second National Communication | T16: 2023 | U16: 168.3447206 | V16: 208.1817028 | W16: 183.3543059 | Z16: 39.83698222
B17: 2011 | C17: 8.788 | D17: Third National Communication | N17: Future (BAU) -Official | T17: 2024 | U17: 164.6298187 | V17: 207.5791092 | W17: 180.2978766 | Z17: 42.94929046
A18: Economy-Wide CO2e Emissions : Projections | B18: 2020 | F18: Gap Between INDC Target and Average Low Carbon Scenario (%) | G18: Average | H18: -0.09281359612 | O18: 2020 | T18: 2025 | U18: 160.9968944 | V18: 206.9782597 | W18: 177.2923966 | Z18: 45.98136535
B19: 2030 | C19: 26 | D19: Third National Communication | F19: Transport CO2 Target (MT) | G19: INDC | H19: 4.800068275 | O19: 2030 | T19: 2026 | U19: 157.4441386 | V19: 206.3791495 | W19: 174.3370165 | Z19: 48.93501084
A20: Transport Sector : Historic CO2e Emissions | B20: 1990 | C20: 2.756 | D20: Second National Communication | F20: Gap Between INDC Target and Average Low Carbon Scenario in Million Tons @ 2030 | H20: -0.4455115982 | O20: 2020 | T20: 2027 | U20: 153.9697824 | V20: 205.7817734 | W20: 171.4309012 | Z20: 51.81199101
B21: 1994 | F21: Cumulative Increase: BAU Scenario (2010-2030) MT (avg) | H21: 107.5708298 | N21: Low Carbon Scenario-Official | O21: 2020 | T21: 2028 | U21: 150.5720956 | V21: 205.1861265 | W21: 168.5732295 | Z21: 54.6140309
B22: 1995 | F22: Cumulative Increase: Low Carbon Scenario (2010-2030) MT (avg) | H22: 90.83246424 | O22: 2030 | T22: 2029 | U22: 147.2493863 | V22: 204.5922037 | W22: 165.7631938 | Z22: 57.34281737
B23: 2000 | C23: 3.153 | D23: Second National Communication | F23: Cumulative Reduction: BAU vs. Low Carbon Scenario (2010-2030) MT (avg) | H23: 16.73836559 | T23: 2030 | U23: 144 | V23: 204 | W23: 163 | Z23: 60
B24: 2005 | C24: 3.8908 | D24: Second National Communication | F24: Cumulative Gap: Low Carbon Scenario vs. INDC Target (2010-2030) MT | H24: 6.786051881 | N24: Future (BAU) -Other studies | O24: 2021 | P24: 5.09 | W24: 4070.609773 | X24: 230.8742269
B25: 2010 | C25: 4.5 | D25: Third National Communication | J25: Figure 1: Projected Transport Emissions: BAU, Low Carbon Scenario, and Transport Target | O25: 2020 | P25: 5.002840518 | U25: 3839.735547 | V25: 4467.818081 | W25: 628.0825348
B26: 2011 | C26: 4.6 | D26: CO2 Emissions from Fuel Combustion IEA 2014 | O26: 2030 | P26: 5.946040959
B27: 2012 | C27: 4.7 | D27: CO2 Emissions from Fuel Combustion IEA 2014 | Q27: -0.1377777778
J28: Figure 1: Projected Transport Emissions: BAU, Low Carbon Scenario, and Indicative Targe
Q30: -1
R33: Year | S33: % Increase
Q34: Total Country CO2e Emissions (BAU) | R34: 1990-2011 | S34: 0.08724827863
R35: 2011-2030 | S35: 0.05585556541
N36: Low Carbon Scenario (studies) | O36: 2021 | P36: 4.17 | Q36: Total Transport CO2e Emissions (BAU) | R36: 1990-2011 | S36: 0.04033467593
O37: 2020 | P37: 4.149982727 | R37: 2011-2030 | S37: -0.0921724842
O38: 2030 | P38: 4.354556677 | Q38: Transport Mitigation Potential (below BAU @ 2030) | S38: -0.2941176471 | T38: Decrease
Q39: Transport Mitigation Potential (below INDC target) | S39: -0.1165644172
A40: Table 2: Mitigation Potential Studies
A41: Study Title | C41: Costa Rica Market Readiness Proposal (MRP) Partnership for Market Readiness Final Report
A42: Quantification by Institute | C42: Ministry of Environment and Energy
A43: Methodology/Model Used | C43: Bottom-up
A44: Base Year | C44: 2005
A45: Base Year CO2e Emissions (MT) | B45: Road
B46: Railways
B47: Waterways
B48: Aviation
B49: Passenger
B50: Freight
B51: Urban
B52: Total | C52: 3.861
A53: Forecast Year | C53: 2021
A54: Forecast CO2 Emissions (MT) BAU | B54: Road
B55: Railways
B56: Waterways
B57: Aviation
B58: Passenger
B59: Freight
B60: Urban
B61: Total | C61: 5.09
A62: Forecast Year | C62: 2021
A63: Forecast CO2 Emissions with Mitigation Measures (MT) | B63: Road
B64: Railways
B65: Waterways
B66: Aviation
B67: Passenger
B68: Freight
B69: Urban
B70: Total | C70: 4.17
A71: % Projected Increase (BAU) | C71: =(C61/C52-1) -> 0.3183113183
A72: % Projected Decrease (With Mitigation Measures) | C72: 0.22
A73: Mitigation Measures | C73: the Government of Costa Rica is pushing the National Bio-Fuel Program to seek 15% bio-diesel in diesel fuel and 10% ethanol in gasoline, The implementation of a multimodal transport system, the train service is also considered for freight trains in the Pacific and Atlantic logistics corridors, Modal Shift in public transport, reduction in traffic congestion,
A79: TIER I FACTSHEET SOURCES
A81: Table 1: Historic and Projected Emissions
A82: Historic Emissions | B82: Submitted National Communications | C82: http://unfccc.int/national_reports/non-annex_i_natcom/submitted_natcom/items/653.php
B83: UNFCCC: INDCs as communicated by Parties | C83: http://www4.unfccc.int/submissions/indc/Submission%20Pages/submissions.aspx
B84: Submitted Biennial Update Reports | C84: http://unfccc.int/national_reports/non-annex_i_natcom/reporting_on_climate_change/items/8722.php
B85: The Climate Pledge INDC Tool | C85: http://infographics.pbl.nl/indc/
B86: CAIT Climate Data Explorer | C86: http://cait.wri.org/
B87: Climate Equity Reference Calculator | C87: http://gdrights.org/calculator-about/
B88: World Bank - World Development Indicators | C88: http://data.worldbank.org/data-catalog/world-development-indicators
B89: UNEP Pledge Pipeline Tool | C89: http://www.unep.org/climatechange/pledgepipeline/
B90: Climate Action Tracker | C90: http://climateactiontracker.org/
A91: BAU Emissions Projections | B91: Submitted National Communications | C91: http://unfccc.int/national_reports/non-annex_i_natcom/submitted_natcom/items/653.php
B92: UNFCCC: INDCs as communicated by Parties | C92: http://www4.unfccc.int/submissions/indc/Submission%20Pages/submissions.aspx
B93: Submitted Biennial Update Reports | C93: http://unfccc.int/national_reports/non-annex_i_natcom/reporting_on_climate_change/items/8722.php
B94: The Climate Pledge INDC Tool | C94: http://infographics.pbl.nl/indc/
B95: Climate Equity Reference Calculator | C95: http://gdrights.org/calculator-about/
B96: World Bank - World Development Indicators | C96: http://data.worldbank.org/data-catalog/world-development-indicators
B97: UNEP Pledge Pipeline Tool | C97: http://www.unep.org/climatechange/pledgepipeline/
B98: Climate Action Tracker | C98: http://climateactiontracker.org/
A99: INDC Targets | B99: UNFCCC: INDCs as communicated by Parties | C99: http://www4.unfccc.int/submissions/indc/Submission%20Pages/submissions.aspx
A101: Table 2: Mitigation Potential Studies
A102: Low Carbon Emission Projections | B102: SLoCaT Overview of Mitigation Potential Studies | C102: http://www.slocat.net/docs/1519
B103: Submitted National Communications | C103: http://unfccc.int/national_reports/annex_i_natcom/submitted_natcom/items/7742.php
A104: BAU Emissions Projections | B104: Submitted Biennial Reports | C104: http://unfccc.int/national_reports/biennial_reports_and_iar/submitted_biennial_reports/items/7550.php
B105: UNFCCC: INDCs as communicated by Parties | C105: http://www4.unfccc.int/submissions/indc/Submission%20Pages/submissions.aspx
A107: Table 3: Comparison of BAU/Low Carbon Scenarios and INDC Target
A108: Historic Emissions | B108: Submitted National Communications | C108: http://unfccc.int/national_reports/non-annex_i_natcom/submitted_natcom/items/653.php
B109: UNFCCC: INDCs as communicated by Parties | C109: http://www4.unfccc.int/submissions/indc/Submission%20Pages/submissions.aspx
B110: Submitted Biennial Update Reports | C110: http://unfccc.int/national_reports/non-annex_i_natcom/reporting_on_climate_change/items/8722.php
B111: The Climate Pledge INDC Tool | C111: http://infographics.pbl.nl/indc/
B112: CAIT Climate Data Explorer | C112: http://cait.wri.org/
B113: Climate Equity Reference Calculator | C113: http://gdrights.org/calculator-about/
B114: World Bank - World Development Indicators | C114: http://data.worldbank.org/data-catalog/world-development-indicators
B115: UNEP Pledge Pipeline Tool | C115: http://www.unep.org/climatechange/pledgepipeline/
B116: Climate Action Tracker | C116: http://climateactiontracker.org/
A117: BAU Emissions Projections | B117: Submitted National Communications | C117: http://unfccc.int/national_reports/non-annex_i_natcom/submitted_natcom/items/653.php
B118: UNFCCC: INDCs as communicated by Parties | C118: http://www4.unfccc.int/submissions/indc/Submission%20Pages/submissions.aspx
B119: Submitted Biennial Update Reports | C119: http://unfccc.int/national_reports/non-annex_i_natcom/reporting_on_climate_change/items/8722.php
B120: The Climate Pledge INDC Tool | C120: http://infographics.pbl.nl/indc/
B121: Climate Equity Reference Calculator | C121: http://gdrights.org/calculator-about/
B122: World Bank - World Development Indicators | C122: http://data.worldbank.org/data-catalog/world-development-indicators
B123: UNEP Pledge Pipeline Tool | C123: http://www.unep.org/climatechange/pledgepipeline/
B124: Climate Action Tracker | C124: http://climateactiontracker.org/
A125: Low Carbon Emission Projections | B125: SLoCaT Overview of Mitigation Potential Studies | C125: http://www.slocat.net/docs/1519
A126: INDC Targets | B126: UNFCCC: INDCs as communicated by Parties | C126: http://www4.unfccc.int/submissions/indc/Submission%20Pages/submissions.aspx
A128: Figure 1: Projected Transport Emissions: BAU, Low Carbon Scenario, and Indicative Target
A129: Derived from Table 3: Comparison of BAU/Low Carbon Scenarios and INDC Target

Sheet Croatia
U1: -2.435018982 | V1: -0.7495472463 | W1: -1.66695253
A2: Table 1: Historic and Projected Emissions | U2: -2.206723146 | V2: -0.2894556358
A3: Country | C3: Croatia | F3: Table 3: Comparison of BAU/Low Carbon Scenarios and INDC Target | T3: 2010 | U3: 228.138 | V3: 228.138 | W3: 228.138 | Z3: 0
A4: Economy-Wide CO2e Emissions Target | B4: National Communication | C4: 20% of 1990 by 2020 | F4: Transport CO2 Summary | H4: MT | T4: 2011 | U4: 224.71229 | V4: 224.71229 | W4: 224.3350478 | Z4: 0
B5: BUR | F5: Transport CO2 (MT)- (avg baseline) | G5: 1990 | H5: 4.09541 | T5: 2012 | U5: 219.2405031 | V5: 223.0279652 | W5: 220.5954891 | Z5: 3.787462134
B6: Other National Document/Pledge | G6: 2000 | H6: 4.59731 | T6: 2013 | U6: 213.9019552 | V6: 221.3562652 | W6: 216.918267 | Z6: 7.454310028
B7: INDC Unconditional Reduction | C7: 40% reduction in 2030 compared to 1990 | G7: 2010 | H7: 6.03964 | T7: 2014 | U7: 208.693402 | V7: 219.6970955 | W7: 213.3023425 | Z7: 11.00369345
B8: INDC Conditional Reduction | G8: 2011 | H8: 5.8887 | P8: CO2e Emissions (MT) | T8: 2015 | U8: 203.6116781 | V8: 218.0503619 | W8: 209.7466937 | Z8: 14.43868387
B9: INDC - Any other target mentioned | E9: ` | G9: 2020 | H9: 6 | O9: 1990 | P9: 4.09541 | T9: 2016 | U9: 198.653695 | V9: 216.4159714 | W9: 206.2503158 | Z9: 17.7622764
B10: INDC - Long Term Target | G10: 2030 | H10: 6.26 | O10: 1994 | T10: 2017 | U10: 193.8164399 | V10: 214.7938315 | W10: 202.812221 | Z10: 20.97739163
A11: 2030 Economy-Wide CO2e Emissions Target (MT) | C11: 19.016076 | G11: 2050 | H11: 6 | O11: 1995 | P11: 3.466 | T11: 2018 | U11: 189.0969728 | V11: 213.1838502 | W11: 199.4314375 | Z11: 24.08687748
A12: Derived 2030 Transport CO2 Emissions Target ( based on share of total emissions @ 2010) | C12: 4.040968087 | F12: Low Carbon Transport(MT) (avg low carbon baseline) | G12: 2020 | H12: 5.49 | O12: 2000 | P12: 4.59731 | T12: 2019 | U12: 184.4924256 | V12: 211.5859366 | W12: 196.1070101 | Z12: 27.09351098
G13: 2030 | H13: 4.67 | O13: 2005 | P13: 5.68118 | T13: 2020 | U13: 180 | V13: 210 | W13: 192.8379994 | Z13: 30
G14: 2050 | H14: 1.84 | O14: 2010 | P14: 6.03964 | T14: 2021 | U14: 176.0278983 | V14: 209.3921432 | W14: 189.6234815 | Z14: 33.36424483
A15: OFFICIAL and IEA ESTIMATES | B15: Base Year | C15: CO2e Emissions (MT) | D15: Source | F15: Average Reduction of Low Carbon estimate with BAU (%) | G15: 2030 | H15: -25 | O15: 2011 | P15: 5.8887 | T15: 2022 | U15: 172.14345 | V15: 208.7860458 | W15: 186.462548 | Z15: 36.64259584
A16: Economy-Wide CO2e Emissions : Historical | B16: 1990 | C16: 31.69346 | D16: BUR | T16: 2023 | U16: 168.3447206 | V16: 208.1817028 | W16: 183.3543059 | Z16: 39.83698222
B17: 2011 | C17: 28.42147 | D17: NC | N17: Future (BAU) -Official | T17: 2024 | U17: 164.6298187 | V17: 207.5791092 | W17: 180.2978766 | Z17: 42.94929046
A18: Economy-Wide CO2e Emissions : Projections | B18: 2020 | C18: 39.0018 | D18: BUR | F18: Gap Between INDC Target and Average Low Carbon Scenario (%) | G18: Average | H18: 0.1556636676 | O18: 2020 | P18: 7.0587 | T18: 2025 | U18: 160.9968944 | V18: 206.9782597 | W18: 177.2923966 | Z18: 45.98136535
B19: 2030 | C19: 46.7809 | D19: BUR | F19: Transport CO2 Target (MT) | G19: INDC | H19: 4.040968087 | O19: 2030 | P19: 7.1854 | T19: 2026 | U19: 157.4441386 | V19: 206.3791495 | W19: 174.3370165 | Z19: 48.93501084
A20: Transport Sector : Historic CO2e Emissions | B20: 1990 | C20: 4.09541 | D20: BUR | F20: Gap Between INDC Target and Average Low Carbon Scenario in Million Tons @ 2030 | H20: 0.6290319131 | T20: 2027 | U20: 153.9697824 | V20: 205.7817734 | W20: 171.4309012 | Z20: 51.81199101
B21: 1994 | F21: Cumulative Increase: BAU Scenario (2010-2030) MT (avg) | H21: 126.9024973 | N21: Low Carbon Scenario-Official | O21: 2020 | P21: 6.6426 | T21: 2028 | U21: 150.5720956 | V21: 205.1861265 | W21: 168.5732295 | Z21: 54.6140309
B22: 1995 | C22: 3.466 | D22: BUR | F22: Cumulative Increase: Low Carbon Scenario (2010-2030) MT (avg) | H22: 113.1930481 | O22: 2030 | P22: 5.31 | T22: 2029 | U22: 147.2493863 | V22: 204.5922037 | W22: 165.7631938 | Z22: 57.34281737
B23: 2000 | C23: 4.59731 | D23: BUR | F23: Cumulative Reduction: BAU vs. Low Carbon Scenario (2010-2030) MT (avg) | H23: 13.70944923 | T23: 2030 | U23: 144 | V23: 204 | W23: 163 | Z23: 60
B24: 2005 | C24: 5.68118 | D24: BUR | F24: Cumulative Gap: Low Carbon Scenario vs. INDC Target (2010-2030) MT | H24: -8.67837163 | N24: Future (BAU) -Other studies | W24: 4070.609773 | X24: 230.8742269
B25: 2010 | C25: 6.03964 | D25: BUR | J25: Figure 1: Projected Transport Emissions: BAU, Low Carbon Scenario, and Transport Target | O25: 2020 | P25: 5.9 | U25: 3839.735547 | V25: 4467.818081 | W25: 628.0825348
B26: 2011 | C26: 5.8887 | D26: NC | O26: 2025 | P26: 5.7
O27: 2030 | P27: 5.8 | Q27: -0.1377777778
J28: Figure 1: Projected Transport Emissions: BAU, Low Carbon Scenario, and Indicative Targe | O28: 2035 | P28: 5.9
O29: 2040 | P29: 6
O30: 2045 | P30: 6 | Q30: -1
O31: 2050 | P31: 6
O32: 2020 | P32: 5.9
O33: 2030 | P33: 5.8 | R33: Year | S33: % Increase
O34: 2050 | P34: 6 | Q34: Total Country CO2e Emissions (BAU) | R34: 1990-2011 | S34: 0.08724827863
R35: 2011-2030 | S35: 0.05585556541
N36: Low Carbon Scenario (studies) | O36: 2020 | P36: 4.4 | Q36: Total Transport CO2e Emissions (BAU) | R36: 1990-2011 | S36: 0.04033467593
O37: 2020 | P37: 5.44 | R37: 2011-2030 | S37: -0.0921724842
O38: 2030 | P38: 4.03 | Q38: Transport Mitigation Potential (below BAU @ 2030) | S38: -0.2941176471 | T38: Decrease
O39: 2050 | P39: 1.84 | Q39: Transport Mitigation Potential (below INDC target) | S39: -0.1165644172
A40: Table 2: Mitigation Potential Studies
A41: Study Title | C41: EU ENERGY, TRANSPORT AND GHG EMISSIONS TRENDS TO 2050 | D41: Possible development of the Croatian energy sector by 2050 in the view of carbon dioxide emission reductions
A42: Quantification by Institute | C42: EUROPEAN COMMISSION Directorate-General for Energy, Directorate-General for Climate Action and Directorate-General for Mobility and Transport | D42: Goran Graniæ et al., Energy Institute Hrvoje Poar
A43: Methodology/Model Used | C43: Bottom-up (Sultan Model) | D43: Bottom-up - MAED & MESSAGE
A44: Base Year | C44: 2000 | D44: 1990
A45: Base Year CO2e Emissions (MT) | B45: Road
B46: Railways
B47: Waterways
B48: Aviation
B49: Passenger
B50: Freight
B51: Urban
B52: Total | C52: 4.5 | D52: 3.99
A53: Forecast Year | C53: 2050 | D53: 2050
A54: Forecast CO2 Emissions (MT) BAU | B54: Road
B55: Railways
B56: Waterways
B57: Aviation
B58: Passenger
B59: Freight
B60: Urban
B61: Total | C61: 6 | D61: 6
A62: Forecast Year | C62: 2050 | D62: 2050
A63: Forecast CO2 Emissions with Mitigation Measures (MT) | B63: Road
B64: Railways
B65: Waterways
B66: Aviation
B67: Passenger
B68: Freight
B69: Urban
B70: Total
A71: % Projected Increase (BAU) | C71: =C61/C52-1 -> 0.3333333333 | D71: =D61/D52-1 -> 0.5037593985
A72: % Projected Decrease (With Mitigation Measures) | C72: =C70/C61-1 -> -1 | D72: =D70/D61-1 -> -1
A73: Mitigation Measures
A79: TIER I FACTSHEET SOURCES
A81: Table 1: Historic and Projected Emissions
A82: Historic Emissions | B82: Submitted National Communications | C82: http://unfccc.int/national_reports/non-annex_i_natcom/submitted_natcom/items/653.php
B83: UNFCCC: INDCs as communicated by Parties | C83: http://www4.unfccc.int/submissions/indc/Submission%20Pages/submissions.aspx
B84: Submitted Biennial Update Reports | C84: http://unfccc.int/national_reports/non-annex_i_natcom/reporting_on_climate_change/items/8722.php
B85: The Climate Pledge INDC Tool | C85: http://infographics.pbl.nl/indc/
B86: CAIT Climate Data Explorer | C86: http://cait.wri.org/
B87: Climate Equity Reference Calculator | C87: http://gdrights.org/calculator-about/
B88: World Bank - World Development Indicators | C88: http://data.worldbank.org/data-catalog/world-development-indicators
B89: UNEP Pledge Pipeline Tool | C89: http://www.unep.org/climatechange/pledgepipeline/
B90: Climate Action Tracker | C90: http://climateactiontracker.org/
A91: BAU Emissions Projections | B91: Submitted National Communications | C91: http://unfccc.int/national_reports/non-annex_i_natcom/submitted_natcom/items/653.php
B92: UNFCCC: INDCs as communicated by Parties | C92: http://www4.unfccc.int/submissions/indc/Submission%20Pages/submissions.aspx
B93: Submitted Biennial Update Reports | C93: http://unfccc.int/national_reports/non-annex_i_natcom/reporting_on_climate_change/items/8722.php
B94: The Climate Pledge INDC Tool | C94: http://infographics.pbl.nl/indc/
B95: Climate Equity Reference Calculator | C95: http://gdrights.org/calculator-about/
B96: World Bank - World Development Indicators | C96: http://data.worldbank.org/data-catalog/world-development-indicators
B97: UNEP Pledge Pipeline Tool | C97: http://www.unep.org/climatechange/pledgepipeline/
B98: Climate Action Tracker | C98: http://climateactiontracker.org/
A99: INDC Targets | B99: UNFCCC: INDCs as communicated by Parties | C99: http://www4.unfccc.int/submissions/indc/Submission%20Pages/submissions.aspx
A101: Table 2: Mitigation Potential Studies
A102: Low Carbon Emission Projections | B102: SLoCaT Overview of Mitigation Potential Studies | C102: http://www.slocat.net/docs/1519
B103: Submitted National Communications | C103: http://unfccc.int/national_reports/annex_i_natcom/submitted_natcom/items/7742.php
A104: BAU Emissions Projections | B104: Submitted Biennial Reports | C104: http://unfccc.int/national_reports/biennial_reports_and_iar/submitted_biennial_reports/items/7550.php
B105: UNFCCC: INDCs as communicated by Parties | C105: http://www4.unfccc.int/submissions/indc/Submission%20Pages/submissions.aspx
A107: Table 3: Comparison of BAU/Low Carbon Scenarios and INDC Target
A108: Historic Emissions | B108: Submitted National Communications | C108: http://unfccc.int/national_reports/non-annex_i_natcom/submitted_natcom/items/653.php
B109: UNFCCC: INDCs as communicated by Parties | C109: http://www4.unfccc.int/submissions/indc/Submission%20Pages/submissions.aspx
B110: Submitted Biennial Update Reports | C110: http://unfccc.int/national_reports/non-annex_i_natcom/reporting_on_climate_change/items/8722.php
B111: The Climate Pledge INDC Tool | C111: http://infographics.pbl.nl/indc/
B112: CAIT Climate Data Explorer | C112: http://cait.wri.org/
B113: Climate Equity Reference Calculator | C113: http://gdrights.org/calculator-about/
B114: World Bank - World Development Indicators | C114: http://data.worldbank.org/data-catalog/world-development-indicators
B115: UNEP Pledge Pipeline Tool | C115: http://www.unep.org/climatechange/pledgepipeline/
B116: Climate Action Tracker | C116: http://climateactiontracker.org/
A117: BAU Emissions Projections | B117: Submitted National Communications | C117: http://unfccc.int/national_reports/non-annex_i_natcom/submitted_natcom/items/653.php
B118: UNFCCC: INDCs as communicated by Parties | C118: http://www4.unfccc.int/submissions/indc/Submission%20Pages/submissions.aspx
B119: Submitted Biennial Update Reports | C119: http://unfccc.int/national_reports/non-annex_i_natcom/reporting_on_climate_change/items/8722.php
B120: The Climate Pledge INDC Tool | C120: http://infographics.pbl.nl/indc/
B121: Climate Equity Reference Calculator | C121: http://gdrights.org/calculator-about/
B122: World Bank - World Development Indicators | C122: http://data.worldbank.org/data-catalog/world-development-indicators
B123: UNEP Pledge Pipeline Tool | C123: http://www.unep.org/climatechange/pledgepipeline/
B124: Climate Action Tracker | C124: http://climateactiontracker.org/
A125: Low Carbon Emission Projections | B125: SLoCaT Overview of Mitigation Potential Studies | C125: http://www.slocat.net/docs/1519
A126: INDC Targets | B126: UNFCCC: INDCs as communicated by Parties | C126: http://www4.unfccc.int/submissions/indc/Submission%20Pages/submissions.aspx
A128: Figure 1: Projected Transport Emissions: BAU, Low Carbon Scenario, and Indicative Target
A129: Derived from Table 3: Comparison of BAU/Low Carbon Scenarios and INDC Target

Sheet Cyprus
U1: -2.435018982 | V1: -0.7495472463 | W1: -1.66695253
A2: Table 1: Historic and Projected Emissions | U2: -2.206723146 | V2: -0.2894556358
A3: Country | C3: Cyprus | F3: Table 3: Comparison of BAU/Low Carbon Scenarios and INDC Target | T3: 2010 | U3: 228.138 | V3: 228.138 | W3: 228.138 | Z3: 0
A4: Economy-Wide CO2e Emissions Target | B4: National Communication | F4: Transport CO2 Summary | H4: MT | T4: 2011 | U4: 224.71229 | V4: 224.71229 | W4: 224.3350478 | Z4: 0
B5: BUR | F5: Transport CO2 (MT)- (avg baseline) | G5: 1990 | H5: 1.175 | T5: 2012 | U5: 219.2405031 | V5: 223.0279652 | W5: 220.5954891 | Z5: 3.787462134
B6: Other National Document/Pledge | C6: Reduce emissions by 20 % during the 2013-2020 period, as compared to base year | G6: 2000 | H6: 1.755 | T6: 2013 | U6: 213.9019552 | V6: 221.3562652 | W6: 216.918267 | Z6: 7.454310028
B7: INDC Unconditional Reduction | C7: 40% reduction in 2030 compared to 1990 | G7: 2010 | H7: 2.313 | T7: 2014 | U7: 208.693402 | V7: 219.6970955 | W7: 213.3023425 | Z7: 11.00369345
B8: INDC Conditional Reduction | G8: 2011 | H8: 2.25 | P8: CO2e Emissions (MT) | T8: 2015 | U8: 203.6116781 | V8: 218.0503619 | W8: 209.7466937 | Z8: 14.43868387
B9: INDC - Any other target mentioned | E9: ` | G9: 2020 | H9: 2.921 | O9: 1990 | P9: 1.175 | T9: 2016 | U9: 198.653695 | V9: 216.4159714 | W9: 206.2503158 | Z9: 17.7622764
B10: INDC - Long Term Target | G10: 2030 | H10: 3.1 | O10: 1994 | T10: 2017 | U10: 193.8164399 | V10: 214.7938315 | W10: 202.812221 | Z10: 20.97739163
A11: 2030 Economy-Wide CO2e Emissions Target (MT) | C11: 3.654504 | G11: 2050 | H11: 3.3 | O11: 1995 | P11: 1.477 | T11: 2018 | U11: 189.0969728 | V11: 213.1838502 | W11: 199.4314375 | Z11: 24.08687748
A12: Derived 2030 Transport CO2 Emissions Target ( based on share of total emissions @ 2010) | C12: 0.923369686 | F12: Low Carbon Transport(MT) (avg low carbon baseline) | G12: 2020 | H12: 2.53 | O12: 2000 | P12: 1.755 | T12: 2019 | U12: 184.4924256 | V12: 211.5859366 | W12: 196.1070101 | Z12: 27.09351098
G13: 2030 | H13: 3 | O13: 2005 | P13: 2.043 | T13: 2020 | U13: 180 | V13: 210 | W13: 192.8379994 | Z13: 30
G14: 2050 | O14: 2010 | P14: 2.313 | T14: 2021 | U14: 176.0278983 | V14: 209.3921432 | W14: 189.6234815 | Z14: 33.36424483
A15: OFFICIAL and IEA ESTIMATES | B15: Base Year | C15: CO2e Emissions (MT) | D15: Source | F15: Average Reduction of Low Carbon estimate with BAU (%) | G15: 2030 | H15: -3 | O15: 2011 | P15: 2.25 | T15: 2022 | U15: 172.14345 | V15: 208.7860458 | W15: 186.462548 | Z15: 36.64259584
A16: Economy-Wide CO2e Emissions : Historical | B16: 1990 | C16: 6.09084 | D16: BUR | T16: 2023 | U16: 168.3447206 | V16: 208.1817028 | W16: 183.3543059 | Z16: 39.83698222
B17: 2011 | C17: 9.15437 | D17: NC | N17: Future (BAU) -Official | T17: 2024 | U17: 164.6298187 | V17: 207.5791092 | W17: 180.2978766 | Z17: 42.94929046
A18: Economy-Wide CO2e Emissions : Projections | B18: 2020 | C18: 6.93933 | D18: BUR | F18: Gap Between INDC Target and Average Low Carbon Scenario (%) | G18: Average | H18: 2.248969558 | O18: 2020 | P18: 1.705 | T18: 2025 | U18: 160.9968944 | V18: 206.9782597 | W18: 177.2923966 | Z18: 45.98136535
B19: 2030 | F19: Transport CO2 Target (MT) | G19: INDC | H19: 0.923369686 | O19: 2030 | T19: 2026 | U19: 157.4441386 | V19: 206.3791495 | W19: 174.3370165 | Z19: 48.93501084
A20: Transport Sector : Historic CO2e Emissions | B20: 1990 | C20: 1.175 | D20: BUR | F20: Gap Between INDC Target and Average Low Carbon Scenario in Million Tons @ 2030 | H20: 2.076630314 | T20: 2027 | U20: 153.9697824 | V20: 205.7817734 | W20: 171.4309012 | Z20: 51.81199101
B21: 1994 | F21: Cumulative Increase: BAU Scenario (2010-2030) MT (avg) | H21: 58.22414166 | N21: Low Carbon Scenario-Official | O21: 2020 | P21: 1.36 | T21: 2028 | U21: 150.5720956 | V21: 205.1861265 | W21: 168.5732295 | Z21: 54.6140309
B22: 1995 | C22: 1.477 | D22: BUR | F22: Cumulative Increase: Low Carbon Scenario (2010-2030) MT (avg) | H22: 54.00764141 | O22: 2030 | T22: 2029 | U22: 147.2493863 | V22: 204.5922037 | W22: 165.7631938 | Z22: 57.34281737
B23: 2000 | C23: 1.755 | D23: BUR | F23: Cumulative Reduction: BAU vs. Low Carbon Scenario (2010-2030) MT (avg) | H23: 4.216500257 | T23: 2030 | U23: 144 | V23: 204 | W23: 163 | Z23: 60
B24: 2005 | C24: 2.043 | D24: BUR | F24: Cumulative Gap: Low Carbon Scenario vs. INDC Target (2010-2030) MT | H24: -22.1179038 | N24: Future (BAU) -Other studies | O24: 2020 | P24: 3 | W24: 4070.609773 | X24: 230.8742269
B25: 2010 | C25: 2.313 | D25: BUR | J25: Figure 1: Projected Transport Emissions: BAU, Low Carbon Scenario, and Transport Target | O25: 2020 | P25: 3 | U25: 3839.735547 | V25: 4467.818081 | W25: 628.0825348
B26: 2011 | C26: 2.25 | D26: NC | O26: 2020 | P26: 2.9
O27: 2020 | P27: 4 | Q27: -0.1377777778
J28: Figure 1: Projected Transport Emissions: BAU, Low Carbon Scenario, and Indicative Targe | O28: 2025 | P28: 3
O29: 2030 | P29: 3.2
O30: 2030 | P30: 3 | Q30: -1
O31: 2035 | P31: 3.2
O32: 2040 | P32: 3.3
O33: 2045 | P33: 3.3 | R33: Year | S33: % Increase
O34: 2050 | P34: 3.3 | Q34: Total Country CO2e Emissions (BAU) | R34: 1990-2011 | S34: 0.08724827863
R35: 2011-2030 | S35: 0.05585556541
N36: Low Carbon Scenario (studies) | O36: 2020 | P36: 3 | Q36: Total Transport CO2e Emissions (BAU) | R36: 1990-2011 | S36: 0.04033467593
O37: 2020 | P37: 2.78 | R37: 2011-2030 | S37: -0.0921724842
O38: 2020 | P38: 3 | Q38: Transport Mitigation Potential (below BAU @ 2030) | S38: -0.2941176471 | T38: Decrease
O39: 2030 | P39: 3.06 | Q39: Transport Mitigation Potential (below INDC target) | S39: -0.1165644172
A40: Table 2: Mitigation Potential Studies | O40: 2030 | P40: 3
A41: Study Title | C41: EU ENERGY, TRANSPORT AND GHG EMISSIONS TRENDS TO 2050 | D41: The ITREN-2030 | E41: Greenhouse gas emission trends and projections in Europe 2011
A42: Quantification by Institute | C42: EUROPEAN COMMISSION Directorate-General for Energy, Directorate-General for Climate Action and Directorate-General for Mobility and Transport | D42: Fraunhofer ISI | E42: European Environment Agency
A43: Methodology/Model Used | C43: Bottom-up (Sultan Model) | D43: Bottom-up
A44: Base Year | C44: 2000 | D44: 2010 | E44: 2010
A45: Base Year CO2e Emissions (MT) | B45: Road
B46: Railways
B47: Waterways
B48: Aviation
B49: Passenger
B50: Freight
B51: Urban
B52: Total | C52: 2.8 | D52: 3 | E52: 3
A53: Forecast Year | C53: 2030 | D53: 2030 | E53: 2020
A54: Forecast CO2 Emissions (MT) BAU | B54: Road
B55: Railways
B56: Waterways
B57: Aviation
B58: Passenger
B59: Freight
B60: Urban
B61: Total | C61: 3.2 | D61: 3 | E61: 4
A62: Forecast Year | C62: 2030 | D62: 2030 | E62: 2020
A63: Forecast CO2 Emissions with Mitigation Measures (MT) | B63: Road
B64: Railways
B65: Waterways
B66: Aviation
B67: Passenger
B68: Freight
B69: Urban
B70: Total | C70: 3.06 | D70: 3 | E70: 3
A71: % Projected Increase (BAU) | C71: 0.1428571429 | D71: 0 | E71: 0.3333333333
A72: % Projected Decrease (With Mitigation Measures) | C72: -0.04375 | D72: 0 | E72: -0.25
A73: Mitigation Measures | C73: Fuel Economy Standards for LDV and HDV
A79: TIER I FACTSHEET SOURCES
A81: Table 1: Historic and Projected Emissions
A82: Historic Emissions | B82: Submitted National Communications | C82: http://unfccc.int/national_reports/non-annex_i_natcom/submitted_natcom/items/653.php
B83: UNFCCC: INDCs as communicated by Parties | C83: http://www4.unfccc.int/submissions/indc/Submission%20Pages/submissions.aspx
B84: Submitted Biennial Update Reports | C84: http://unfccc.int/national_reports/non-annex_i_natcom/reporting_on_climate_change/items/8722.php
B85: The Climate Pledge INDC Tool | C85: http://infographics.pbl.nl/indc/
B86: CAIT Climate Data Explorer | C86: http://cait.wri.org/
B87: Climate Equity Reference Calculator | C87: http://gdrights.org/calculator-about/
B88: World Bank - World Development Indicators | C88: http://data.worldbank.org/data-catalog/world-development-indicators
B89: UNEP Pledge Pipeline Tool | C89: http://www.unep.org/climatechange/pledgepipeline/
B90: Climate Action Tracker | C90: http://climateactiontracker.org/
A91: BAU Emissions Projections | B91: Submitted National Communications | C91: http://unfccc.int/national_reports/non-annex_i_natcom/submitted_natcom/items/653.php
B92: UNFCCC: INDCs as communicated by Parties | C92: http://www4.unfccc.int/submissions/indc/Submission%20Pages/submissions.aspx
B93: Submitted Biennial Update Reports | C93: http://unfccc.int/national_reports/non-annex_i_natcom/reporting_on_climate_change/items/8722.php
B94: The Climate Pledge INDC Tool | C94: http://infographics.pbl.nl/indc/
B95: Climate Equity Reference Calculator | C95: http://gdrights.org/calculator-about/
B96: World Bank - World Development Indicators | C96: http://data.worldbank.org/data-catalog/world-development-indicators
B97: UNEP Pledge Pipeline Tool | C97: http://www.unep.org/climatechange/pledgepipeline/
B98: Climate Action Tracker | C98: http://climateactiontracker.org/
A99: INDC Targets | B99: UNFCCC: INDCs as communicated by Parties | C99: http://www4.unfccc.int/submissions/indc/Submission%20Pages/submissions.aspx
A101: Table 2: Mitigation Potential Studies
A102: Low Carbon Emission Projections | B102: SLoCaT Overview of Mitigation Potential Studies | C102: http://www.slocat.net/docs/1519
B103: Submitted National Communications | C103: http://unfccc.int/national_reports/annex_i_natcom/submitted_natcom/items/7742.php
A104: BAU Emissions Projections | B104: Submitted Biennial Reports | C104: http://unfccc.int/national_reports/biennial_reports_and_iar/submitted_biennial_reports/items/7550.php
B105: UNFCCC: INDCs as communicated by Parties | C105: http://www4.unfccc.int/submissions/indc/Submission%20Pages/submissions.aspx
A107: Table 3: Comparison of BAU/Low Carbon Scenarios and INDC Target
A108: Historic Emissions | B108: Submitted National Communications | C108: http://unfccc.int/national_reports/non-annex_i_natcom/submitted_natcom/items/653.php
B109: UNFCCC: INDCs as communicated by Parties | C109: http://www4.unfccc.int/submissions/indc/Submission%20Pages/submissions.aspx
B110: Submitted Biennial Update Reports | C110: http://unfccc.int/national_reports/non-annex_i_natcom/reporting_on_climate_change/items/8722.php
B111: The Climate Pledge INDC Tool | C111: http://infographics.pbl.nl/indc/
B112: CAIT Climate Data Explorer | C112: http://cait.wri.org/
B113: Climate Equity Reference Calculator | C113: http://gdrights.org/calculator-about/
B114: World Bank - World Development Indicators | C114: http://data.worldbank.org/data-catalog/world-development-indicators
B115: UNEP Pledge Pipeline Tool | C115: http://www.unep.org/climatechange/pledgepipeline/
B116: Climate Action Tracker | C116: http://climateactiontracker.org/
A117: BAU Emissions Projections | B117: Submitted National Communications | C117: http://unfccc.int/national_reports/non-annex_i_natcom/submitted_natcom/items/653.php
B118: UNFCCC: INDCs as communicated by Parties | C118: http://www4.unfccc.int/submissions/indc/Submission%20Pages/submissions.aspx
B119: Submitted Biennial Update Reports | C119: http://unfccc.int/national_reports/non-annex_i_natcom/reporting_on_climate_change/items/8722.php
B120: The Climate Pledge INDC Tool | C120: http://infographics.pbl.nl/indc/
B121: Climate Equity Reference Calculator | C121: http://gdrights.org/calculator-about/
B122: World Bank - World Development Indicators | C122: http://data.worldbank.org/data-catalog/world-development-indicators
B123: UNEP Pledge Pipeline Tool | C123: http://www.unep.org/climatechange/pledgepipeline/
B124: Climate Action Tracker | C124: http://climateactiontracker.org/
A125: Low Carbon Emission Projections | B125: SLoCaT Overview of Mitigation Potential Studies | C125: http://www.slocat.net/docs/1519
A126: INDC Targets | B126: UNFCCC: INDCs as communicated by Parties | C126: http://www4.unfccc.int/submissions/indc/Submission%20Pages/submissions.aspx
A128: Figure 1: Projected Transport Emissions: BAU, Low Carbon Scenario, and Indicative Target
A129: Derived from Table 3: Comparison of BAU/Low Carbon Scenarios and INDC Target

Sheet Czech republic
U1: -2.435018982 | V1: -0.7495472463 | W1: -1.66695253
A2: Table 1: Historic and Projected Emissions | U2: -2.206723146 | V2: -0.2894556358
A3: Country | C3: Czech Republic | F3: Table 3: Comparison of BAU/Low Carbon Scenarios and INDC Target | T3: 2010 | U3: 228.138 | V3: 228.138 | W3: 228.138 | Z3: 0
A4: Economy-Wide CO2e Emissions Target | B4: National Communication | C4: 20% of 1990 by 2020 | F4: Transport CO2 Summary | H4: MT | T4: 2011 | U4: 224.71229 | V4: 224.71229 | W4: 224.3350478 | Z4: 0
B5: BUR | F5: Transport CO2 (MT)- (avg baseline) | G5: 1990 | H5: 9.38344 | T5: 2012 | U5: 219.2405031 | V5: 223.0279652 | W5: 220.5954891 | Z5: 3.787462134
B6: Other National Document/Pledge | G6: 2000 | H6: 13.62644 | T6: 2013 | U6: 213.9019552 | V6: 221.3562652 | W6: 216.918267 | Z6: 7.454310028
B7: INDC Unconditional Reduction | C7: 40% reduction in 2030 compared to 1990 | G7: 2010 | H7: 18.53206 | T7: 2014 | U7: 208.693402 | V7: 219.6970955 | W7: 213.3023425 | Z7: 11.00369345
B8: INDC Conditional Reduction | G8: 2011 | H8: 18.37141 | P8: CO2e Emissions (MT) | T8: 2015 | U8: 203.6116781 | V8: 218.0503619 | W8: 209.7466937 | Z8: 14.43868387
B9: INDC - Any other target mentioned | E9: ` | G9: 2020 | H9: 18.13 | O9: 1990 | P9: 9.38344 | T9: 2016 | U9: 198.653695 | V9: 216.4159714 | W9: 206.2503158 | Z9: 17.7622764
B10: INDC - Long Term Target | G10: 2030 | H10: 19.48 | O10: 1994 | T10: 2017 | U10: 193.8164399 | V10: 214.7938315 | W10: 202.812221 | Z10: 20.97739163
A11: 2030 Economy-Wide CO2e Emissions Target (MT) | C11: 117.623418 | G11: 2050 | H11: 19 | O11: 1995 | P11: 11.10581 | T11: 2018 | U11: 189.0969728 | V11: 213.1838502 | W11: 199.4314375 | Z11: 24.08687748
A12: Derived 2030 Transport CO2 Emissions Target ( based on share of total emissions @ 2010) | C12: 16.32867205 | F12: Low Carbon Transport(MT) (avg low carbon baseline) | G12: 2020 | H12: 17.6 | O12: 2000 | P12: 13.62644 | T12: 2019 | U12: 184.4924256 | V12: 211.5859366 | W12: 196.1070101 | Z12: 27.09351098
G13: 2030 | H13: 16.9 | O13: 2005 | P13: 19.06309 | T13: 2020 | U13: 180 | V13: 210 | W13: 192.8379994 | Z13: 30
G14: 2050 | O14: 2010 | P14: 18.53206 | T14: 2021 | U14: 176.0278983 | V14: 209.3921432 | W14: 189.6234815 | Z14: 33.36424483
A15: OFFICIAL and IEA ESTIMATES | B15: Base Year | C15: CO2e Emissions (MT) | D15: Source | F15: Average Reduction of Low Carbon estimate with BAU (%) | G15: 2030 | H15: -13 | O15: 2011 | P15: 18.37141 | T15: 2022 | U15: 172.14345 | V15: 208.7860458 | W15: 186.462548 | Z15: 36.64259584
A16: Economy-Wide CO2e Emissions : Historical | B16: 1990 | C16: 196.03903 | T16: 2023 | U16: 168.3447206 | V16: 208.1817028 | W16: 183.3543059 | Z16: 39.83698222
B17: 2011 | C17: 133.4955 | N17: Future (BAU) -Official | T17: 2024 | U17: 164.6298187 | V17: 207.5791092 | W17: 180.2978766 | Z17: 42.94929046
A18: Economy-Wide CO2e Emissions : Projections | B18: 2020 | C18: 122.6968 | F18: Gap Between INDC Target and Average Low Carbon Scenario (%) | G18: Average | H18: 0.03498924758 | O18: 2020 | P18: 18.754 | T18: 2025 | U18: 160.9968944 | V18: 206.9782597 | W18: 177.2923966 | Z18: 45.98136535
B19: 2030 | C19: 109.6463 | F19: Transport CO2 Target (MT) | G19: INDC | H19: 16.32867205 | O19: 2030 | P19: 17.931 | T19: 2026 | U19: 157.4441386 | V19: 206.3791495 | W19: 174.3370165 | Z19: 48.93501084
A20: Transport Sector : Historic CO2e Emissions | B20: 1990 | C20: 9.38344 | F20: Gap Between INDC Target and Average Low Carbon Scenario in Million Tons @ 2030 | H20: 0.571327949 | O20: 2020 | T20: 2027 | U20: 153.9697824 | V20: 205.7817734 | W20: 171.4309012 | Z20: 51.81199101
B21: 1994 | F21: Cumulative Increase: BAU Scenario (2010-2030) MT (avg) | H21: 389.6817617 | N21: Low Carbon Scenario-Official | O21: 2020 | P21: 18.244 | T21: 2028 | U21: 150.5720956 | V21: 205.1861265 | W21: 168.5732295 | Z21: 54.6140309
B22: 1995 | C22: 11.10581 | F22: Cumulative Increase: Low Carbon Scenario (2010-2030) MT (avg) | H22: 370.4911616 | O22: 2030 | P22: 17.108 | T22: 2029 | U22: 147.2493863 | V22: 204.5922037 | W22: 165.7631938 | Z22: 57.34281737
B23: 2000 | C23: 13.62644 | F23: Cumulative Reduction: BAU vs. Low Carbon Scenario (2010-2030) MT (avg) | H23: 19.19060016 | T23: 2030 | U23: 144 | V23: 204 | W23: 163 | Z23: 60
B24: 2005 | C24: 19.06309 | F24: Cumulative Gap: Low Carbon Scenario vs. INDC Target (2010-2030) MT | H24: -4.917028875 | N24: Future (BAU) -Other studies | O24: 2020 | P24: 17.8 | W24: 4070.609773 | X24: 230.8742269
B25: 2010 | C25: 18.53206 | J25: Figure 1: Projected Transport Emissions: BAU, Low Carbon Scenario, and Transport Target | O25: 2030 | P25: 18.1 | U25: 3839.735547 | V25: 4467.818081 | W25: 628.0825348
B26: 2011 | C26: 18.37141 | O26: 2040 | P26: 18.8
O27: 2050 | P27: 19 | Q27: -0.1377777778
J28: Figure 1: Projected Transport Emissions: BAU, Low Carbon Scenario, and Indicative Targe | O28: 2020 | P28: 21
O29: 2030 | P29: 24
O30: 2020 | P30: 15 | Q30: -1
O31: 2030 | P31: 17.9
R33: Year | S33: % Increase
Q34: Total Country CO2e Emissions (BAU) | R34: 1990-2011 | S34: 0.08724827863
R35: 2011-2030 | S35: 0.05585556541
N36: Low Carbon Scenario (studies) | O36: 2030 | P36: 15.62 | Q36: Total Transport CO2e Emissions (BAU) | R36: 1990-2011 | S36: 0.04033467593
O37: 2020 | P37: 17 | R37: 2011-2030 | S37: -0.0921724842
O38: 2030 | P38: 18 | Q38: Transport Mitigation Potential (below BAU @ 2030) | S38: -0.2941176471 | T38: Decrease
Q39: Transport Mitigation Potential (below INDC target) | S39: -0.1165644172
A40: Table 2: Mitigation Potential Studies
A41: Study Title | C41: EU ENERGY, TRANSPORT AND GHG EMISSIONS TRENDS TO 2050 | D41: The ITREN-2030
A42: Quantification by Institute | C42: EUROPEAN COMMISSION Directorate-General for Energy, Directorate-General for Climate Action and Directorate-General for Mobility and Transport | D42: Fraunhofer ISI
A43: Methodology/Model Used | C43: Bottom-up (Sultan Model) | D43: Bottom-up
A44: Base Year | C44: 2000 | D44: 2005
A45: Base Year CO2e Emissions (MT) | B45: Road
B46: Railways
B47: Waterways | O47: 2020
B48: Aviation | O48: 2025
B49: Passenger | O49: 2030
B50: Freight
B51: Urban
B52: Total | C52: 12.6 | D52: 18
A53: Forecast Year | C53: 2030 | D53: 2030
A54: Forecast CO2 Emissions (MT) BAU | B54: Road
B55: Railways
B56: Waterways
B57: Aviation
B58: Passenger
B59: Freight
B60: Urban
B61: Total | C61: 24 | D61: 24
A62: Forecast Year | C62: 2030 | D62: 2030
A63: Forecast CO2 Emissions with Mitigation Measures (MT) | B63: Road
B64: Railways
B65: Waterways
B66: Aviation
B67: Passenger
B68: Freight
B69: Urban
B70: Total | C70: 18 | D70: 18
A71: % Projected Increase (BAU) | C71: 0.9047619048 | D71: 0.3333333333
A72: % Projected Decrease (With Mitigation Measures) | C72: -0.25 | D72: -0.25
A73: Mitigation Measures
A79: TIER I FACTSHEET SOURCES
A81: Table 1: Historic and Projected Emissions
A82: Historic Emissions | B82: Submitted National Communications | C82: http://unfccc.int/national_reports/non-annex_i_natcom/submitted_natcom/items/653.php
B83: UNFCCC: INDCs as communicated by Parties | C83: http://www4.unfccc.int/submissions/indc/Submission%20Pages/submissions.aspx
B84: Submitted Biennial Update Reports | C84: http://unfccc.int/national_reports/non-annex_i_natcom/reporting_on_climate_change/items/8722.php
B85: The Climate Pledge INDC Tool | C85: http://infographics.pbl.nl/indc/
B86: CAIT Climate Data Explorer | C86: http://cait.wri.org/
B87: Climate Equity Reference Calculator | C87: http://gdrights.org/calculator-about/
B88: World Bank - World Development Indicators | C88: http://data.worldbank.org/data-catalog/world-development-indicators
B89: UNEP Pledge Pipeline Tool | C89: http://www.unep.org/climatechange/pledgepipeline/
B90: Climate Action Tracker | C90: http://climateactiontracker.org/
A91: BAU Emissions Projections | B91: Submitted National Communications | C91: http://unfccc.int/national_reports/non-annex_i_natcom/submitted_natcom/items/653.php
B92: UNFCCC: INDCs as communicated by Parties | C92: http://www4.unfccc.int/submissions/indc/Submission%20Pages/submissions.aspx
B93: Submitted Biennial Update Reports | C93: http://unfccc.int/national_reports/non-annex_i_natcom/reporting_on_climate_change/items/8722.php
B94: The Climate Pledge INDC Tool | C94: http://infographics.pbl.nl/indc/
B95: Climate Equity Reference Calculator | C95: http://gdrights.org/calculator-about/
B96: World Bank - World Development Indicators | C96: http://data.worldbank.org/data-catalog/world-development-indicators
B97: UNEP Pledge Pipeline Tool | C97: http://www.unep.org/climatechange/pledgepipeline/
B98: Climate Action Tracker | C98: http://climateactiontracker.org/
A99: INDC Targets | B99: UNFCCC: INDCs as communicated by Parties | C99: http://www4.unfccc.int/submissions/indc/Submission%20Pages/submissions.aspx
A101: Table 2: Mitigation Potential Studies
A102: Low Carbon Emission Projections | B102: SLoCaT Overview of Mitigation Potential Studies | C102: http://www.slocat.net/docs/1519
B103: Submitted National Communications | C103: http://unfccc.int/national_reports/annex_i_natcom/submitted_natcom/items/7742.php
A104: BAU Emissions Projections | B104: Submitted Biennial Reports | C104: http://unfccc.int/national_reports/biennial_reports_and_iar/submitted_biennial_reports/items/7550.php
B105: UNFCCC: INDCs as communicated by Parties | C105: http://www4.unfccc.int/submissions/indc/Submission%20Pages/submissions.aspx
A107: Table 3: Comparison of BAU/Low Carbon Scenarios and INDC Target
A108: Historic Emissions | B108: Submitted National Communications | C108: http://unfccc.int/national_reports/non-annex_i_natcom/submitted_natcom/items/653.php
B109: UNFCCC: INDCs as communicated by Parties | C109: http://www4.unfccc.int/submissions/indc/Submission%20Pages/submissions.aspx
B110: Submitted Biennial Update Reports | C110: http://unfccc.int/national_reports/non-annex_i_natcom/reporting_on_climate_change/items/8722.php
B111: The Climate Pledge INDC Tool | C111: http://infographics.pbl.nl/indc/
B112: CAIT Climate Data Explorer | C112: http://cait.wri.org/
B113: Climate Equity Reference Calculator | C113: http://gdrights.org/calculator-about/
B114: World Bank - World Development Indicators | C114: http://data.worldbank.org/data-catalog/world-development-indicators
B115: UNEP Pledge Pipeline Tool | C115: http://www.unep.org/climatechange/pledgepipeline/
B116: Climate Action Tracker | C116: http://climateactiontracker.org/
A117: BAU Emissions Projections | B117: Submitted National Communications | C117: http://unfccc.int/national_reports/non-annex_i_natcom/submitted_natcom/items/653.php
B118: UNFCCC: INDCs as communicated by Parties | C118: http://www4.unfccc.int/submissions/indc/Submission%20Pages/submissions.aspx
B119: Submitted Biennial Update Reports | C119: http://unfccc.int/national_reports/non-annex_i_natcom/reporting_on_climate_change/items/8722.php
B120: The Climate Pledge INDC Tool | C120: http://infographics.pbl.nl/indc/
B121: Climate Equity Reference Calculator | C121: http://gdrights.org/calculator-about/
B122: World Bank - World Development Indicators | C122: http://data.worldbank.org/data-catalog/world-development-indicators
B123: UNEP Pledge Pipeline Tool | C123: http://www.unep.org/climatechange/pledgepipeline/
B124: Climate Action Tracker | C124: http://climateactiontracker.org/
A125: Low Carbon Emission Projections | B125: SLoCaT Overview of Mitigation Potential Studies | C125: http://www.slocat.net/docs/1519
A126: INDC Targets | B126: UNFCCC: INDCs as communicated by Parties | C126: http://www4.unfccc.int/submissions/indc/Submission%20Pages/submissions.aspx
A128: Figure 1: Projected Transport Emissions: BAU, Low Carbon Scenario, and Indicative Target
A129: Derived from Table 3: Comparison of BAU/Low Carbon Scenarios and INDC Target

Sheet Denmark
U1: -2.435018982 | V1: -0.7495472463 | W1: -1.66695253
A2: Table 1: Historic and Projected Emissions | U2: -2.206723146 | V2: -0.2894556358
A3: Country | C3: Denmark | F3: Table 3: Comparison of BAU/Low Carbon Scenarios and INDC Target | T3: 2010 | U3: 228.138 | V3: 228.138 | W3: 228.138 | Z3: 0
A4: Economy-Wide CO2e Emissions Target | B4: National Communication | C4: 40% reduction by 2020 in all Danish greenhouse gas emissions compared to 1990 levels | F4: Transport CO2 Summary | H4: MT | T4: 2011 | U4: 224.71229 | V4: 224.71229 | W4: 224.3350478 | Z4: 0
B5: BUR | C5: 20% reduction by 2020 when compared with 1990 level | F5: Transport CO2 (MT)- (avg baseline) | G5: 1990 | H5: 10.77806 | T5: 2012 | U5: 219.2405031 | V5: 223.0279652 | W5: 220.5954891 | Z5: 3.787462134
B6: Other National Document/Pledge | G6: 2000 | H6: 12.35503 | T6: 2013 | U6: 213.9019552 | V6: 221.3562652 | W6: 216.918267 | Z6: 7.454310028
B7: INDC Unconditional Reduction | C7: 40% reduction in 2030 compared to 1990 | G7: 2010 | H7: 13.22286 | T7: 2014 | U7: 208.693402 | V7: 219.6970955 | W7: 213.3023425 | Z7: 11.00369345
B8: INDC Conditional Reduction | G8: 2011 | H8: 12.86507 | P8: CO2e Emissions (MT) | T8: 2015 | U8: 203.6116781 | V8: 218.0503619 | W8: 209.7466937 | Z8: 14.43868387
B9: INDC - Any other target mentioned | E9: ` | G9: 2020 | H9: 13.679 | O9: 1990 | P9: 10.77806 | T9: 2016 | U9: 198.653695 | V9: 216.4159714 | W9: 206.2503158 | Z9: 17.7622764
B10: INDC - Long Term Target | G10: 2030 | H10: 14.31 | O10: 1994 | T10: 2017 | U10: 193.8164399 | V10: 214.7938315 | W10: 202.812221 | Z10: 20.97739163
A11: 2030 Economy-Wide CO2e Emissions Target (MT) | C11: 41.232192 | G11: 2050 | H11: 16.33 | O11: 1995 | P11: 12.12382 | T11: 2018 | U11: 189.0969728 | V11: 213.1838502 | W11: 199.4314375 | Z11: 24.08687748
A12: Derived 2030 Transport CO2 Emissions Target ( based on share of total emissions @ 2010) | C12: 9.563186629 | F12: Low Carbon Transport(MT) (avg low carbon baseline) | G12: 2020 | H12: 12.75 | O12: 2000 | P12: 12.35503 | T12: 2019 | U12: 184.4924256 | V12: 211.5859366 | W12: 196.1070101 | Z12: 27.09351098
G13: 2030 | H13: 12.44 | O13: 2005 | P13: 13.33896 | T13: 2020 | U13: 180 | V13: 210 | W13: 192.8379994 | Z13: 30
G14: 2050 | H14: 4.67 | O14: 2010 | P14: 13.22286 | T14: 2021 | U14: 176.0278983 | V14: 209.3921432 | W14: 189.6234815 | Z14: 33.36424483
A15: OFFICIAL and IEA ESTIMATES | B15: Base Year | C15: CO2e Emissions (MT) | D15: Source | F15: Average Reduction of Low Carbon estimate with BAU (%) | G15: 2030 | H15: -13 | O15: 2011 | P15: 12.86507 | T15: 2022 | U15: 172.14345 | V15: 208.7860458 | W15: 186.462548 | Z15: 36.64259584
A16: Economy-Wide CO2e Emissions : Historical | B16: 1990 | C16: 68.72032 | D16: BUR | T16: 2023 | U16: 168.3447206 | V16: 208.1817028 | W16: 183.3543059 | Z16: 39.83698222
B17: 2011 | C17: 57.01107 | D17: NC | N17: Future (BAU) -Official | T17: 2024 | U17: 164.6298187 | V17: 207.5791092 | W17: 180.2978766 | Z17: 42.94929046
A18: Economy-Wide CO2e Emissions : Projections | B18: 2020 | C18: 44.897 | D18: BUR | F18: Gap Between INDC Target and Average Low Carbon Scenario (%) | G18: Average | H18: 0.3008216281 | O18: 2020 | T18: 2025 | U18: 160.9968944 | V18: 206.9782597 | W18: 177.2923966 | Z18: 45.98136535
B19: 2030 | C19: 44.822 | D19: BUR | F19: Transport CO2 Target (MT) | G19: INDC | H19: 9.563186629 | O19: 2030 | T19: 2026 | U19: 157.4441386 | V19: 206.3791495 | W19: 174.3370165 | Z19: 48.93501084
A20: Transport Sector : Historic CO2e Emissions | B20: 1990 | C20: 10.77806 | F20: Gap Between INDC Target and Average Low Carbon Scenario in Million Tons @ 2030 | H20: 2.876813371 | O20: 2020 | P20: 12.64096 | T20: 2027 | U20: 153.9697824 | V20: 205.7817734 | W20: 171.4309012 | Z20: 51.81199101
B21: 1994 | F21: Cumulative Increase: BAU Scenario (2010-2030) MT (avg) | H21: 286.1432508 | N21: Low Carbon Scenario-Official | O21: 2020 | T21: 2028 | U21: 150.5720956 | V21: 205.1861265 | W21: 168.5732295 | Z21: 54.6140309
B22: 1995 | C22: 12.12382 | F22: Cumulative Increase: Low Carbon Scenario (2010-2030) MT (avg) | H22: 267.0861492 | O22: 2030 | P22: 13.80174 | T22: 2029 | U22: 147.2493863 | V22: 204.5922037 | W22: 165.7631938 | Z22: 57.34281737
B23: 2000 | C23: 12.35503 | F23: Cumulative Reduction: BAU vs. Low Carbon Scenario (2010-2030) MT (avg) | H23: 19.05710159 | T23: 2030 | U23: 144 | V23: 204 | W23: 163 | Z23: 60
B24: 2005 | C24: 13.33896 | F24: Cumulative Gap: Low Carbon Scenario vs. INDC Target (2010-2030) MT | H24: -29.80065193 | N24: Future (BAU) -Other studies | O24: 2020 | P24: 14.3 | W24: 4070.609773 | X24: 230.8742269
B25: 2010 | C25: 13.22286 | J25: Figure 1: Projected Transport Emissions: BAU, Low Carbon Scenario, and Transport Target | O25: 2020 | P25: 14 | U25: 3839.735547 | V25: 4467.818081 | W25: 628.0825348
B26: 2011 | C26: 12.86507 | O26: 2020 | P26: 13
O27: 2020 | P27: 13.75 | Q27: -0.1377777778
J28: Figure 1: Projected Transport Emissions: BAU, Low Carbon Scenario, and Indicative Targe | O28: 2020 | P28: 13.226
O29: 2020 | P29: 13.8
O30: 2030 | P30: 13.6 | Q30: -1
O31: 2030 | P31: 15
O32: 2030 | P32: 14.30129286
O33: 2030 | P33: 14.34 | R33: Year | S33: % Increase
O34: 2050 | P34: 14 | Q34: Total Country CO2e Emissions (BAU) | R34: 1990-2011 | S34: 0.08724827863
O35: 2050 | P35: 18.66666667 | R35: 2011-2030 | S35: 0.05585556541
N36: Low Carbon Scenario (studies) | O36: 2020 | P36: 12 | Q36: Total Transport CO2e Emissions (BAU) | R36: 1990-2011 | S36: 0.04033467593
R37: 2011-2030 | S37: -0.0921724842
O38: 2020 | P38: 13.5 | Q38: Transport Mitigation Potential (below BAU @ 2030) | S38: -0.2941176471 | T38: Decrease
O39: 2030 | P39: 12.52 | Q39: Transport Mitigation Potential (below INDC target) | S39: -0.1165644172
A40: Table 2: Mitigation Potential Studies | O40: 2030 | P40: 11
A41: Study Title | C41: EU ENERGY, TRANSPORT AND GHG EMISSIONS TRENDS TO 2050 | D41: The ITREN-2030 | E41: Danish Greenhouse Gas Reduction Scenarios for 2020 and 2050 | F41: Greenhouse gas emission trends and projections in Europe 2011 | O41: 2050 | P41: 4.666666667
A42: Quantification by Institute | C42: EUROPEAN COMMISSION Directorate-General for Energy, Directorate-General for Climate Action and Directorate-General for Mobility and Transport | D42: Fraunhofer ISI | E42: Ea Energy Analyses Risø DTU | F42: European Environment Agency
A43: Methodology/Model Used | C43: Bottom-up (Sultan Model) | D43: Bottom-up | E43: Bottom-up
A44: Base Year | C44: 2000 | D44: 2005 | E44: 2005 | F44: 2010
A45: Base Year CO2e Emissions (MT) | B45: Road
B46: Railways
B47: Waterways
B48: Aviation
B49: Passenger
B50: Freight
B51: Urban
B52: Total | C52: 14.4 | D52: 12 | E52: 16.25 | F52: 13.2
A53: Forecast Year | C53: 2030 | D53: 2030 | E53: 2050 | F53: 2020
A54: Forecast CO2 Emissions (MT) BAU | B54: Road
B55: Railways
B56: Waterways
B57: Aviation
B58: Passenger
B59: Freight
B60: Urban
B61: Total | C61: 13.6 | D61: 15 | E61: 18.67 | F61: 13.8
A62: Forecast Year | C62: 2030 | D62: 2030 | E62: 2050 | F62: 2020
A63: Forecast CO2 Emissions with Mitigation Measures (MT) | B63: Road
B64: Railways
B65: Waterways
B66: Aviation
B67: Passenger
B68: Freight
B69: Urban
B70: Total | C70: 12.52 | D70: 11 | E70: 4.67 | F70: 13.5
A71: % Projected Increase (BAU) | C71: -0.05555555556 | D71: 0.25 | E71: 0.1489230769 | F71: 0.04545454545
A72: % Projected Decrease (With Mitigation Measures) | C72: -0.07941176471 | D72: -0.2666666667 | E72: -0.7498660953 | F72: -0.02173913043
A73: Mitigation Measures | C73: Fuel Economy Standards for LDV and HDV | E73: Fuel efficiency standards, diesel cars, Biofuels, eletricity usage in public transport fleet, decarbonization of power source, shift of the passenger transport demand to cycling and public transport,
A79: TIER I FACTSHEET SOURCES
A81: Table 1: Historic and Projected Emissions
A82: Historic Emissions | B82: Submitted National Communications | C82: http://unfccc.int/national_reports/non-annex_i_natcom/submitted_natcom/items/653.php
B83: UNFCCC: INDCs as communicated by Parties | C83: http://www4.unfccc.int/submissions/indc/Submission%20Pages/submissions.aspx
B84: Submitted Biennial Update Reports | C84: http://unfccc.int/national_reports/non-annex_i_natcom/reporting_on_climate_change/items/8722.php
B85: The Climate Pledge INDC Tool | C85: http://infographics.pbl.nl/indc/
B86: CAIT Climate Data Explorer | C86: http://cait.wri.org/
B87: Climate Equity Reference Calculator | C87: http://gdrights.org/calculator-about/
B88: World Bank - World Development Indicators | C88: http://data.worldbank.org/data-catalog/world-development-indicators
B89: UNEP Pledge Pipeline Tool | C89: http://www.unep.org/climatechange/pledgepipeline/
B90: Climate Action Tracker | C90: http://climateactiontracker.org/
A91: BAU Emissions Projections | B91: Submitted National Communications | C91: http://unfccc.int/national_reports/non-annex_i_natcom/submitted_natcom/items/653.php
B92: UNFCCC: INDCs as communicated by Parties | C92: http://www4.unfccc.int/submissions/indc/Submission%20Pages/submissions.aspx
B93: Submitted Biennial Update Reports | C93: http://unfccc.int/national_reports/non-annex_i_natcom/reporting_on_climate_change/items/8722.php
B94: The Climate Pledge INDC Tool | C94: http://infographics.pbl.nl/indc/
B95: Climate Equity Reference Calculator | C95: http://gdrights.org/calculator-about/
B96: World Bank - World Development Indicators | C96: http://data.worldbank.org/data-catalog/world-development-indicators
B97: UNEP Pledge Pipeline Tool | C97: http://www.unep.org/climatechange/pledgepipeline/
B98: Climate Action Tracker | C98: http://climateactiontracker.org/
A99: INDC Targets | B99: UNFCCC: INDCs as communicated by Parties | C99: http://www4.unfccc.int/submissions/indc/Submission%20Pages/submissions.aspx
A101: Table 2: Mitigation Potential Studies
A102: Low Carbon Emission Projections | B102: SLoCaT Overview of Mitigation Potential Studies | C102: http://www.slocat.net/docs/1519
B103: Submitted National Communications | C103: http://unfccc.int/national_reports/annex_i_natcom/submitted_natcom/items/7742.php
A104: BAU Emissions Projections | B104: Submitted Biennial Reports | C104: http://unfccc.int/national_reports/biennial_reports_and_iar/submitted_biennial_reports/items/7550.php
B105: UNFCCC: INDCs as communicated by Parties | C105: http://www4.unfccc.int/submissions/indc/Submission%20Pages/submissions.aspx
A107: Table 3: Comparison of BAU/Low Carbon Scenarios and INDC Target
A108: Historic Emissions | B108: Submitted National Communications | C108: http://unfccc.int/national_reports/non-annex_i_natcom/submitted_natcom/items/653.php
B109: UNFCCC: INDCs as communicated by Parties | C109: http://www4.unfccc.int/submissions/indc/Submission%20Pages/submissions.aspx
B110: Submitted Biennial Update Reports | C110: http://unfccc.int/national_reports/non-annex_i_natcom/reporting_on_climate_change/items/8722.php
B111: The Climate Pledge INDC Tool | C111: http://infographics.pbl.nl/indc/
B112: CAIT Climate Data Explorer | C112: http://cait.wri.org/
B113: Climate Equity Reference Calculator | C113: http://gdrights.org/calculator-about/
B114: World Bank - World Development Indicators | C114: http://data.worldbank.org/data-catalog/world-development-indicators
B115: UNEP Pledge Pipeline Tool | C115: http://www.unep.org/climatechange/pledgepipeline/
B116: Climate Action Tracker | C116: http://climateactiontracker.org/
A117: BAU Emissions Projections | B117: Submitted National Communications | C117: http://unfccc.int/national_reports/non-annex_i_natcom/submitted_natcom/items/653.php
B118: UNFCCC: INDCs as communicated by Parties | C118: http://www4.unfccc.int/submissions/indc/Submission%20Pages/submissions.aspx
B119: Submitted Biennial Update Reports | C119: http://unfccc.int/national_reports/non-annex_i_natcom/reporting_on_climate_change/items/8722.php
B120: The Climate Pledge INDC Tool | C120: http://infographics.pbl.nl/indc/
B121: Climate Equity Reference Calculator | C121: http://gdrights.org/calculator-about/
B122: World Bank - World Development Indicators | C122: http://data.worldbank.org/data-catalog/world-development-indicators
B123: UNEP Pledge Pipeline Tool | C123: http://www.unep.org/climatechange/pledgepipeline/
B124: Climate Action Tracker | C124: http://climateactiontracker.org/
A125: Low Carbon Emission Projections | B125: SLoCaT Overview of Mitigation Potential Studies | C125: http://www.slocat.net/docs/1519
A126: INDC Targets | B126: UNFCCC: INDCs as communicated by Parties | C126: http://www4.unfccc.int/submissions/indc/Submission%20Pages/submissions.aspx
A128: Figure 1: Projected Transport Emissions: BAU, Low Carbon Scenario, and Indicative Target
A129: Derived from Table 3: Comparison of BAU/Low Carbon Scenarios and INDC Target

Sheet Estonia
U1: -2.435018982 | V1: -0.7495472463 | W1: -1.66695253
A2: Table 1: Historic and Projected Emissions | U2: -2.206723146 | V2: -0.2894556358
A3: Country | C3: Estonia | F3: Table 3: Comparison of BAU/Low Carbon Scenarios and INDC Target | T3: 2010 | U3: 228.138 | V3: 228.138 | W3: 228.138 | Z3: 0
A4: Economy-Wide CO2e Emissions Target | B4: National Communication | C4: 20% of 1990 by 2020 | F4: Transport CO2 Summary | H4: MT | T4: 2011 | U4: 224.71229 | V4: 224.71229 | W4: 224.3350478 | Z4: 0
B5: BUR | F5: Transport CO2 (MT)- (avg baseline) | G5: 1990 | H5: 2.46048 | T5: 2012 | U5: 219.2405031 | V5: 223.0279652 | W5: 220.5954891 | Z5: 3.787462134
B6: Other National Document/Pledge | G6: 2000 | H6: 1.66713 | T6: 2013 | U6: 213.9019552 | V6: 221.3562652 | W6: 216.918267 | Z6: 7.454310028
B7: INDC Unconditional Reduction | C7: 40% reduction in 2030 compared to 1990 | G7: 2010 | H7: 2.24824 | T7: 2014 | U7: 208.693402 | V7: 219.6970955 | W7: 213.3023425 | Z7: 11.00369345
B8: INDC Conditional Reduction | G8: 2011 | H8: 2.25987 | P8: CO2e Emissions (MT) | T8: 2015 | U8: 203.6116781 | V8: 218.0503619 | W8: 209.7466937 | Z8: 14.43868387
B9: INDC - Any other target mentioned | E9: ` | G9: 2020 | H9: 2.52 | O9: 1990 | P9: 2.46048 | T9: 2016 | U9: 198.653695 | V9: 216.4159714 | W9: 206.2503158 | Z9: 17.7622764
B10: INDC - Long Term Target | G10: 2030 | H10: 2.82 | O10: 1994 | T10: 2017 | U10: 193.8164399 | V10: 214.7938315 | W10: 202.812221 | Z10: 20.97739163
A11: 2030 Economy-Wide CO2e Emissions Target (MT) | C11: 24.325278 | G11: 2050 | H11: 3.07 | O11: 1995 | P11: 1.57496 | T11: 2018 | U11: 189.0969728 | V11: 213.1838502 | W11: 199.4314375 | Z11: 24.08687748
A12: Derived 2030 Transport CO2 Emissions Target ( based on share of total emissions @ 2010) | C12: 2.609761362 | F12: Low Carbon Transport(MT) (avg low carbon baseline) | G12: 2020 | H12: 2.398 | O12: 2000 | P12: 1.66713 | T12: 2019 | U12: 184.4924256 | V12: 211.5859366 | W12: 196.1070101 | Z12: 27.09351098
G13: 2030 | H13: 2.25 | O13: 2005 | P13: 2.13738 | T13: 2020 | U13: 180 | V13: 210 | W13: 192.8379994 | Z13: 30
G14: 2050 | H14: 1.05 | O14: 2010 | P14: 2.24824 | T14: 2021 | U14: 176.0278983 | V14: 209.3921432 | W14: 189.6234815 | Z14: 33.36424483
A15: OFFICIAL and IEA ESTIMATES | B15: Base Year | C15: CO2e Emissions (MT) | D15: Source | F15: Average Reduction of Low Carbon estimate with BAU (%) | G15: 2030 | H15: -20 | O15: 2011 | P15: 2.25987 | T15: 2022 | U15: 172.14345 | V15: 208.7860458 | W15: 186.462548 | Z15: 36.64259584
A16: Economy-Wide CO2e Emissions : Historical | B16: 1990 | C16: 40.54213 | D16: BUR | T16: 2023 | U16: 168.3447206 | V16: 208.1817028 | W16: 183.3543059 | Z16: 39.83698222
B17: 2011 | C17: 20.95558 | D17: NC | N17: Future (BAU) -Official | T17: 2024 | U17: 164.6298187 | V17: 207.5791092 | W17: 180.2978766 | Z17: 42.94929046
A18: Economy-Wide CO2e Emissions : Projections | B18: 2020 | C18: 17.06035 | D18: BUR | F18: Gap Between INDC Target and Average Low Carbon Scenario (%) | G18: Average | H18: -0.1378522066 | O18: 2020 | P18: 2.5282 | T18: 2025 | U18: 160.9968944 | V18: 206.9782597 | W18: 177.2923966 | Z18: 45.98136535
B19: 2030 | C19: 16.16506 | D19: BUR | F19: Transport CO2 Target (MT) | G19: INDC | H19: 2.609761362 | O19: 2030 | P19: 2.86292 | T19: 2026 | U19: 157.4441386 | V19: 206.3791495 | W19: 174.3370165 | Z19: 48.93501084
A20: Transport Sector : Historic CO2e Emissions | B20: 1990 | C20: 2.46048 | D20: BUR | F20: Gap Between INDC Target and Average Low Carbon Scenario in Million Tons @ 2030 | H20: -0.3597613624 | T20: 2027 | U20: 153.9697824 | V20: 205.7817734 | W20: 171.4309012 | Z20: 51.81199101
B21: 1994 | F21: Cumulative Increase: BAU Scenario (2010-2030) MT (avg) | H21: 52.94876806 | N21: Low Carbon Scenario-Official | O21: 2020 | P21: 2.29278 | T21: 2028 | U21: 150.5720956 | V21: 205.1861265 | W21: 168.5732295 | Z21: 54.6140309
B22: 1995 | C22: 1.57496 | D22: BUR | F22: Cumulative Increase: Low Carbon Scenario (2010-2030) MT (avg) | H22: 48.6897422 | O22: 2030 | P22: 2.59506 | T22: 2029 | U22: 147.2493863 | V22: 204.5922037 | W22: 165.7631938 | Z22: 57.34281737
B23: 2000 | C23: 1.66713 | D23: BUR | F23: Cumulative Reduction: BAU vs. Low Carbon Scenario (2010-2030) MT (avg) | H23: 4.259025863 | T23: 2030 | U23: 144 | V23: 204 | W23: 163 | Z23: 60
B24: 2005 | C24: 2.13738 | D24: BUR | F24: Cumulative Gap: Low Carbon Scenario vs. INDC Target (2010-2030) MT | H24: 2.229685246 | N24: Future (BAU) -Other studies | O24: 2020 | P24: 2.2 | W24: 4070.609773 | X24: 230.8742269
B25: 2010 | C25: 2.24824 | D25: BUR | J25: Figure 1: Projected Transport Emissions: BAU, Low Carbon Scenario, and Transport Target | O25: 2020 | P25: 2.94 | U25: 3839.735547 | V25: 4467.818081 | W25: 628.0825348
B26: 2011 | C26: 2.25987 | D26: BUR
O27: 2020 | P27: 2 | Q27: -0.1377777778
J28: Figure 1: Projected Transport Emissions: BAU, Low Carbon Scenario, and Indicative Targe | O28: 2030 | P28: 2.2
O29: 2030 | P29: 3.48
O30: 2030 | P30: 3.373333333 | Q30: -1
O31: 2030 | P31: 2.2
O32: 2040 | P32: 2.3
O33: 2050 | P33: 2.2 | R33: Year | S33: % Increase
O34: 2050 | P34: 3.94 | Q34: Total Country CO2e Emissions (BAU) | R34: 1990-2011 | S34: 0.08724827863
O35: 2050 | P35: 3.08 | R35: 2011-2030 | S35: 0.05585556541
N36: Low Carbon Scenario (studies) | O36: 2020 | P36: 2.3 | Q36: Total Transport CO2e Emissions (BAU) | R36: 1990-2011 | S36: 0.04033467593
O37: 2020 | P37: 2.603333333 | R37: 2011-2030 | S37: -0.0921724842
O38: 2030 | P38: 1.97 | Q38: Transport Mitigation Potential (below BAU @ 2030) | S38: -0.2941176471 | T38: Decrease
O39: 2030 | P39: 2.2 | Q39: Transport Mitigation Potential (below INDC target) | S39: -0.1165644172
A40: Table 2: Mitigation Potential Studies | O40: 2040 | P40: 1.42
A41: Study Title | C41: Estonia's opportunities to move Competitive Low Carbon in the direction of the economy in 2050 | D41: Long-term energy scenarios for Estonia, Scenarios for 2030 and 2050 | O41: 2050 | P41: 0.93
A42: Quantification by Institute | C42: Estonian Nature Fund, Department of Applied Social Sciences Research Centre of CASS | D42: Ea Energy Analyses | O42: 2050 | P42: 1.173333333
A43: Methodology/Model Used | O43: 2050
A44: Base Year | C44: 1990 | D44: 2010 | O44: 2050
A45: Base Year CO2e Emissions (MT) | B45: Road | O45: 2050
B46: Railways | O46: 2020
B47: Waterways | O47: 2020
B48: Aviation | O48: 2025
B49: Passenger | O49: 2030
B50: Freight
B51: Urban
B52: Total | C52: 2.49 | D52: 2.2
A53: Forecast Year | C53: 2050 | D53: 2050
A54: Forecast CO2 Emissions (MT) BAU | B54: Road
B55: Railways
B56: Waterways
B57: Aviation
B58: Passenger
B59: Freight
B60: Urban
B61: Total | C61: 3.94 | D61: 3.08
A62: Forecast Year | C62: 2050 | D62: 2050
A63: Forecast CO2 Emissions with Mitigation Measures (MT) | B63: Road
B64: Railways
B65: Waterways
B66: Aviation
B67: Passenger
B68: Freight
B69: Urban
B70: Total
A71: % Projected Increase (BAU) | C71: =C61/C52-1 -> 0.5823293173 | D71: =D61/D52-1 -> 0.4
A72: % Projected Decrease (With Mitigation Measures) | C72: =C70/C61-1 -> -1 | D72: =D70/D61-1 -> -1
A73: Mitigation Measures
A79: TIER I FACTSHEET SOURCES
A81: Table 1: Historic and Projected Emissions
A82: Historic Emissions | B82: Submitted National Communications | C82: http://unfccc.int/national_reports/non-annex_i_natcom/submitted_natcom/items/653.php
B83: UNFCCC: INDCs as communicated by Parties | C83: http://www4.unfccc.int/submissions/indc/Submission%20Pages/submissions.aspx
B84: Submitted Biennial Update Reports | C84: http://unfccc.int/national_reports/non-annex_i_natcom/reporting_on_climate_change/items/8722.php
B85: The Climate Pledge INDC Tool | C85: http://infographics.pbl.nl/indc/
B86: CAIT Climate Data Explorer | C86: http://cait.wri.org/
B87: Climate Equity Reference Calculator | C87: http://gdrights.org/calculator-about/
B88: World Bank - World Development Indicators | C88: http://data.worldbank.org/data-catalog/world-development-indicators
B89: UNEP Pledge Pipeline Tool | C89: http://www.unep.org/climatechange/pledgepipeline/
B90: Climate Action Tracker | C90: http://climateactiontracker.org/
A91: BAU Emissions Projections | B91: Submitted National Communications | C91: http://unfccc.int/national_reports/non-annex_i_natcom/submitted_natcom/items/653.php
B92: UNFCCC: INDCs as communicated by Parties | C92: http://www4.unfccc.int/submissions/indc/Submission%20Pages/submissions.aspx
B93: Submitted Biennial Update Reports | C93: http://unfccc.int/national_reports/non-annex_i_natcom/reporting_on_climate_change/items/8722.php
B94: The Climate Pledge INDC Tool | C94: http://infographics.pbl.nl/indc/
B95: Climate Equity Reference Calculator | C95: http://gdrights.org/calculator-about/
B96: World Bank - World Development Indicators | C96: http://data.worldbank.org/data-catalog/world-development-indicators
B97: UNEP Pledge Pipeline Tool | C97: http://www.unep.org/climatechange/pledgepipeline/
B98: Climate Action Tracker | C98: http://climateactiontracker.org/
A99: INDC Targets | B99: UNFCCC: INDCs as communicated by Parties | C99: http://www4.unfccc.int/submissions/indc/Submission%20Pages/submissions.aspx
A101: Table 2: Mitigation Potential Studies
A102: Low Carbon Emission Projections | B102: SLoCaT Overview of Mitigation Potential Studies | C102: http://www.slocat.net/docs/1519
B103: Submitted National Communications | C103: http://unfccc.int/national_reports/annex_i_natcom/submitted_natcom/items/7742.php
A104: BAU Emissions Projections | B104: Submitted Biennial Reports | C104: http://unfccc.int/national_reports/biennial_reports_and_iar/submitted_biennial_reports/items/7550.php
B105: UNFCCC: INDCs as communicated by Parties | C105: http://www4.unfccc.int/submissions/indc/Submission%20Pages/submissions.aspx
A107: Table 3: Comparison of BAU/Low Carbon Scenarios and INDC Target
A108: Historic Emissions | B108: Submitted National Communications | C108: http://unfccc.int/national_reports/non-annex_i_natcom/submitted_natcom/items/653.php
B109: UNFCCC: INDCs as communicated by Parties | C109: http://www4.unfccc.int/submissions/indc/Submission%20Pages/submissions.aspx
B110: Submitted Biennial Update Reports | C110: http://unfccc.int/national_reports/non-annex_i_natcom/reporting_on_climate_change/items/8722.php
B111: The Climate Pledge INDC Tool | C111: http://infographics.pbl.nl/indc/
B112: CAIT Climate Data Explorer | C112: http://cait.wri.org/
B113: Climate Equity Reference Calculator | C113: http://gdrights.org/calculator-about/
B114: World Bank - World Development Indicators | C114: http://data.worldbank.org/data-catalog/world-development-indicators
B115: UNEP Pledge Pipeline Tool | C115: http://www.unep.org/climatechange/pledgepipeline/
B116: Climate Action Tracker | C116: http://climateactiontracker.org/
A117: BAU Emissions Projections | B117: Submitted National Communications | C117: http://unfccc.int/national_reports/non-annex_i_natcom/submitted_natcom/items/653.php
B118: UNFCCC: INDCs as communicated by Parties | C118: http://www4.unfccc.int/submissions/indc/Submission%20Pages/submissions.aspx
B119: Submitted Biennial Update Reports | C119: http://unfccc.int/national_reports/non-annex_i_natcom/reporting_on_climate_change/items/8722.php
B120: The Climate Pledge INDC Tool | C120: http://infographics.pbl.nl/indc/
B121: Climate Equity Reference Calculator | C121: http://gdrights.org/calculator-about/
B122: World Bank - World Development Indicators | C122: http://data.worldbank.org/data-catalog/world-development-indicators
B123: UNEP Pledge Pipeline Tool | C123: http://www.unep.org/climatechange/pledgepipeline/
B124: Climate Action Tracker | C124: http://climateactiontracker.org/
A125: Low Carbon Emission Projections | B125: SLoCaT Overview of Mitigation Potential Studies | C125: http://www.slocat.net/docs/1519
A126: INDC Targets | B126: UNFCCC: INDCs as communicated by Parties | C126: http://www4.unfccc.int/submissions/indc/Submission%20Pages/submissions.aspx
A128: Figure 1: Projected Transport Emissions: BAU, Low Carbon Scenario, and Indicative Target
A129: Derived from Table 3: Comparison of BAU/Low Carbon Scenarios and INDC Target

Sheet EU
U1: -2.435018982 | V1: -0.7495472463 | W1: -1.66695253
A2: Table 1: Historic and Projected Emissions | U2: -2.206723146 | V2: -0.2894556358
A3: Country | C3: EU | F3: Table 3: Comparison of BAU/Low Carbon Scenarios and INDC Target | T3: 2010 | U3: 228.138 | V3: 228.138 | W3: 228.138 | Z3: 0
A4: Economy-Wide CO2e Emissions Target | B4: National Communication | C4: to reduce EU greenhouse gas emissions by at least 20 % compared to 1990 by 2020 | F4: Transport CO2 Summary | H4: MT | T4: 2011 | U4: 224.71229 | V4: 224.71229 | W4: 224.3350478 | Z4: 0
B5: BUR | F5: Transport CO2 (MT)- (avg baseline) | G5: 1990 | H5: 778.34412 | T5: 2012 | U5: 219.2405031 | V5: 223.0279652 | W5: 220.5954891 | Z5: 3.787462134
B6: Other National Document/Pledge | C6: By 2050, the EU aims to cut its emissions substantially – by 80-95% compared to 1990 levels. | G6: 2000 | H6: 914.69753 | T6: 2013 | U6: 213.9019552 | V6: 221.3562652 | W6: 216.918267 | Z6: 7.454310028
B7: INDC Unconditional Reduction | C7: 40% domestic reduction in greenhouse gas emissions by 2030 compared to 1990 | G7: 2010 | H7: 935.86205 | T7: 2014 | U7: 208.693402 | V7: 219.6970955 | W7: 213.3023425 | Z7: 11.00369345
B8: INDC Conditional Reduction | G8: 2011 | H8: 926.4404 | P8: CO2e Emissions (MT) | T8: 2015 | U8: 203.6116781 | V8: 218.0503619 | W8: 209.7466937 | Z8: 14.43868387
B9: INDC - Any other target mentioned | C9: current undertaking of a 20% emission reduction commitment by 2020 compared to 1990 | E9: ` | G9: 2020 | H9: 1007 | O9: 1990 | P9: 778.34412 | T9: 2016 | U9: 198.653695 | V9: 216.4159714 | W9: 206.2503158 | Z9: 17.7622764
B10: INDC - Long Term Target | G10: 2030 | H10: 1101 | O10: 1994 | P10: 819.4236 | T10: 2017 | U10: 193.8164399 | V10: 214.7938315 | W10: 202.812221 | Z10: 20.97739163
A11: 2030 Economy-Wide CO2e Emissions Target (MT) | C11: 3363.6702 | G11: 2050 | H11: 1317 | O11: 1995 | P11: 833.368562 | T11: 2018 | U11: 189.0969728 | V11: 213.1838502 | W11: 199.4314375 | Z11: 24.08687748
A12: Derived 2030 Transport CO2 Emissions Target ( based on share of total emissions @ 2010) | C12: 680.5568705 | F12: Low Carbon Transport(MT) (avg low carbon baseline) | G12: 2020 | H12: 893 | O12: 2000 | P12: 914.69753 | T12: 2019 | U12: 184.4924256 | V12: 211.5859366 | W12: 196.1070101 | Z12: 27.09351098
G13: 2030 | H13: 772 | O13: 2005 | P13: 969.04559 | T13: 2020 | U13: 180 | V13: 210 | W13: 192.8379994 | Z13: 30
G14: 2050 | H14: 453 | O14: 2010 | P14: 935.86205 | T14: 2021 | U14: 176.0278983 | V14: 209.3921432 | W14: 189.6234815 | Z14: 33.36424483
A15: OFFICIAL and IEA ESTIMATES | B15: Base Year | C15: CO2e Emissions (MT) | D15: Source | F15: Average Reduction of Low Carbon estimate with BAU (%) | G15: 2030 | H15: -30 | O15: 2011 | P15: 926.4404 | T15: 2022 | U15: 172.14345 | V15: 208.7860458 | W15: 186.462548 | Z15: 36.64259584
A16: Economy-Wide CO2e Emissions : Historical | B16: 1990 | C16: 5606.117 | D16: Sixth National Communication | T16: 2023 | U16: 168.3447206 | V16: 208.1817028 | W16: 183.3543059 | Z16: 39.83698222
B17: 2011 | C17: 4578.956 | D17: Sixth National Communication | N17: Future (BAU) -Official | T17: 2024 | U17: 164.6298187 | V17: 207.5791092 | W17: 180.2978766 | Z17: 42.94929046
A18: Economy-Wide CO2e Emissions : Projections | B18: 2020 | C18: 4156 | D18: Sixth National Communication | F18: Gap Between INDC Target and Average Low Carbon Scenario (%) | G18: Average | H18: 0.1343651551 | O18: 2020 | P18: 917.398 | T18: 2025 | U18: 160.9968944 | V18: 206.9782597 | W18: 177.2923966 | Z18: 45.98136535
B19: 2030 | C19: 4238.897 | D19: Sixth National Communication | F19: Transport CO2 Target (MT) | G19: INDC | H19: 680.5568705 | O19: 2030 | P19: 937.767 | T19: 2026 | U19: 157.4441386 | V19: 206.3791495 | W19: 174.3370165 | Z19: 48.93501084
A20: Transport Sector : Historic CO2e Emissions | B20: 1990 | C20: 778.34412 | D20: BUR | F20: Gap Between INDC Target and Average Low Carbon Scenario in Million Tons @ 2030 | H20: 91.44312949 | O20: 2020 | P20: 900 | T20: 2027 | U20: 153.9697824 | V20: 205.7817734 | W20: 171.4309012 | Z20: 51.81199101
B21: 1994 | C21: 819.4236 | D21: BUR | F21: Cumulative Increase: BAU Scenario (2010-2030) MT (avg) | H21: 21178.16908 | N21: Low Carbon Scenario-Official | O21: 2020 | P21: 875.065 | T21: 2028 | U21: 150.5720956 | V21: 205.1861265 | W21: 168.5732295 | Z21: 54.6140309
B22: 1995 | C22: 833.368562 | D22: BUR | F22: Cumulative Increase: Low Carbon Scenario (2010-2030) MT (avg) | H22: 18282.12389 | O22: 2030 | P22: 867.611 | T22: 2029 | U22: 147.2493863 | V22: 204.5922037 | W22: 165.7631938 | Z22: 57.34281737
B23: 2000 | C23: 914.69753 | D23: BUR | F23: Cumulative Reduction: BAU vs. Low Carbon Scenario (2010-2030) MT (avg) | H23: 2896.045193 | T23: 2030 | U23: 144 | V23: 204 | W23: 163 | Z23: 60
B24: 2005 | C24: 969.04559 | D24: BUR | F24: Cumulative Gap: Low Carbon Scenario vs. INDC Target (2010-2030) MT | H24: -1444.706271 | N24: Future (BAU) -Other studies | O24: 2020 | P24: 983.7 | W24: 4070.609773 | X24: 230.8742269
B25: 2010 | C25: 935.86205 | D25: BUR | J25: Figure 1: Projected Transport Emissions: BAU, Low Carbon Scenario, and Transport Target | O25: 2030 | P25: 956.7 | U25: 3839.735547 | V25: 4467.818081 | W25: 628.0825348
B26: 2011 | C26: 926.4404 | D26: BUR | O26: 2050 | P26: 971.5
O27: 2020 | P27: 1228 | Q27: -0.1377777778
J28: Figure 1: Projected Transport Emissions: BAU, Low Carbon Scenario, and Indicative Targe | O28: 2050 | P28: 1250
O29: 2030 | P29: 1009.7
O30: 2050 | P30: 1350 | Q30: -1
O31: 2050 | P31: 2050
O32: 2030 | P32: 1500
O33: 2050 | P33: 1700 | R33: Year | S33: % Increase
O34: 2040 | P34: 1008.3 | Q34: Total Country CO2e Emissions (BAU) | R34: 1990-2011 | S34: 0.08724827863
O35: 2045 | P35: 963.4 | R35: 2011-2030 | S35: 0.05585556541
N36: Low Carbon Scenario (studies) | O36: 2020 | P36: 1031 | Q36: Total Transport CO2e Emissions (BAU) | R36: 1990-2011 | S36: 0.04033467593
O37: 2050 | P37: 575 | R37: 2011-2030 | S37: -0.0921724842
O38: 2050 | P38: 322 | Q38: Transport Mitigation Potential (below BAU @ 2030) | S38: -0.2941176471 | T38: Decrease
O39: 2050 | P39: 161 | Q39: Transport Mitigation Potential (below INDC target) | S39: -0.1165644172
A40: Table 2: Mitigation Potential Studies | O40: 2020 | P40: 969.2
A41: Study Title | C41: Energy Roadmap 2050 | D41: Reducing Transport CO2 Emissions in the EU Transport Sector 2050 | E41: A TRANSPORT SCENARIO FOR EUROPE UNTIL 2050 IN A 2-DEGREE WORLD | F41: Towards the decarbonisation of the EU‘s transport sector by 2050 | O41: 2040 | P41: 528.3
A42: Quantification by Institute | C42: European Commission | D42: European Gas Forum | E42: Fraunhofer-Institute Systems and Innovation Research (ISI) | F42: European Commission | O42: 2050 | P42: 309.8
A43: Methodology/Model Used | O43: 2050 | P43: 538.5
A44: Base Year | C44: 1990 | D44: 2010 | E44: 2010 | F44: 1990 | O44: 2050 | P44: 770
A45: Base Year CO2e Emissions (MT) | B45: Road | O45: 2050 | P45: 500
B46: Railways | O46: 2020 | P46: 875.065
B47: Waterways | O47: 2020 | P47: 829
B48: Aviation | O48: 2025 | P48: 757
B49: Passenger | O49: 2030 | P49: 677
B50: Freight
B51: Urban
B52: Total | C52: 812.7 | D52: 1533 | E52: 1242 | F52: 1192
A53: Forecast Year | C53: 2050 | D53: 2050 | E53: 2050 | F53: 2050
A54: Forecast CO2 Emissions (MT) BAU | B54: Road
B55: Railways
B56: Waterways
B57: Aviation
B58: Passenger
B59: Freight
B60: Urban
B61: Total | C61: 1007 | D61: 1350 | E61: 1250 | F61: 2000
A62: Forecast Year | C62: 2050 | D62: 2050 | E62: 2050 | F62: 2050
A63: Forecast CO2 Emissions with Mitigation Measures (MT) | B63: Road
B64: Railways
B65: Waterways
B66: Aviation
B67: Passenger
B68: Freight
B69: Urban
B70: Total | C70: 309.3 | D70: 538.5 | E70: 575 | F70: 120
A71: % Projected Increase (BAU) | C71: =C61/C52-1 -> 0.2390796112 | D71: =D61/D52-1 -> -0.1193737769 | E71: =E61/E52-1 -> 0.006441223833 | F71: =F61/F52-1 -> 0.677852349
A72: % Projected Decrease (With Mitigation Measures) | C72: =C70/C61-1 -> -0.6928500497 | D72: =D70/D61-1 -> -0.6011111111 | E72: =E70/E61-1 -> -0.54 | F72: =F70/F61-1 -> -0.94
A73: Mitigation Measures | C73: Energy efficiency standards, internal market, infrastructure, pricing and transport planning measures leading to more fuel-efficient transport means and some modal shift Encourage the deployment of clean energy carriers by establishing the necessary supporting infrastructures | D73: This study also identified a number of potential barriers to successful uptake of the Alternative scenario. These include:  Widespread availability/provision of refuelling infrastructure for natural gas vehicles;  Natural gas vehicle purchase prices;  Overall lifecycle economics of owning a gas-fuelled vehicle; and  Current consumer and business attitudes towards the purchase and use of natural gas vehicles. | E73: In the 2-degree scenarios transport policy packages with 20+ measures are implemented in Europe that integrates technology policy (e.g. fostering CNG, electric and hydrogen vehicles at different points of time), regulation (e.g. CO2 emission limits, binding use of ultra fluid lubricants, biofuel quotas), pricing policy (e.g. upstream inclusion of transport into the ETS) with organisational improvements (e.g. improved intermodality and railway capacity). | F73: Spatial planning, economic instruments and advanced technology penetration
A79: TIER I FACTSHEET SOURCES
A81: Table 1: Historic and Projected Emissions
A82: Historic Emissions | B82: Submitted National Communications | C82: http://unfccc.int/national_reports/non-annex_i_natcom/submitted_natcom/items/653.php
B83: UNFCCC: INDCs as communicated by Parties | C83: http://www4.unfccc.int/submissions/indc/Submission%20Pages/submissions.aspx
B84: Submitted Biennial Update Reports | C84: http://unfccc.int/national_reports/non-annex_i_natcom/reporting_on_climate_change/items/8722.php
B85: The Climate Pledge INDC Tool | C85: http://infographics.pbl.nl/indc/
B86: CAIT Climate Data Explorer | C86: http://cait.wri.org/
B87: Climate Equity Reference Calculator | C87: http://gdrights.org/calculator-about/
B88: World Bank - World Development Indicators | C88: http://data.worldbank.org/data-catalog/world-development-indicators
B89: UNEP Pledge Pipeline Tool | C89: http://www.unep.org/climatechange/pledgepipeline/
B90: Climate Action Tracker | C90: http://climateactiontracker.org/
A91: BAU Emissions Projections | B91: Submitted National Communications | C91: http://unfccc.int/national_reports/non-annex_i_natcom/submitted_natcom/items/653.php
B92: UNFCCC: INDCs as communicated by Parties | C92: http://www4.unfccc.int/submissions/indc/Submission%20Pages/submissions.aspx
B93: Submitted Biennial Update Reports | C93: http://unfccc.int/national_reports/non-annex_i_natcom/reporting_on_climate_change/items/8722.php
B94: The Climate Pledge INDC Tool | C94: http://infographics.pbl.nl/indc/
B95: Climate Equity Reference Calculator | C95: http://gdrights.org/calculator-about/
B96: World Bank - World Development Indicators | C96: http://data.worldbank.org/data-catalog/world-development-indicators
B97: UNEP Pledge Pipeline Tool | C97: http://www.unep.org/climatechange/pledgepipeline/
B98: Climate Action Tracker | C98: http://climateactiontracker.org/
A99: INDC Targets | B99: UNFCCC: INDCs as communicated by Parties | C99: http://www4.unfccc.int/submissions/indc/Submission%20Pages/submissions.aspx
A101: Table 2: Mitigation Potential Studies
A102: Low Carbon Emission Projections | B102: SLoCaT Overview of Mitigation Potential Studies | C102: http://www.slocat.net/docs/1519
B103: Submitted National Communications | C103: http://unfccc.int/national_reports/annex_i_natcom/submitted_natcom/items/7742.php
A104: BAU Emissions Projections | B104: Submitted Biennial Reports | C104: http://unfccc.int/national_reports/biennial_reports_and_iar/submitted_biennial_reports/items/7550.php
B105: UNFCCC: INDCs as communicated by Parties | C105: http://www4.unfccc.int/submissions/indc/Submission%20Pages/submissions.aspx
A107: Table 3: Comparison of BAU/Low Carbon Scenarios and INDC Target
A108: Historic Emissions | B108: Submitted National Communications | C108: http://unfccc.int/national_reports/non-annex_i_natcom/submitted_natcom/items/653.php
B109: UNFCCC: INDCs as communicated by Parties | C109: http://www4.unfccc.int/submissions/indc/Submission%20Pages/submissions.aspx
B110: Submitted Biennial Update Reports | C110: http://unfccc.int/national_reports/non-annex_i_natcom/reporting_on_climate_change/items/8722.php
B111: The Climate Pledge INDC Tool | C111: http://infographics.pbl.nl/indc/
B112: CAIT Climate Data Explorer | C112: http://cait.wri.org/
B113: Climate Equity Reference Calculator | C113: http://gdrights.org/calculator-about/
B114: World Bank - World Development Indicators | C114: http://data.worldbank.org/data-catalog/world-development-indicators
B115: UNEP Pledge Pipeline Tool | C115: http://www.unep.org/climatechange/pledgepipeline/
B116: Climate Action Tracker | C116: http://climateactiontracker.org/
A117: BAU Emissions Projections | B117: Submitted National Communications | C117: http://unfccc.int/national_reports/non-annex_i_natcom/submitted_natcom/items/653.php
B118: UNFCCC: INDCs as communicated by Parties | C118: http://www4.unfccc.int/submissions/indc/Submission%20Pages/submissions.aspx
B119: Submitted Biennial Update Reports | C119: http://unfccc.int/national_reports/non-annex_i_natcom/reporting_on_climate_change/items/8722.php
B120: The Climate Pledge INDC Tool | C120: http://infographics.pbl.nl/indc/
B121: Climate Equity Reference Calculator | C121: http://gdrights.org/calculator-about/
B122: World Bank - World Development Indicators | C122: http://data.worldbank.org/data-catalog/world-development-indicators
B123: UNEP Pledge Pipeline Tool | C123: http://www.unep.org/climatechange/pledgepipeline/
B124: Climate Action Tracker | C124: http://climateactiontracker.org/
A125: Low Carbon Emission Projections | B125: SLoCaT Overview of Mitigation Potential Studies | C125: http://www.slocat.net/docs/1519
A126: INDC Targets | B126: UNFCCC: INDCs as communicated by Parties | C126: http://www4.unfccc.int/submissions/indc/Submission%20Pages/submissions.aspx
A128: Figure 1: Projected Transport Emissions: BAU, Low Carbon Scenario, and Indicative Target
A129: Derived from Table 3: Comparison of BAU/Low Carbon Scenarios and INDC Target

Sheet Finland
U1: -2.435018982 | V1: -0.7495472463 | W1: -1.66695253
A2: Table 1: Historic and Projected Emissions | U2: -2.206723146 | V2: -0.2894556358
A3: Country | C3: Finland | F3: Table 3: Comparison of BAU/Low Carbon Scenarios and INDC Target | T3: 2010 | U3: 228.138 | V3: 228.138 | W3: 228.138 | Z3: 0
A4: Economy-Wide CO2e Emissions Target | B4: National Communication | C4: 20% of 1990 by 2020 | F4: Transport CO2 Summary | H4: MT | T4: 2011 | U4: 224.71229 | V4: 224.71229 | W4: 224.3350478 | Z4: 0
B5: BUR | F5: Transport CO2 (MT)- (avg baseline) | G5: 1990 | H5: 12.757 | T5: 2012 | U5: 219.2405031 | V5: 223.0279652 | W5: 220.5954891 | Z5: 3.787462134
B6: Other National Document/Pledge | G6: 2000 | H6: 12.842 | T6: 2013 | U6: 213.9019552 | V6: 221.3562652 | W6: 216.918267 | Z6: 7.454310028
B7: INDC Unconditional Reduction | C7: 40% reduction in 2030 compared to 1990 | G7: 2010 | H7: 13.43049 | T7: 2014 | U7: 208.693402 | V7: 219.6970955 | W7: 213.3023425 | Z7: 11.00369345
B8: INDC Conditional Reduction | G8: 2011 | H8: 13.22803 | P8: CO2e Emissions (MT) | T8: 2015 | U8: 203.6116781 | V8: 218.0503619 | W8: 209.7466937 | Z8: 14.43868387
B9: INDC - Any other target mentioned | E9: ` | G9: 2020 | H9: 12.97 | O9: 1990 | P9: 12.757 | T9: 2016 | U9: 198.653695 | V9: 216.4159714 | W9: 206.2503158 | Z9: 17.7622764
B10: INDC - Long Term Target | G10: 2030 | H10: 11 | O10: 1994 | T10: 2017 | U10: 193.8164399 | V10: 214.7938315 | W10: 202.812221 | Z10: 20.97739163
A11: 2030 Economy-Wide CO2e Emissions Target (MT) | C11: 42.271392 | G11: 2050 | H11: 11 | O11: 1995 | P11: 11.99381 | T11: 2018 | U11: 189.0969728 | V11: 213.1838502 | W11: 199.4314375 | Z11: 24.08687748
A12: Derived 2030 Transport CO2 Emissions Target ( based on share of total emissions @ 2010) | C12: 8.46934357 | F12: Low Carbon Transport(MT) (avg low carbon baseline) | G12: 2020 | H12: 10.56 | O12: 2000 | P12: 12.842 | T12: 2019 | U12: 184.4924256 | V12: 211.5859366 | W12: 196.1070101 | Z12: 27.09351098
G13: 2030 | H13: 9.39 | O13: 2005 | P13: 13.71442 | T13: 2020 | U13: 180 | V13: 210 | W13: 192.8379994 | Z13: 30
G14: 2050 | H14: 0.92 | O14: 2010 | P14: 13.43049 | T14: 2021 | U14: 176.0278983 | V14: 209.3921432 | W14: 189.6234815 | Z14: 33.36424483
A15: OFFICIAL and IEA ESTIMATES | B15: Base Year | C15: CO2e Emissions (MT) | D15: Source | F15: Average Reduction of Low Carbon estimate with BAU (%) | G15: 2030 | H15: -15 | O15: 2011 | P15: 13.22803 | T15: 2022 | U15: 172.14345 | V15: 208.7860458 | W15: 186.462548 | Z15: 36.64259584
A16: Economy-Wide CO2e Emissions : Historical | B16: 1990 | C16: 70.45232 | D16: BUR | T16: 2023 | U16: 168.3447206 | V16: 208.1817028 | W16: 183.3543059 | Z16: 39.83698222
B17: 2011 | C17: 67.033 | D17: NC | N17: Future (BAU) -Official | T17: 2024 | U17: 164.6298187 | V17: 207.5791092 | W17: 180.2978766 | Z17: 42.94929046
A18: Economy-Wide CO2e Emissions : Projections | B18: 2020 | C18: 64.292 | D18: BUR | F18: Gap Between INDC Target and Average Low Carbon Scenario (%) | G18: Average | H18: 0.1087045793 | O18: 2020 | P18: 12.1 | T18: 2025 | U18: 160.9968944 | V18: 206.9782597 | W18: 177.2923966 | Z18: 45.98136535
B19: 2030 | C19: 50.632 | D19: BUR | F19: Transport CO2 Target (MT) | G19: INDC | H19: 8.46934357 | O19: 2030 | P19: 10.6 | T19: 2026 | U19: 157.4441386 | V19: 206.3791495 | W19: 174.3370165 | Z19: 48.93501084
A20: Transport Sector : Historic CO2e Emissions | B20: 1990 | C20: 12.757 | D20: BUR | F20: Gap Between INDC Target and Average Low Carbon Scenario in Million Tons @ 2030 | H20: 0.9206564298 | T20: 2027 | U20: 153.9697824 | V20: 205.7817734 | W20: 171.4309012 | Z20: 51.81199101
B21: 1994 | F21: Cumulative Increase: BAU Scenario (2010-2030) MT (avg) | H21: 263.0142474 | N21: Low Carbon Scenario-Official | O21: 2020 | P21: 11.5 | T21: 2028 | U21: 150.5720956 | V21: 205.1861265 | W21: 168.5732295 | Z21: 54.6140309
B22: 1995 | C22: 11.99381 | D22: BUR | F22: Cumulative Increase: Low Carbon Scenario (2010-2030) MT (avg) | H22: 230.9775047 | O22: 2030 | P22: 10.1 | T22: 2029 | U22: 147.2493863 | V22: 204.5922037 | W22: 165.7631938 | Z22: 57.34281737
B23: 2000 | C23: 12.842 | D23: BUR | F23: Cumulative Reduction: BAU vs. Low Carbon Scenario (2010-2030) MT (avg) | H23: 32.0367427 | T23: 2030 | U23: 144 | V23: 204 | W23: 163 | Z23: 60
B24: 2005 | C24: 13.71442 | D24: BUR | F24: Cumulative Gap: Low Carbon Scenario vs. INDC Target (2010-2030) MT | H24: -4.81871126 | N24: Future (BAU) -Other studies | O24: 2020 | P24: 11.26526706 | W24: 4070.609773 | X24: 230.8742269
B25: 2010 | C25: 13.43049 | D25: BUR | J25: Figure 1: Projected Transport Emissions: BAU, Low Carbon Scenario, and Transport Target | O25: 2020 | P25: 13.3 | U25: 3839.735547 | V25: 4467.818081 | W25: 628.0825348
B26: 2011 | C26: 13.22803 | D26: NC
O27: 2020 | P27: 14.2 | Q27: -0.1377777778
J28: Figure 1: Projected Transport Emissions: BAU, Low Carbon Scenario, and Indicative Targe | O28: 2030 | P28: 10.76923077
O29: 2030 | P29: 10.4
O30: 2030 | P30: 12.3 | Q30: -1
O31: 2040 | P31: 12.3
O32: 2050 | P32: 9.230769231
O33: 2050 | P33: 12.4 | R33: Year | S33: % Increase
Q34: Total Country CO2e Emissions (BAU) | R34: 1990-2011 | S34: 0.08724827863
R35: 2011-2030 | S35: 0.05585556541
N36: Low Carbon Scenario (studies) | O36: 2020 | P36: 8.461538462 | Q36: Total Transport CO2e Emissions (BAU) | R36: 1990-2011 | S36: 0.04033467593
O37: 2020 | P37: 8.959349893 | R37: 2011-2030 | S37: -0.0921724842
O38: 2020 | P38: 12.5 | Q38: Transport Mitigation Potential (below BAU @ 2030) | S38: -0.2941176471 | T38: Decrease
O39: 2020 | P39: 11.4 | Q39: Transport Mitigation Potential (below INDC target) | S39: -0.1165644172
A40: Table 2: Mitigation Potential Studies | O40: 2030 | P40: 5.384615385
A41: Study Title | C41: Low carbon Finland | D41: EU:n 2030 -ilmasto- ja energiapaketin vaikutukset Suomen energiajärjestelmään ja kansantalouteen | E41: EU ENERGY, TRANSPORT AND GHG EMISSIONS TRENDS TO 2050 | O41: 2030 | P41: 7.1
A42: Quantification by Institute | C42: VTT | D42: VTT | E42: EUROPEAN COMMISSION Directorate-General for Energy, Directorate-General for Climate Action and Directorate-General for Mobility and Transport | O42: 2030 | P42: 10.99
A43: Methodology/Model Used | E43: Bottom-up (Sultan Model) | O43: 2050 | P43: 0.9230769231
A44: Base Year | C44: 2010 | D44: 2005 | E44: 2000
A45: Base Year CO2e Emissions (MT) | B45: Road
B46: Railways
B47: Waterways
B48: Aviation
B49: Passenger
B50: Freight
B51: Urban
B52: Total | C52: 13.84 | D52: 12.7 | E52: 12.9
A53: Forecast Year | C53: 2050 | D53: 2030 | E53: 2030
A54: Forecast CO2 Emissions (MT) BAU | B54: Road
B55: Railways
B56: Waterways
B57: Aviation
B58: Passenger
B59: Freight
B60: Urban
B61: Total | C61: 9.23 | D61: 10.4 | E61: 12.3
A62: Forecast Year | C62: 2050 | D62: 2030 | E62: 2030
A63: Forecast CO2 Emissions with Mitigation Measures (MT) | B63: Road
B64: Railways
B65: Waterways
B66: Aviation
B67: Passenger
B68: Freight
B69: Urban
B70: Total | C70: 0.923 | D70: 7.1 | E70: 10.99
A71: % Projected Increase (BAU) | C71: =C61/C52-1 -> -0.3330924855 | D71: =D61/D52-1 -> -0.1811023622 | E71: =E61/E52-1 -> -0.04651162791
A72: % Projected Decrease (With Mitigation Measures) | C72: =C70/C61-1 -> -0.9 | D72: =D70/D61-1 -> -0.3173076923 | E72: =E70/E61-1 -> -0.106504065
A73: Mitigation Measures | C73: Hybrid, FE standards, decarbonizing fuel | D73: electrification of transport sector, Biofuels, fleet renewal, renewable energy in transport, emission trading scheme
A79: TIER I FACTSHEET SOURCES
A81: Table 1: Historic and Projected Emissions
A82: Historic Emissions | B82: Submitted National Communications | C82: http://unfccc.int/national_reports/non-annex_i_natcom/submitted_natcom/items/653.php
B83: UNFCCC: INDCs as communicated by Parties | C83: http://www4.unfccc.int/submissions/indc/Submission%20Pages/submissions.aspx
B84: Submitted Biennial Update Reports | C84: http://unfccc.int/national_reports/non-annex_i_natcom/reporting_on_climate_change/items/8722.php
B85: The Climate Pledge INDC Tool | C85: http://infographics.pbl.nl/indc/
B86: CAIT Climate Data Explorer | C86: http://cait.wri.org/
B87: Climate Equity Reference Calculator | C87: http://gdrights.org/calculator-about/
B88: World Bank - World Development Indicators | C88: http://data.worldbank.org/data-catalog/world-development-indicators
B89: UNEP Pledge Pipeline Tool | C89: http://www.unep.org/climatechange/pledgepipeline/
B90: Climate Action Tracker | C90: http://climateactiontracker.org/
A91: BAU Emissions Projections | B91: Submitted National Communications | C91: http://unfccc.int/national_reports/non-annex_i_natcom/submitted_natcom/items/653.php
B92: UNFCCC: INDCs as communicated by Parties | C92: http://www4.unfccc.int/submissions/indc/Submission%20Pages/submissions.aspx
B93: Submitted Biennial Update Reports | C93: http://unfccc.int/national_reports/non-annex_i_natcom/reporting_on_climate_change/items/8722.php
B94: The Climate Pledge INDC Tool | C94: http://infographics.pbl.nl/indc/
B95: Climate Equity Reference Calculator | C95: http://gdrights.org/calculator-about/
B96: World Bank - World Development Indicators | C96: http://data.worldbank.org/data-catalog/world-development-indicators
B97: UNEP Pledge Pipeline Tool | C97: http://www.unep.org/climatechange/pledgepipeline/
B98: Climate Action Tracker | C98: http://climateactiontracker.org/
A99: INDC Targets | B99: UNFCCC: INDCs as communicated by Parties | C99: http://www4.unfccc.int/submissions/indc/Submission%20Pages/submissions.aspx
A101: Table 2: Mitigation Potential Studies
A102: Low Carbon Emission Projections | B102: SLoCaT Overview of Mitigation Potential Studies | C102: http://www.slocat.net/docs/1519
B103: Submitted National Communications | C103: http://unfccc.int/national_reports/annex_i_natcom/submitted_natcom/items/7742.php
A104: BAU Emissions Projections | B104: Submitted Biennial Reports | C104: http://unfccc.int/national_reports/biennial_reports_and_iar/submitted_biennial_reports/items/7550.php
B105: UNFCCC: INDCs as communicated by Parties | C105: http://www4.unfccc.int/submissions/indc/Submission%20Pages/submissions.aspx
A107: Table 3: Comparison of BAU/Low Carbon Scenarios and INDC Target
A108: Historic Emissions | B108: Submitted National Communications | C108: http://unfccc.int/national_reports/non-annex_i_natcom/submitted_natcom/items/653.php
B109: UNFCCC: INDCs as communicated by Parties | C109: http://www4.unfccc.int/submissions/indc/Submission%20Pages/submissions.aspx
B110: Submitted Biennial Update Reports | C110: http://unfccc.int/national_reports/non-annex_i_natcom/reporting_on_climate_change/items/8722.php
B111: The Climate Pledge INDC Tool | C111: http://infographics.pbl.nl/indc/
B112: CAIT Climate Data Explorer | C112: http://cait.wri.org/
B113: Climate Equity Reference Calculator | C113: http://gdrights.org/calculator-about/
B114: World Bank - World Development Indicators | C114: http://data.worldbank.org/data-catalog/world-development-indicators
B115: UNEP Pledge Pipeline Tool | C115: http://www.unep.org/climatechange/pledgepipeline/
B116: Climate Action Tracker | C116: http://climateactiontracker.org/
A117: BAU Emissions Projections | B117: Submitted National Communications | C117: http://unfccc.int/national_reports/non-annex_i_natcom/submitted_natcom/items/653.php
B118: UNFCCC: INDCs as communicated by Parties | C118: http://www4.unfccc.int/submissions/indc/Submission%20Pages/submissions.aspx
B119: Submitted Biennial Update Reports | C119: http://unfccc.int/national_reports/non-annex_i_natcom/reporting_on_climate_change/items/8722.php
B120: The Climate Pledge INDC Tool | C120: http://infographics.pbl.nl/indc/
B121: Climate Equity Reference Calculator | C121: http://gdrights.org/calculator-about/
B122: World Bank - World Development Indicators | C122: http://data.worldbank.org/data-catalog/world-development-indicators
B123: UNEP Pledge Pipeline Tool | C123: http://www.unep.org/climatechange/pledgepipeline/
B124: Climate Action Tracker | C124: http://climateactiontracker.org/
A125: Low Carbon Emission Projections | B125: SLoCaT Overview of Mitigation Potential Studies | C125: http://www.slocat.net/docs/1519
A126: INDC Targets | B126: UNFCCC: INDCs as communicated by Parties | C126: http://www4.unfccc.int/submissions/indc/Submission%20Pages/submissions.aspx
A128: Figure 1: Projected Transport Emissions: BAU, Low Carbon Scenario, and Indicative Target
A129: Derived from Table 3: Comparison of BAU/Low Carbon Scenarios and INDC Target

Sheet France
U1: -2.435018982 | V1: -0.7495472463 | W1: -1.66695253
A2: Table 1: Historic and Projected Emissions | U2: -2.206723146 | V2: -0.2894556358
A3: Country | C3: France | F3: Table 3: Comparison of BAU/Low Carbon Scenarios and INDC Target | T3: 2010 | U3: 228.138 | V3: 228.138 | W3: 228.138 | Z3: 0
A4: Economy-Wide CO2e Emissions Target | B4: National Communication | C4: A four-fold cut in emissions by 2050 from 2005. Transport sector emissions down to their 1990 level by 2020 | F4: Transport CO2 Summary | H4: MT | T4: 2011 | U4: 224.71229 | V4: 224.71229 | W4: 224.3350478 | Z4: 0
B5: BUR | F5: Transport CO2 (MT)- (avg baseline) | G5: 1990 | H5: 122.15311 | T5: 2012 | U5: 219.2405031 | V5: 223.0279652 | W5: 220.5954891 | Z5: 3.787462134
B6: Other National Document/Pledge | G6: 2000 | H6: 141.15959 | T6: 2013 | U6: 213.9019552 | V6: 221.3562652 | W6: 216.918267 | Z6: 7.454310028
B7: INDC Unconditional Reduction | C7: 40% reduction in 2030 compared to 1990 | G7: 2010 | H7: 133.83187 | T7: 2014 | U7: 208.693402 | V7: 219.6970955 | W7: 213.3023425 | Z7: 11.00369345
B8: INDC Conditional Reduction | G8: 2011 | H8: 133.66241 | P8: CO2e Emissions (MT) | T8: 2015 | U8: 203.6116781 | V8: 218.0503619 | W8: 209.7466937 | Z8: 14.43868387
B9: INDC - Any other target mentioned | E9: ` | G9: 2020 | H9: 132.2 | O9: 1990 | P9: 122.15311 | T9: 2016 | U9: 198.653695 | V9: 216.4159714 | W9: 206.2503158 | Z9: 17.7622764
B10: INDC - Long Term Target | G10: 2030 | H10: 125.8 | O10: 1994 | T10: 2017 | U10: 193.8164399 | V10: 214.7938315 | W10: 202.812221 | Z10: 20.97739163
A11: 2030 Economy-Wide CO2e Emissions Target (MT) | C11: 335.796 | G11: 2050 | H11: 126 | O11: 1995 | P11: 132.46377 | T11: 2018 | U11: 189.0969728 | V11: 213.1838502 | W11: 199.4314375 | Z11: 24.08687748
A12: Derived 2030 Transport CO2 Emissions Target ( based on share of total emissions @ 2010) | C12: 91.15224409 | F12: Low Carbon Transport(MT) (avg low carbon baseline) | G12: 2020 | H12: 119 | O12: 2000 | P12: 141.15959 | T12: 2019 | U12: 184.4924256 | V12: 211.5859366 | W12: 196.1070101 | Z12: 27.09351098
G13: 2030 | H13: 112 | O13: 2005 | P13: 143.07773 | T13: 2020 | U13: 180 | V13: 210 | W13: 192.8379994 | Z13: 30
G14: 2050 | H14: 36.75 | O14: 2010 | P14: 133.83187 | T14: 2021 | U14: 176.0278983 | V14: 209.3921432 | W14: 189.6234815 | Z14: 33.36424483
A15: OFFICIAL and IEA ESTIMATES | B15: Base Year | C15: CO2e Emissions (MT) | D15: Source | F15: Average Reduction of Low Carbon estimate with BAU (%) | G15: 2030 | H15: -11 | O15: 2011 | P15: 133.66241 | T15: 2022 | U15: 172.14345 | V15: 208.7860458 | W15: 186.462548 | Z15: 36.64259584
A16: Economy-Wide CO2e Emissions : Historical | B16: 1990 | C16: 559.66 | D16: BUR | O16: 2012 | P16: 132.55 | T16: 2023 | U16: 168.3447206 | V16: 208.1817028 | W16: 183.3543059 | Z16: 39.83698222
B17: 2011 | C17: 493.02359 | D17: NC | N17: Future (BAU) -Official | T17: 2024 | U17: 164.6298187 | V17: 207.5791092 | W17: 180.2978766 | Z17: 42.94929046
A18: Economy-Wide CO2e Emissions : Projections | B18: 2020 | C18: 688.79 | D18: BUR | F18: Gap Between INDC Target and Average Low Carbon Scenario (%) | G18: Average | H18: 0.2287135782 | O18: 2020 | T18: 2025 | U18: 160.9968944 | V18: 206.9782597 | W18: 177.2923966 | Z18: 45.98136535
B19: 2030 | F19: Transport CO2 Target (MT) | G19: INDC | H19: 91.15224409 | O19: 2030 | T19: 2026 | U19: 157.4441386 | V19: 206.3791495 | W19: 174.3370165 | Z19: 48.93501084
A20: Transport Sector : Historic CO2e Emissions | B20: 1990 | C20: 122.15311 | D20: BUR | F20: Gap Between INDC Target and Average Low Carbon Scenario in Million Tons @ 2030 | H20: 20.84775591 | O20: 2020 | T20: 2027 | U20: 153.9697824 | V20: 205.7817734 | W20: 171.4309012 | Z20: 51.81199101
B21: 1994 | F21: Cumulative Increase: BAU Scenario (2010-2030) MT (avg) | H21: 2749.670006 | N21: Low Carbon Scenario-Official | O21: 2020 | T21: 2028 | U21: 150.5720956 | V21: 205.1861265 | W21: 168.5732295 | Z21: 54.6140309
B22: 1995 | C22: 132.46377 | D22: BUR | F22: Cumulative Increase: Low Carbon Scenario (2010-2030) MT (avg) | H22: 2547.032136 | O22: 2030 | T22: 2029 | U22: 147.2493863 | V22: 204.5922037 | W22: 165.7631938 | Z22: 57.34281737
B23: 2000 | C23: 141.15959 | D23: BUR | F23: Cumulative Reduction: BAU vs. Low Carbon Scenario (2010-2030) MT (avg) | H23: 202.6378704 | T23: 2030 | U23: 144 | V23: 204 | W23: 163 | Z23: 60
B24: 2005 | C24: 143.07773 | D24: BUR | F24: Cumulative Gap: Low Carbon Scenario vs. INDC Target (2010-2030) MT | H24: -211.8824634 | N24: Future (BAU) -Other studies | O24: 2020 | P24: 132.2 | W24: 4070.609773 | X24: 230.8742269
B25: 2010 | C25: 133.83187 | D25: BUR | J25: Figure 1: Projected Transport Emissions: BAU, Low Carbon Scenario, and Transport Target | O25: 2030 | P25: 125.8 | U25: 3839.735547 | V25: 4467.818081 | W25: 628.0825348
B26: 2011 | C26: 133.66241 | D26: BUR | O26: 2040 | P26: 125.8
O27: 2050 | P27: 126 | Q27: -0.1377777778
J28: Figure 1: Projected Transport Emissions: BAU, Low Carbon Scenario, and Indicative Targe | O28: 2040 | P28: 179.16
O29: 2030 | P29: 117
O30: 2040 | P30: 148.26 | Q30: -1
R33: Year | S33: % Increase
Q34: Total Country CO2e Emissions (BAU) | R34: 1990-2011 | S34: 0.08724827863
R35: 2011-2030 | S35: 0.05585556541
N36: Low Carbon Scenario (studies) | O36: 2020 | P36: 119 | Q36: Total Transport CO2e Emissions (BAU) | R36: 1990-2011 | S36: 0.04033467593
O37: 2030 | P37: 108.75 | R37: 2011-2030 | S37: -0.0921724842
O38: 2030 | P38: 115 | Q38: Transport Mitigation Potential (below BAU @ 2030) | S38: -0.2941176471 | T38: Decrease
O39: 2040 | P39: 75 | Q39: Transport Mitigation Potential (below INDC target) | S39: -0.1165644172
A40: Table 2: Mitigation Potential Studies | O40: 2050 | P40: 21
A41: Study Title | C41: Deep Decarbonization | D41: Pathways 2020-2050 | E41: Markal-Times assessment of long term CO2 emissions targets for France | F41: EU ENERGY, TRANSPORT AND GHG EMISSIONS TRENDS TO 2050 | O41: 2050 | P41: 41
A42: Quantification by Institute | C42: Sustainable Development Solutions Network (SDSN) and Institute for Sustainable Development and International Relations (IDDRI), | D42: Centre d’analyse stratégique | E42: Centre for Applied Mathematics Ecole des Mines de Paris - ParisTech | F42: EUROPEAN COMMISSION Directorate-General for Energy, Directorate-General for Climate Action and Directorate-General for Mobility and Transport | O42: 2050 | P42: 40
A43: Methodology/Model Used | C43: Bottom-up | D43: Bottom-up | E43: Bottom-up | F43: Bottom-up (Sultan Model) | O43: 2050 | P43: 45
A44: Base Year | C44: 2010 | D44: 2005 | E44: 2010 | F44: 2000 | O44: 2040 | P44: 118.98
A45: Base Year CO2e Emissions (MT) | B45: Road | O45: 2040 | P45: 116.81
B46: Railways
B47: Waterways
B48: Aviation
B49: Passenger
B50: Freight
B51: Urban
B52: Total | C52: 138 | D52: 144 | E52: 133 | F52: 149
A53: Forecast Year | C53: 2050 | D53: 2050 | E53: 2050 | F53: 2030
A54: Forecast CO2 Emissions (MT) BAU | B54: Road
B55: Railways
B56: Waterways
B57: Aviation
B58: Passenger
B59: Freight
B60: Urban
B61: Total | F61: 125.8
A62: Forecast Year | C62: 2050 | D62: 2050 | E62: 2050 | F62: 2030
A63: Forecast CO2 Emissions with Mitigation Measures (MT) | B63: Road
B64: Railways
B65: Waterways
B66: Aviation
B67: Passenger
B68: Freight
B69: Urban
B70: Total | C70: 21 | D70: 41 | E70: 45 | F70: 108.75
A71: % Projected Increase (BAU) | C71: -1 | D71: -1 | E71: -1 | F71: -0.155704698
A72: % Projected Decrease (With Mitigation Measures) | F72: -0.1355325914
A73: Mitigation Measures | C73: limitation of urban sprawling, combined with the development of new services for the reduction of mobility (remote working) and the deployment of a functionality economy (car sharing systems), which decrease the global demand for mobility particularly at local level. In parallel, a 30% increase of the modal share of collective transport and soft modes alternatives (bicycles) is permitted by organizational measures and infrastructure deployment for urban and local mobility | D73: urban mobility for which the three priority levers seem to be i) a transfer toward soft modes of mobility, ii) an improvement in public transport and iii) vehicles' electrification; − long-distance mobility for which the extension of the train high-speed network must be combined with an improved performance in road vehicles and aircraft and the use of advanced biofuels; − transport of goods, with road transportation which has made the greatest highest contribution to the growth of emissions over the past 20 years, and for which efforts to increase the market shares for alternative modes must be combined with improved performances in road vehicles. | F73: Fuel Economy Standards for LDV and HDV
A79: TIER I FACTSHEET SOURCES
A81: Table 1: Historic and Projected Emissions
A82: Historic Emissions | B82: Submitted National Communications | C82: http://unfccc.int/national_reports/non-annex_i_natcom/submitted_natcom/items/653.php
B83: UNFCCC: INDCs as communicated by Parties | C83: http://www4.unfccc.int/submissions/indc/Submission%20Pages/submissions.aspx
B84: Submitted Biennial Update Reports | C84: http://unfccc.int/national_reports/non-annex_i_natcom/reporting_on_climate_change/items/8722.php
B85: The Climate Pledge INDC Tool | C85: http://infographics.pbl.nl/indc/
B86: CAIT Climate Data Explorer | C86: http://cait.wri.org/
B87: Climate Equity Reference Calculator | C87: http://gdrights.org/calculator-about/
B88: World Bank - World Development Indicators | C88: http://data.worldbank.org/data-catalog/world-development-indicators
B89: UNEP Pledge Pipeline Tool | C89: http://www.unep.org/climatechange/pledgepipeline/
B90: Climate Action Tracker | C90: http://climateactiontracker.org/
A91: BAU Emissions Projections | B91: Submitted National Communications | C91: http://unfccc.int/national_reports/non-annex_i_natcom/submitted_natcom/items/653.php
B92: UNFCCC: INDCs as communicated by Parties | C92: http://www4.unfccc.int/submissions/indc/Submission%20Pages/submissions.aspx
B93: Submitted Biennial Update Reports | C93: http://unfccc.int/national_reports/non-annex_i_natcom/reporting_on_climate_change/items/8722.php
B94: The Climate Pledge INDC Tool | C94: http://infographics.pbl.nl/indc/
B95: Climate Equity Reference Calculator | C95: http://gdrights.org/calculator-about/
B96: World Bank - World Development Indicators | C96: http://data.worldbank.org/data-catalog/world-development-indicators
B97: UNEP Pledge Pipeline Tool | C97: http://www.unep.org/climatechange/pledgepipeline/
B98: Climate Action Tracker | C98: http://climateactiontracker.org/
A99: INDC Targets | B99: UNFCCC: INDCs as communicated by Parties | C99: http://www4.unfccc.int/submissions/indc/Submission%20Pages/submissions.aspx
A101: Table 2: Mitigation Potential Studies
A102: Low Carbon Emission Projections | B102: SLoCaT Overview of Mitigation Potential Studies | C102: http://www.slocat.net/docs/1519
B103: Submitted National Communications | C103: http://unfccc.int/national_reports/annex_i_natcom/submitted_natcom/items/7742.php
A104: BAU Emissions Projections | B104: Submitted Biennial Reports | C104: http://unfccc.int/national_reports/biennial_reports_and_iar/submitted_biennial_reports/items/7550.php
B105: UNFCCC: INDCs as communicated by Parties | C105: http://www4.unfccc.int/submissions/indc/Submission%20Pages/submissions.aspx
A107: Table 3: Comparison of BAU/Low Carbon Scenarios and INDC Target
A108: Historic Emissions | B108: Submitted National Communications | C108: http://unfccc.int/national_reports/non-annex_i_natcom/submitted_natcom/items/653.php
B109: UNFCCC: INDCs as communicated by Parties | C109: http://www4.unfccc.int/submissions/indc/Submission%20Pages/submissions.aspx
B110: Submitted Biennial Update Reports | C110: http://unfccc.int/national_reports/non-annex_i_natcom/reporting_on_climate_change/items/8722.php
B111: The Climate Pledge INDC Tool | C111: http://infographics.pbl.nl/indc/
B112: CAIT Climate Data Explorer | C112: http://cait.wri.org/
B113: Climate Equity Reference Calculator | C113: http://gdrights.org/calculator-about/
B114: World Bank - World Development Indicators | C114: http://data.worldbank.org/data-catalog/world-development-indicators
B115: UNEP Pledge Pipeline Tool | C115: http://www.unep.org/climatechange/pledgepipeline/
B116: Climate Action Tracker | C116: http://climateactiontracker.org/
A117: BAU Emissions Projections | B117: Submitted National Communications | C117: http://unfccc.int/national_reports/non-annex_i_natcom/submitted_natcom/items/653.php
B118: UNFCCC: INDCs as communicated by Parties | C118: http://www4.unfccc.int/submissions/indc/Submission%20Pages/submissions.aspx
B119: Submitted Biennial Update Reports | C119: http://unfccc.int/national_reports/non-annex_i_natcom/reporting_on_climate_change/items/8722.php
B120: The Climate Pledge INDC Tool | C120: http://infographics.pbl.nl/indc/
B121: Climate Equity Reference Calculator | C121: http://gdrights.org/calculator-about/
B122: World Bank - World Development Indicators | C122: http://data.worldbank.org/data-catalog/world-development-indicators
B123: UNEP Pledge Pipeline Tool | C123: http://www.unep.org/climatechange/pledgepipeline/
B124: Climate Action Tracker | C124: http://climateactiontracker.org/
A125: Low Carbon Emission Projections | B125: SLoCaT Overview of Mitigation Potential Studies | C125: http://www.slocat.net/docs/1519
A126: INDC Targets | B126: UNFCCC: INDCs as communicated by Parties | C126: http://www4.unfccc.int/submissions/indc/Submission%20Pages/submissions.aspx
A128: Figure 1: Projected Transport Emissions: BAU, Low Carbon Scenario, and Indicative Target
A129: Derived from Table 3: Comparison of BAU/Low Carbon Scenarios and INDC Target

Sheet Germany
U1: -2.435018982 | V1: -0.7495472463 | W1: -1.66695253
A2: Table 1: Historic and Projected Emissions | U2: -2.206723146 | V2: -0.2894556358
A3: Country | C3: Germany | F3: Table 3: Comparison of BAU/Low Carbon Scenarios and INDC Target | T3: 2010 | U3: 228.138 | V3: 228.138 | W3: 228.138 | Z3: 0
A4: Economy-Wide CO2e Emissions Target | B4: National Communication | C4: 40 percent by 2020, 55 percent by 2030, 70 percent by 2040 and 80 to 95 percentby 2050. | F4: Transport CO2 Summary | H4: MT | T4: 2011 | U4: 224.71229 | V4: 224.71229 | W4: 224.3350478 | Z4: 0
B5: BUR | C5: 40% of 1990 by 2020 | F5: Transport CO2 (MT)- (avg baseline) | G5: 1990 | H5: 164.72219 | T5: 2012 | U5: 219.2405031 | V5: 223.0279652 | W5: 220.5954891 | Z5: 3.787462134
B6: Other National Document/Pledge | G6: 2000 | H6: 183.03649 | T6: 2013 | U6: 213.9019552 | V6: 221.3562652 | W6: 216.918267 | Z6: 7.454310028
B7: INDC Unconditional Reduction | C7: 40% reduction in 2030 compared to 1990 | G7: 2010 | H7: 154.95427 | T7: 2014 | U7: 208.693402 | V7: 219.6970955 | W7: 213.3023425 | Z7: 11.00369345
B8: INDC Conditional Reduction | G8: 2011 | H8: 157.17771 | P8: CO2e Emissions (MT) | T8: 2015 | U8: 203.6116781 | V8: 218.0503619 | W8: 209.7466937 | Z8: 14.43868387
B9: INDC - Any other target mentioned | E9: ` | G9: 2020 | H9: 195.85 | O9: 1990 | P9: 164.72219 | T9: 2016 | U9: 198.653695 | V9: 216.4159714 | W9: 206.2503158 | Z9: 17.7622764
B10: INDC - Long Term Target | G10: 2030 | H10: 185.59 | O10: 1994 | T10: 2017 | U10: 193.8164399 | V10: 214.7938315 | W10: 202.812221 | Z10: 20.97739163
A11: 2030 Economy-Wide CO2e Emissions Target (MT) | C11: 751.2 | G11: 2050 | H11: 124.1 | O11: 1995 | P11: 178.14501 | T11: 2018 | U11: 189.0969728 | V11: 213.1838502 | W11: 199.4314375 | Z11: 24.08687748
A12: Derived 2030 Transport CO2 Emissions Target ( based on share of total emissions @ 2010) | C12: 127.0073895 | F12: Low Carbon Transport(MT) (avg low carbon baseline) | G12: 2020 | H12: 142.5 | O12: 2000 | P12: 183.03649 | T12: 2019 | U12: 184.4924256 | V12: 211.5859366 | W12: 196.1070101 | Z12: 27.09351098
G13: 2030 | H13: 119 | O13: 2005 | P13: 161.75691 | T13: 2020 | U13: 180 | V13: 210 | W13: 192.8379994 | Z13: 30
G14: 2050 | H14: 55 | O14: 2010 | P14: 154.95427 | T14: 2021 | U14: 176.0278983 | V14: 209.3921432 | W14: 189.6234815 | Z14: 33.36424483
A15: OFFICIAL and IEA ESTIMATES | B15: Base Year | C15: CO2e Emissions (MT) | D15: Source | F15: Average Reduction of Low Carbon estimate with BAU (%) | G15: 2030 | H15: -36 | O15: 2011 | P15: 157.17771 | T15: 2022 | U15: 172.14345 | V15: 208.7860458 | W15: 186.462548 | Z15: 36.64259584
A16: Economy-Wide CO2e Emissions : Historical | B16: 1990 | C16: 1252 | D16: BUR | T16: 2023 | U16: 168.3447206 | V16: 208.1817028 | W16: 183.3543059 | Z16: 39.83698222
B17: 2011 | C17: 916.49508 | D17: NC | N17: Future (BAU) -Official | T17: 2024 | U17: 164.6298187 | V17: 207.5791092 | W17: 180.2978766 | Z17: 42.94929046
A18: Economy-Wide CO2e Emissions : Projections | B18: 2020 | C18: 837 | D18: BUR | F18: Gap Between INDC Target and Average Low Carbon Scenario (%) | G18: Average | H18: -0.06304664284 | O18: 2020 | P18: 190 | T18: 2025 | U18: 160.9968944 | V18: 206.9782597 | W18: 177.2923966 | Z18: 45.98136535
B19: 2030 | C19: 718 | D19: BUR | F19: Transport CO2 Target (MT) | G19: INDC | H19: 127.0073895 | O19: 2030 | P19: 161.76 | T19: 2026 | U19: 157.4441386 | V19: 206.3791495 | W19: 174.3370165 | Z19: 48.93501084
A20: Transport Sector : Historic CO2e Emissions | B20: 1990 | C20: 164.72219 | D20: BUR | F20: Gap Between INDC Target and Average Low Carbon Scenario in Million Tons @ 2030 | H20: -8.007389526 | T20: 2027 | U20: 153.9697824 | V20: 205.7817734 | W20: 171.4309012 | Z20: 51.81199101
B21: 1994 | F21: Cumulative Increase: BAU Scenario (2010-2030) MT (avg) | H21: 3815.411165 | N21: Low Carbon Scenario-Official | O21: 2020 | P21: 146.56 | T21: 2028 | U21: 150.5720956 | V21: 205.1861265 | W21: 168.5732295 | Z21: 54.6140309
B22: 1995 | C22: 178.14501 | D22: BUR | F22: Cumulative Increase: Low Carbon Scenario (2010-2030) MT (avg) | H22: 2944.535041 | O22: 2025 | P22: 137.66 | T22: 2029 | U22: 147.2493863 | V22: 204.5922037 | W22: 165.7631938 | Z22: 57.34281737
B23: 2000 | C23: 183.03649 | D23: BUR | F23: Cumulative Reduction: BAU vs. Low Carbon Scenario (2010-2030) MT (avg) | H23: 870.8761242 | O23: 2030 | P23: 130.46 | T23: 2030 | U23: 144 | V23: 204 | W23: 163 | Z23: 60
B24: 2005 | C24: 161.75691 | D24: BUR | F24: Cumulative Gap: Low Carbon Scenario vs. INDC Target (2010-2030) MT | H24: 6.827963109 | N24: Future (BAU) -Other studies | O24: 2020 | P24: 154.4 | W24: 4070.609773 | X24: 230.8742269
B25: 2010 | C25: 154.95427 | D25: BUR | J25: Figure 1: Projected Transport Emissions: BAU, Low Carbon Scenario, and Transport Target | O25: 2020 | P25: 237 | U25: 3839.735547 | V25: 4467.818081 | W25: 628.0825348
B26: 2011 | C26: 157.17771 | D26: BUR | O26: 2020 | P26: 202
O27: 2030 | P27: 136.6 | Q27: -0.1377777778
J28: Figure 1: Projected Transport Emissions: BAU, Low Carbon Scenario, and Indicative Targe | O28: 2030 | P28: 241
O29: 2030 | P29: 203
O30: 2040 | P30: 127.2 | Q30: -1
O31: 2050 | P31: 124.1
R33: Year | S33: % Increase
Q34: Total Country CO2e Emissions (BAU) | R34: 1990-2011 | S34: 0.08724827863
R35: 2011-2030 | S35: 0.05585556541
N36: Low Carbon Scenario (studies) | O36: 2020 | P36: 177 | Q36: Total Transport CO2e Emissions (BAU) | R36: 1990-2011 | S36: 0.04033467593
O37: 2020 | P37: 115 | R37: 2011-2030 | S37: -0.0921724842
O38: 2020 | P38: 134 | Q38: Transport Mitigation Potential (below BAU @ 2030) | S38: -0.2941176471 | T38: Decrease
O39: 2020 | P39: 140 | Q39: Transport Mitigation Potential (below INDC target) | S39: -0.1165644172
A40: Table 2: Mitigation Potential Studies | O40: 2030 | P40: 115.95
A41: Study Title | C41: EU ENERGY, TRANSPORT AND GHG EMISSIONS TRENDS TO 2050 | D41: Deep Decarbonization | E41: CO2 Emissions Reduction in the Transport Sector in Germany | F41: The ITREN-2030 | O41: 2030 | P41: 161
A42: Quantification by Institute | C42: EUROPEAN COMMISSION Directorate-General for Energy, Directorate-General for Climate Action and Directorate-General for Mobility and Transport | D42: Sustainable Development Solutions Network (SDSN) and Institute for Sustainable Development and International Relations (IDDRI), | E42: Federal Environment Agency (Umweltbundesamt) | F42: Fraunhofer ISI | O42: 2030 | P42: 100
A43: Methodology/Model Used | C43: Bottom-up (Sultan Model) | D43: Bottom-up | E43: Bottom-up | F43: Bottom-up | O43: 2030 | P43: 100
A44: Base Year | C44: 2000 | D44: 2010 | E44: 2005 | F44: 2005 | O44: 2050 | P44: 55
A45: Base Year CO2e Emissions (MT) | B45: Road
B46: Railways
B47: Waterways
B48: Aviation
B49: Passenger
B50: Freight
B51: Urban
B52: Total | C52: 187.4 | D52: 172 | E52: 189 | F52: 223
A53: Forecast Year | C53: 2030 | D53: 2050 | E53: 2030 | F53: 2030
A54: Forecast CO2 Emissions (MT) BAU | B54: Road
B55: Railways
B56: Waterways
B57: Aviation
B58: Passenger
B59: Freight
B60: Urban
B61: Total | C61: 136.6 | E61: 203 | F61: 241
A62: Forecast Year | C62: 2030 | D62: 2050 | E62: 2030 | F62: 2030
A63: Forecast CO2 Emissions with Mitigation Measures (MT) | B63: Road
B64: Railways
B65: Waterways
B66: Aviation
B67: Passenger
B68: Freight
B69: Urban
B70: Total | C70: 115.95 | D70: 55 | E70: 100 | F70: 161
A71: % Projected Increase (BAU) | C71: -0.2710779082 | D71: -1 | E71: 0.07407407407 | F71: 0.08071748879
A72: % Projected Decrease (With Mitigation Measures) | C72: -0.1511713031 | E72: -0.5073891626 | F72: -0.3319502075
A73: Mitigation Measures | C73: Fuel Economy Standards for LDV and HDV | D73: The personal vehicle fleet will see large efficiency gains across all vehicle types, an increase in the use electric and hydrogen-fueled vehicles and a partial modal shift. The increased use of electric vehicles, biofuels, and hydrogen also leads to a significant decrease in carbon intensity of fuels. For freight transport, energy demand is expected to increase slightly between 2010 and 2030 before decreasing to 2010 levels by 2050. Given that GDP almost doubles over this period, this represents a significant decoupling of freight transport and economic activity, which is possible though improved truck efficiency and a reorganization of the production and distribution processes. In addition, hydrogen-fueled trucks enter the market and electricity-fueled trains increase in use, all of which contribute to the decarbonization of freight transport. Also note that biofuels become important for (passenger and freight) air transport, meeting 35% of energy demand for this mode in 2050. | E73: • Traffic-reducing through town planning and transport planning • Promoting environmentally friendly transport modes • Economic measures • Measures to improve vehicle and fleet efficiency • Consumer information and driving behaviour in road traffic
A79: TIER I FACTSHEET SOURCES
A81: Table 1: Historic and Projected Emissions
A82: Historic Emissions | B82: Submitted National Communications | C82: http://unfccc.int/national_reports/non-annex_i_natcom/submitted_natcom/items/653.php
B83: UNFCCC: INDCs as communicated by Parties | C83: http://www4.unfccc.int/submissions/indc/Submission%20Pages/submissions.aspx
B84: Submitted Biennial Update Reports | C84: http://unfccc.int/national_reports/non-annex_i_natcom/reporting_on_climate_change/items/8722.php
B85: The Climate Pledge INDC Tool | C85: http://infographics.pbl.nl/indc/
B86: CAIT Climate Data Explorer | C86: http://cait.wri.org/
B87: Climate Equity Reference Calculator | C87: http://gdrights.org/calculator-about/
B88: World Bank - World Development Indicators | C88: http://data.worldbank.org/data-catalog/world-development-indicators
B89: UNEP Pledge Pipeline Tool | C89: http://www.unep.org/climatechange/pledgepipeline/
B90: Climate Action Tracker | C90: http://climateactiontracker.org/
A91: BAU Emissions Projections | B91: Submitted National Communications | C91: http://unfccc.int/national_reports/non-annex_i_natcom/submitted_natcom/items/653.php
B92: UNFCCC: INDCs as communicated by Parties | C92: http://www4.unfccc.int/submissions/indc/Submission%20Pages/submissions.aspx
B93: Submitted Biennial Update Reports | C93: http://unfccc.int/national_reports/non-annex_i_natcom/reporting_on_climate_change/items/8722.php
B94: The Climate Pledge INDC Tool | C94: http://infographics.pbl.nl/indc/
B95: Climate Equity Reference Calculator | C95: http://gdrights.org/calculator-about/
B96: World Bank - World Development Indicators | C96: http://data.worldbank.org/data-catalog/world-development-indicators
B97: UNEP Pledge Pipeline Tool | C97: http://www.unep.org/climatechange/pledgepipeline/
B98: Climate Action Tracker | C98: http://climateactiontracker.org/
A99: INDC Targets | B99: UNFCCC: INDCs as communicated by Parties | C99: http://www4.unfccc.int/submissions/indc/Submission%20Pages/submissions.aspx
A101: Table 2: Mitigation Potential Studies
A102: Low Carbon Emission Projections | B102: SLoCaT Overview of Mitigation Potential Studies | C102: http://www.slocat.net/docs/1519
B103: Submitted National Communications | C103: http://unfccc.int/national_reports/annex_i_natcom/submitted_natcom/items/7742.php
A104: BAU Emissions Projections | B104: Submitted Biennial Reports | C104: http://unfccc.int/national_reports/biennial_reports_and_iar/submitted_biennial_reports/items/7550.php
B105: UNFCCC: INDCs as communicated by Parties | C105: http://www4.unfccc.int/submissions/indc/Submission%20Pages/submissions.aspx
A107: Table 3: Comparison of BAU/Low Carbon Scenarios and INDC Target
A108: Historic Emissions | B108: Submitted National Communications | C108: http://unfccc.int/national_reports/non-annex_i_natcom/submitted_natcom/items/653.php
B109: UNFCCC: INDCs as communicated by Parties | C109: http://www4.unfccc.int/submissions/indc/Submission%20Pages/submissions.aspx
B110: Submitted Biennial Update Reports | C110: http://unfccc.int/national_reports/non-annex_i_natcom/reporting_on_climate_change/items/8722.php
B111: The Climate Pledge INDC Tool | C111: http://infographics.pbl.nl/indc/
B112: CAIT Climate Data Explorer | C112: http://cait.wri.org/
B113: Climate Equity Reference Calculator | C113: http://gdrights.org/calculator-about/
B114: World Bank - World Development Indicators | C114: http://data.worldbank.org/data-catalog/world-development-indicators
B115: UNEP Pledge Pipeline Tool | C115: http://www.unep.org/climatechange/pledgepipeline/
B116: Climate Action Tracker | C116: http://climateactiontracker.org/
A117: BAU Emissions Projections | B117: Submitted National Communications | C117: http://unfccc.int/national_reports/non-annex_i_natcom/submitted_natcom/items/653.php
B118: UNFCCC: INDCs as communicated by Parties | C118: http://www4.unfccc.int/submissions/indc/Submission%20Pages/submissions.aspx
B119: Submitted Biennial Update Reports | C119: http://unfccc.int/national_reports/non-annex_i_natcom/reporting_on_climate_change/items/8722.php
B120: The Climate Pledge INDC Tool | C120: http://infographics.pbl.nl/indc/
B121: Climate Equity Reference Calculator | C121: http://gdrights.org/calculator-about/
B122: World Bank - World Development Indicators | C122: http://data.worldbank.org/data-catalog/world-development-indicators
B123: UNEP Pledge Pipeline Tool | C123: http://www.unep.org/climatechange/pledgepipeline/
B124: Climate Action Tracker | C124: http://climateactiontracker.org/
A125: Low Carbon Emission Projections | B125: SLoCaT Overview of Mitigation Potential Studies | C125: http://www.slocat.net/docs/1519
A126: INDC Targets | B126: UNFCCC: INDCs as communicated by Parties | C126: http://www4.unfccc.int/submissions/indc/Submission%20Pages/submissions.aspx
A128: Figure 1: Projected Transport Emissions: BAU, Low Carbon Scenario, and Indicative Target
A129: Derived from Table 3: Comparison of BAU/Low Carbon Scenarios and INDC Target

Sheet Greece
U1: -2.435018982 | V1: -0.7495472463 | W1: -1.66695253
A2: Table 1: Historic and Projected Emissions | U2: -2.206723146 | V2: -0.2894556358
A3: Country | C3: Greece | F3: Table 3: Comparison of BAU/Low Carbon Scenarios and INDC Target | T3: 2010 | U3: 228.138 | V3: 228.138 | W3: 228.138 | Z3: 0
A4: Economy-Wide CO2e Emissions Target | B4: National Communication | C4: 20% of 1990 by 2020 | F4: Transport CO2 Summary | H4: MT | T4: 2011 | U4: 224.71229 | V4: 224.71229 | W4: 224.3350478 | Z4: 0
B5: BUR | F5: Transport CO2 (MT)- (avg baseline) | G5: 1990 | H5: 14.54373 | T5: 2012 | U5: 219.2405031 | V5: 223.0279652 | W5: 220.5954891 | Z5: 3.787462134
B6: Other National Document/Pledge | G6: 2000 | H6: 18.90072 | T6: 2013 | U6: 213.9019552 | V6: 221.3562652 | W6: 216.918267 | Z6: 7.454310028
B7: INDC Unconditional Reduction | C7: 40% reduction in 2030 compared to 1990 | G7: 2010 | H7: 22.07665 | T7: 2014 | U7: 208.693402 | V7: 219.6970955 | W7: 213.3023425 | Z7: 11.00369345
B8: INDC Conditional Reduction | G8: 2011 | P8: CO2e Emissions (MT) | T8: 2015 | U8: 203.6116781 | V8: 218.0503619 | W8: 209.7466937 | Z8: 14.43868387
B9: INDC - Any other target mentioned | E9: ` | G9: 2020 | H9: 23.12 | O9: 1990 | P9: 14.54373 | T9: 2016 | U9: 198.653695 | V9: 216.4159714 | W9: 206.2503158 | Z9: 17.7622764
B10: INDC - Long Term Target | G10: 2030 | H10: 24.708 | O10: 1994 | T10: 2017 | U10: 193.8164399 | V10: 214.7938315 | W10: 202.812221 | Z10: 20.97739163
A11: 2030 Economy-Wide CO2e Emissions Target (MT) | C11: 62.751948 | G11: 2050 | H11: 27 | O11: 1995 | P11: 16.61748 | T11: 2018 | U11: 189.0969728 | V11: 213.1838502 | W11: 199.4314375 | Z11: 24.08687748
A12: Derived 2030 Transport CO2 Emissions Target ( based on share of total emissions @ 2010) | C12: 12.04183191 | F12: Low Carbon Transport(MT) (avg low carbon baseline) | G12: 2020 | H12: 18.95 | O12: 2000 | P12: 18.90072 | T12: 2019 | U12: 184.4924256 | V12: 211.5859366 | W12: 196.1070101 | Z12: 27.09351098
G13: 2030 | H13: 17.75 | O13: 2005 | P13: 21.66057 | T13: 2020 | U13: 180 | V13: 210 | W13: 192.8379994 | Z13: 30
G14: 2050 | H14: 8.5 | O14: 2010 | P14: 22.07665 | T14: 2021 | U14: 176.0278983 | V14: 209.3921432 | W14: 189.6234815 | Z14: 33.36424483
A15: OFFICIAL and IEA ESTIMATES | B15: Base Year | C15: CO2e Emissions (MT) | D15: Source | F15: Average Reduction of Low Carbon estimate with BAU (%) | G15: 2030 | H15: -28 | O15: 2011 | T15: 2022 | U15: 172.14345 | V15: 208.7860458 | W15: 186.462548 | Z15: 36.64259584
A16: Economy-Wide CO2e Emissions : Historical | B16: 1990 | C16: 104.58658 | D16: BUR | T16: 2023 | U16: 168.3447206 | V16: 208.1817028 | W16: 183.3543059 | Z16: 39.83698222
B17: 2011 | C17: 115.04502 | D17: NC | N17: Future (BAU) -Official | T17: 2024 | U17: 164.6298187 | V17: 207.5791092 | W17: 180.2978766 | Z17: 42.94929046
A18: Economy-Wide CO2e Emissions : Projections | B18: 2020 | C18: 104.85237 | D18: BUR | F18: Gap Between INDC Target and Average Low Carbon Scenario (%) | G18: Average | H18: 0.47 | O18: 2020 | P18: 23.71367 | T18: 2025 | U18: 160.9968944 | V18: 206.9782597 | W18: 177.2923966 | Z18: 45.98136535
B19: 2030 | C19: 100.18405 | D19: BUR | F19: Transport CO2 Target (MT) | G19: INDC | H19: 12 | O19: 2030 | P19: 31.04249 | T19: 2026 | U19: 157.4441386 | V19: 206.3791495 | W19: 174.3370165 | Z19: 48.93501084
A20: Transport Sector : Historic CO2e Emissions | B20: 1990 | C20: 14.54373 | D20: BUR | F20: Gap Between INDC Target and Average Low Carbon Scenario in Million Tons @ 2030 | H20: 5.708168091 | T20: 2027 | U20: 153.9697824 | V20: 205.7817734 | W20: 171.4309012 | Z20: 51.81199101
B21: 1994 | F21: Cumulative Increase: BAU Scenario (2010-2030) MT (avg) | H21: 474.4913374 | N21: Low Carbon Scenario-Official | O21: 2020 | P21: 23.81559 | T21: 2028 | U21: 150.5720956 | V21: 205.1861265 | W21: 168.5732295 | Z21: 54.6140309
B22: 1995 | C22: 16.61748 | D22: BUR | F22: Cumulative Increase: Low Carbon Scenario (2010-2030) MT (avg) | H22: 397.0787385 | O22: 2030 | P22: 26.07959 | T22: 2029 | U22: 147.2493863 | V22: 204.5922037 | W22: 165.7631938 | Z22: 57.34281737
B23: 2000 | C23: 18.90072 | D23: BUR | F23: Cumulative Reduction: BAU vs. Low Carbon Scenario (2010-2030) MT (avg) | H23: 77.41259893 | T23: 2030 | U23: 144 | V23: 204 | W23: 163 | Z23: 60
B24: 2005 | C24: 21.66057 | D24: BUR | F24: Cumulative Gap: Low Carbon Scenario vs. INDC Target (2010-2030) MT | H24: -48.88520479 | N24: Future (BAU) -Other studies | O24: 2020 | P24: 29 | W24: 4070.609773 | X24: 230.8742269
B25: 2010 | C25: 22.07665 | D25: BUR | J25: Figure 1: Projected Transport Emissions: BAU, Low Carbon Scenario, and Transport Target | O25: 2020 | P25: 21.8 | U25: 3839.735547 | V25: 4467.818081 | W25: 628.0825348
B26: 2011 | O26: 2020 | P26: 18
O27: 2030 | P27: 33 | Q27: -0.1377777778
J28: Figure 1: Projected Transport Emissions: BAU, Low Carbon Scenario, and Indicative Targe | O28: 2030 | P28: 20.5
O29: 2030 | P29: 19
O30: 2030 | P30: 20 | Q30: -1
O31: 2040 | P31: 20.4
O32: 2050 | P32: 44
O33: 2050 | P33: 20.7 | R33: Year | S33: % Increase
O34: 2050 | P34: 16.36363636 | Q34: Total Country CO2e Emissions (BAU) | R34: 1990-2011 | S34: 0.08724827863
R35: 2011-2030 | S35: 0.05585556541
N36: Low Carbon Scenario (studies) | O36: 2020 | P36: 16 | Q36: Total Transport CO2e Emissions (BAU) | R36: 1990-2011 | S36: 0.04033467593
O37: 2020 | P37: 16 | R37: 2011-2030 | S37: -0.0921724842
O38: 2020 | P38: 20 | Q38: Transport Mitigation Potential (below BAU @ 2030) | S38: -0.2941176471 | T38: Decrease
O39: 2030 | P39: 12 | Q39: Transport Mitigation Potential (below INDC target) | S39: -0.1165644172
A40: Table 2: Mitigation Potential Studies | O40: 2030 | P40: 18.35
A41: Study Title | C41: The ITREN-2030 | D41: EU ENERGY, TRANSPORT AND GHG EMISSIONS TRENDS TO 2050 | E41: A LOW CARBON VISION FOR GREECE IN 2050 | F41: The Greek Energy System in 2050 GHG mitigation options | O41: 2030 | P41: 16
A42: Quantification by Institute | C42: Fraunhofer ISI | D42: EUROPEAN COMMISSION Directorate-General for Energy, Directorate-General for Climate Action and Directorate-General for Mobility and Transport | E42: Ecofys & WWF | F42: Centre for Renewable Energy Sources and Saving, Greece | O42: 2030 | P42: 16.36363636
A43: Methodology/Model Used | C43: Bottom-up | D43: Bottom-up (Sultan Model) | E43: Bottom-up | F43: Bottom-up | O43: 2050 | P43: 7
A44: Base Year | C44: 2005 | D44: 2000 | E44: 2005 | F44: 2010 | O44: 2050 | P44: 10
A45: Base Year CO2e Emissions (MT) | B45: Road
B46: Railways
B47: Waterways
B48: Aviation
B49: Passenger
B50: Freight
B51: Urban
B52: Total | C52: 16 | D52: 21.5 | E52: 23 | F52: 21.813213
A53: Forecast Year | C53: 2030 | D53: 2030 | E53: 2030 | F53: 2030
A54: Forecast CO2 Emissions (MT) BAU | B54: Road
B55: Railways
B56: Waterways
B57: Aviation
B58: Passenger
B59: Freight
B60: Urban
B61: Total | C61: 19 | D61: 20.5 | E61: 33 | F61: 20
A62: Forecast Year | C62: 2030 | D62: 2030 | E62: 2030 | F62: 2030
A63: Forecast CO2 Emissions with Mitigation Measures (MT) | B63: Road
B64: Railways
B65: Waterways
B66: Aviation
B67: Passenger
B68: Freight
B69: Urban
B70: Total | C70: 16 | D70: 18.35 | E70: 12 | F70: 16.4
A71: % Projected Increase (BAU) | C71: 0.1875 | D71: -0.04651162791 | E71: 0.4347826087 | F71: -0.08312452641
A72: % Projected Decrease (With Mitigation Measures) | C72: -0.1578947368 | D72: -0.1048780488 | E72: -0.6363636364 | F72: -0.18
A73: Mitigation Measures | D73: Fuel Economy Standards for LDV and HDV | E73: Low-hanging fruit for reducing greenhouse gas emissions from transport involves improving the energy efficiency of cars and trucks. Reducing volume increase of car transport per capita in period 2000-2050 from 137% to 50% e.g. by encouraging working from home, Shift passenger and freight transport to efficient water and rail, Further improvement of fuel efficiency of road transport to 1-2 litre ge/100 km in 2050,10% CNG buses in 2050 and 30% buses with hydrogen from RES in 2050,10% ecologically safe biofuels in 2050 and 8% in 2020
A79: TIER I FACTSHEET SOURCES
A81: Table 1: Historic and Projected Emissions
A82: Historic Emissions | B82: Submitted National Communications | C82: http://unfccc.int/national_reports/non-annex_i_natcom/submitted_natcom/items/653.php
B83: UNFCCC: INDCs as communicated by Parties | C83: http://www4.unfccc.int/submissions/indc/Submission%20Pages/submissions.aspx
B84: Submitted Biennial Update Reports | C84: http://unfccc.int/national_reports/non-annex_i_natcom/reporting_on_climate_change/items/8722.php
B85: The Climate Pledge INDC Tool | C85: http://infographics.pbl.nl/indc/
B86: CAIT Climate Data Explorer | C86: http://cait.wri.org/
B87: Climate Equity Reference Calculator | C87: http://gdrights.org/calculator-about/
B88: World Bank - World Development Indicators | C88: http://data.worldbank.org/data-catalog/world-development-indicators
B89: UNEP Pledge Pipeline Tool | C89: http://www.unep.org/climatechange/pledgepipeline/
B90: Climate Action Tracker | C90: http://climateactiontracker.org/
A91: BAU Emissions Projections | B91: Submitted National Communications | C91: http://unfccc.int/national_reports/non-annex_i_natcom/submitted_natcom/items/653.php
B92: UNFCCC: INDCs as communicated by Parties | C92: http://www4.unfccc.int/submissions/indc/Submission%20Pages/submissions.aspx
B93: Submitted Biennial Update Reports | C93: http://unfccc.int/national_reports/non-annex_i_natcom/reporting_on_climate_change/items/8722.php
B94: The Climate Pledge INDC Tool | C94: http://infographics.pbl.nl/indc/
B95: Climate Equity Reference Calculator | C95: http://gdrights.org/calculator-about/
B96: World Bank - World Development Indicators | C96: http://data.worldbank.org/data-catalog/world-development-indicators
B97: UNEP Pledge Pipeline Tool | C97: http://www.unep.org/climatechange/pledgepipeline/
B98: Climate Action Tracker | C98: http://climateactiontracker.org/
A99: INDC Targets | B99: UNFCCC: INDCs as communicated by Parties | C99: http://www4.unfccc.int/submissions/indc/Submission%20Pages/submissions.aspx
